Workbook

Sheet Resumo
B6: SERVIÇOS DE LIMPEZA, MANUTENÇÃO E DESASSOREAMENTO DE AGUADAS.
B8: Local: | C8: ='Localidades I'!B9 -> Comunidades rurais dos municípios do estado de Pernambuco, CODEVASF Pernambuco.
B9: PLANILHA ORÇAMENTÁRIA
B11: Data base utilizada: Sinapi setembro/2023, Orse setembro/2023 e Sicro julho/2023 | D11: BDI | E11: =BDI!E30 -> 0.2269 | F11: HORISTA | G11: MENSALISTA
D12: ENCARGOS SOCIAIS: | F12: ='Encargos Sociais'!H43 -> 1.1455 | G12: ='Encargos Sociais'!I43 -> 0.7011
C13: DESCRIÇÃO DOS SERVIÇOS | D13: UNID. | E13: QUANT. | F13: PREÇO (R$)
F14: UNITÁRIO | G14: TOTAL
C16: Execução dos serviços de limpeza, manutenção e desassoreamento de aguadas, localizadas nos municípios da área de atuação da 3ª/SR da Codevasf. | D16: UNID. | E16: =Localidades!B11 -> 250 | F16: =planilha!I27 -> 19462.31 | G16: =ROUND(F16*E16,2) -> 4865577.5
B17: VALOR TOTAL | G17: =SUM(G16:G16) -> 4865577.5

Sheet LOTE I (hidden)
B6: Obra | E6: SERVIÇOS DE LIMPEZA, MANUTENÇÃO E DESASSOREAMENTO DE AGUADAS.
B7: Local: | E7: ='Localidades I'!B9 -> Comunidades rurais dos municípios do estado de Pernambuco, CODEVASF Pernambuco.
B8: PLANILHA ORÇAMENTÁRIA: LOTE I - Execução dos serviços de limpeza, manutenção e desassoreamento de aguadas, localizadas nos municípios e microregiões de Brejo Pernambucano, Mata Meridional Pernambucana, Suape, Vitória do Santo Antão, Médio Capibaribe, Garanhuns, Mata Setentrional Pernambucana, os municípios de Caruaru, Riacho das Almas, Bezerros, Gravatá e São Caitano pertencentes ao Vale do Itapojuca.
B10: ITEM | D10: CÓD. | E10: DESCRIÇÃO DOS SERVIÇOS | F10: Data Base: | H10: SINAPI SETEMBRO/2023 e ORSE SETEMBRO/2023
C11: CÓDIGO | F11: UNID. | G11: QUANT. | H11: PREÇO (R$)
H12: UNITÁRIO | I12: TOTAL
B14: 1.1 | D14: CPU-01 | E14: Mobilização de Equipamento, Materiais e Pessoal, com deslocamentos internos. | F14: =cpu!E12 -> TXKM | G14: ='Mob e Desmob'!E30 -> 28652 | H14: =VLOOKUP(D14,cpu!E:H,4,0) -> 1.9 | I14: =ROUND(H14*G14,2) -> 54438.8 | K14: =I14/$I$27 -> 0.1375
B15: 1.2 | D15: CPU-02 | E15: Desmobilização de Equipamento, Material e Pessoal. | F15: =cpu!E20 -> TXKM | G15: =G14 -> 28652 | H15: =VLOOKUP(D15,cpu!E:H,4,0) -> 1.9 | I15: =ROUND(H15*G15,2) -> 54438.8 | K15: =I15/$I$27 -> 0.1375
B16: 1.3 | D16: CPU-04 | E16: Administração local da obra. | F16: % | G16: 1 | H16: =VLOOKUP(D16,cpu!E:H,4,0)*12 -> 210051.36 | I16: 210051.36 | K16: 0.5305
B17: 1.4 | D17: CPU-03 | E17: Placa de identificação de obra conforme modelo fornecido pela CODEVASF medindo 3,0m X 2,0 m, incluindo fornecimento, instalação e conservação. | F17: unid. | G17: ='Localidades I'!B11 -> 0 | H17: =VLOOKUP(D17,cpu!E:H,4,0) -> 407.51 | I17: 0 | K17: 0
B18: 1.5 | D18: AUX. 01 | E18: Locação de Veiculo tipo Caminhonete, diesel, 4x4, cabine dupla (163 CV), sem motorista, para fiscalização, incluindo combustível, lubrificantes e manutenção. | F18: mês | G18: 12 | H18: =VEICULO!D54 -> 6419.04 | I18: 77028.48 | K18: 0.1945
B19: 1.6 | D19: CPU-05 | E19: Registro em cartório de registro de imóveis ou títulos de documentos do Termo de Cessão de uso da área onde está sendo recuperada a aguada. | F19: unid. | G19: =1*'Localidades I'!B11 -> 0 | H19: =VLOOKUP(D19,cpu!E:H,4,0) -> 264.67 | I19: 0 | K19: 0 | T19: =84/7 -> 12
B20: 1.7 | D20: CPU-06 | E20: Abertura de caminho de serviço, com 4,0 metros de largura. | F20: m | G20: =G19*800 -> 0 | H20: =VLOOKUP(D20,cpu!E:H,4,0) -> 0.25 | I20: 0 | K20: 0
B21: 1.8 | D21: CPU-07 | E21: Demolição de cerca - estaca de madeira, com até 20 fios de arame farpado. | F21: m | G21: =G19*5 -> 0 | H21: =VLOOKUP(D21,cpu!E:H,4,0) -> 20.88 | I21: 0 | K21: 0
B22: 1.9 | D22: CPU-08 | E22: Reassentamento de cerca - estaca de madeira, com até 20 fios de arame farpado. | F22: m | G22: =G21 -> 0 | H22: =VLOOKUP(D22,cpu!E:H,4,0) -> 29.67 | I22: 0 | K22: 0
B23: 1.10 | D23: CPU-09 | E23: Desmatamento e limpeza mecanizada de terreno com árvores até Ø 15 cm, utilizando trator de esteiras. | F23: m² | G23: =G19*((60*60)) -> 0 | H23: =VLOOKUP(D23,cpu!E:H,4,0) -> 0.25 | I23: 0 | K23: 0 | T23: =G24/40 -> 0
B24: 1.11 | D24: CPU-10 | E24: Escavação, carga e transporte de material de 1ª categoria, caminho de serviço leito natural, com escavadeira hidráulica e caminhão basculante 10 m³, DMT de 50 ate 200 m. | F24: m³ | G24: ='Localidades I'!C8 -> 0 | H24: =VLOOKUP(D24,cpu!E:H,4,0) -> 7.47 | I24: 0 | K24: 0 | L24: =G24/2 -> 0 | T24: =H27/T23 -> 
B25: 1.12 | D25: CPU-11 | E25: Espalhamento e Compactação mecânica de material de 1ª categoria em talude de aguada sem controle do Grau de Compactação mediante a utilização de trator de esteiras com potencia de 150HP. | F25: m³ | G25: =G24 -> 0 | H25: =VLOOKUP(D25,cpu!E:H,4,0) -> 1.83 | I25: 0 | K25: 0 | T25: 161618.32
B26: Custo por unidade | I26: =I27/'Localidades I'!B11 -> 
B27: =CONCATENATE("TOTAL PARA ",'Localidades I'!B11," UNIDADES") -> TOTAL PARA 0 UNIDADES | I27: =SUM(I14:I25) -> 395957.44
F43: 2244500
F44: =(F43-(F43*5%)) -> 2132275

Sheet planilha
B6: Obra | E6: SERVIÇOS DE LIMPEZA, MANUTENÇÃO E DESASSOREAMENTO DE AGUADAS.
B7: Local: | E7: =Localidades!B9 -> Comunidades rurais dos municípios do estado de Pernambuco, 3ª SR CODEVASF Pernambuco.
B8: PLANILHA ORÇAMENTÁRIA
B10: ITEM | D10: CÓD. | E10: DESCRIÇÃO DOS SERVIÇOS | F10: Data Base: | H10: SINAPI SETEMBRO/2023, ORSE SETEMBRO/2023 e SICRO JULHO/2023
C11: CÓDIGO | F11: UNID. | G11: QUANT. | H11: PREÇO (R$)
H12: UNITÁRIO | I12: TOTAL
B14: 1.1 | D14: CPU-01 | E14: Mobilização de Equipamento, Materiais e Pessoal, com deslocamentos internos. | F14: =cpu!E12 -> TXKM | G14: ='Mob e Desmob'!E58 -> 47954.4 | H14: =cpu!H18 -> 1.9 | I14: =G14*H14 -> 91113.36
B15: 1.2 | D15: CPU-02 | E15: Desmobilização de Equipamento, Material e Pessoal. | F15: =cpu!E20 -> TXKM | G15: ='Mob e Desmob'!E59 -> 15080 | H15: =cpu!H26 -> 1.9 | I15: =G15*H15 -> 28652
B16: 1.3 | D16: CPU-04 | E16: Administração local da obra. | F16: UNID. | G16: 1 | H16: =cpu!H59*12 -> 210051.36 | I16: =G16*H16 -> 210051.36
B17: 1.4 | D17: CPU-03 | E17: Placa de identificação de obra conforme modelo fornecido pela CODEVASF medindo 3,0m X 2,0 m, incluindo fornecimento, instalação e conservação. | F17: unid. | G17: =Localidades!B11 -> 250 | H17: =cpu!H43 -> 407.51 | I17: =G17*H17 -> 101877.5
B18: 1.5 | D18: AUX. 01 | E18: Locação de Veiculo tipo Caminhonete, diesel, 4x4, cabine dupla (163 CV), sem motorista, para fiscalização, incluindo combustível, lubrificantes e manutenção. | F18: mês | G18: 12 | H18: =VEICULO!D54 -> 6419.04 | I18: =G18*H18 -> 77028.48
B19: 1.6 | D19: CPU-05 | E19: Registro em cartório de registro de imóveis ou títulos de documentos do Termo de Cessão de uso da área onde está sendo recuperada a aguada. | F19: unid. | G19: =Localidades!B11 -> 250 | H19: =cpu!H67 -> 264.67 | I19: 66167.5 | T19: =84/7 -> 12
B20: 1.7 | D20: CPU-06 | E20: Abertura de caminho de serviço, com 4,0 metros de largura. | F20: m | G20: =G19*800 -> 200000 | H20: =cpu!H75 -> 0.25 | I20: 50000
B21: 1.8 | D21: CPU-07 | E21: Demolição de cerca - estaca de madeira, com até 20 fios de arame farpado. | F21: m | G21: =G19*5 -> 1250 | H21: =cpu!H82 -> 20.88 | I21: 26100
B22: 1.9 | D22: CPU-08 | E22: Reassentamento de cerca - estaca de madeira, com até 20 fios de arame farpado. | F22: m | G22: =G21 -> 1250 | H22: =cpu!H90 -> 29.67 | I22: 37087.5
B23: 1.10 | D23: CPU-09 | E23: Desmatamento e limpeza mecanizada de terreno com árvores até Ø 15 cm, utilizando trator de esteiras. | F23: m² | G23: =G19*((60*60)) -> 900000 | H23: =cpu!H98 -> 0.25 | I23: 225000 | T23: =G24/40 -> 10625
B24: 1.11 | D24: CPU-10 | E24: Escavação, carga e transporte de material de 1ª categoria, caminho de serviço leito natural, com escavadeira hidráulica e caminhão basculante 10 m³, DMT de 50 ate 200 m. | F24: m³ | G24: =Localidades!C8 -> 425000 | H24: =cpu!H107 -> 7.47 | I24: 3174750 | T24: =H27/T23 -> 0
B25: 1.12 | D25: CPU-11 | E25: Espalhamento e Compactação mecânica de material de 1ª categoria em talude de aguada sem controle do Grau de Compactação mediante a utilização de trator de esteiras com potencia de 150HP. | F25: m³ | G25: =G24 -> 425000 | H25: =cpu!H116 -> 1.83 | I25: 777750 | T25: 161618.32
B26: =CONCATENATE("TOTAL PARA ",Localidades!B11," UNIDADES") -> TOTAL PARA 250 UNIDADES | I26: =SUM(I14:I25)-0.2 -> 4865577.5
B27: Custo por unidade | I27: =I26/Localidades!B11 -> 19462.31

Sheet 1 aguada
B6: Obra | E6: SERVIÇOS DE LIMPEZA, MANUTENÇÃO E DESASSOREAMENTO DE AGUADAS.
B7: Local: | E7: =Localidades!B9 -> Comunidades rurais dos municípios do estado de Pernambuco, 3ª SR CODEVASF Pernambuco.
B8: PLANILHA ORÇAMENTÁRIA
B10: ITEM | D10: CÓD. | E10: DESCRIÇÃO DOS SERVIÇOS | F10: Data Base: | H10: SINAPI SETEMBRO/2023, ORSE SETEMBRO/2023 e SICRO JULHO/2023
C11: CÓDIGO | F11: UNID. | G11: QUANT. | H11: PREÇO (R$)
H12: UNITÁRIO | I12: TOTAL
B14: 1.1 | D14: CPU-01 | E14: Mobilização de Equipamento, Materiais e Pessoal, com deslocamentos internos. | F14: =cpu!E12 -> TXKM | G14: =planilha!G14/Localidades!$B$11 -> 191.8176 | H14: =VLOOKUP(D14,'LOTE I'!D:H,5,0) -> 1.9 | I14: =ROUND(G14*H14,2) -> 364.45
B15: 1.2 | D15: CPU-02 | E15: Desmobilização de Equipamento, Material e Pessoal. | F15: =cpu!E20 -> TXKM | G15: =planilha!G15/Localidades!$B$11 -> 60.32 | H15: =VLOOKUP(D15,'LOTE I'!D:H,5,0) -> 1.9 | I15: 114.61
B16: 1.3 | D16: CPU-04 | E16: Administração local da obra. | F16: UNID. | G16: =planilha!G16/Localidades!$B$11 -> 0.004 | H16: =VLOOKUP(D16,'LOTE I'!D:H,5,0) -> 210051.36 | I16: 840.21
B17: 1.4 | D17: CPU-03 | E17: Placa de identificação de obra conforme modelo fornecido pela CODEVASF medindo 3,0m X 2,0 m, incluindo fornecimento, instalação e conservação. | F17: unid. | G17: =planilha!G17/Localidades!$B$11 -> 1 | H17: =VLOOKUP(D17,'LOTE I'!D:H,5,0) -> 407.51 | I17: 407.51
B18: 1.5 | D18: AUX. 01 | E18: Locação de Veiculo tipo Caminhonete, diesel, 4x4, cabine dupla (163 CV), sem motorista, para fiscalização, incluindo combustível, lubrificantes e manutenção. | F18: mês | G18: =planilha!G18/Localidades!$B$11 -> 0.048 | H18: =VLOOKUP(D18,'LOTE I'!D:H,5,0) -> 6419.04 | I18: 308.11
B19: 1.6 | D19: CPU-05 | E19: Registro em cartório de registro de imóveis ou títulos de documentos do Termo de Cessão de uso da área onde está sendo recuperada a aguada. | F19: unid. | G19: =planilha!G19/Localidades!$B$11 -> 1 | H19: =VLOOKUP(D19,'LOTE I'!D:H,5,0) -> 264.67 | I19: 264.67
B20: 1.7 | D20: CPU-06 | E20: Abertura de caminho de serviço, com 4,0 metros de largura. | F20: m | G20: =planilha!G20/Localidades!$B$11 -> 800 | H20: =VLOOKUP(D20,'LOTE I'!D:H,5,0) -> 0.25 | I20: 200
B21: 1.8 | D21: CPU-07 | E21: Demolição de cerca - estaca de madeira, com até 20 fios de arame farpado. | F21: m | G21: =planilha!G21/Localidades!$B$11 -> 5 | H21: =VLOOKUP(D21,'LOTE I'!D:H,5,0) -> 20.88 | I21: 104.4
B22: 1.9 | D22: CPU-08 | E22: Reassentamento de cerca - estaca de madeira, com até 20 fios de arame farpado. | F22: m | G22: =planilha!G22/Localidades!$B$11 -> 5 | H22: =VLOOKUP(D22,'LOTE I'!D:H,5,0) -> 29.67 | I22: 148.35
B23: 1.10 | D23: CPU-09 | E23: Desmatamento e limpeza mecanizada de terreno com árvores até Ø 15 cm, utilizando trator de esteiras. | F23: m² | G23: =planilha!G23/Localidades!$B$11 -> 3600 | H23: =VLOOKUP(D23,'LOTE I'!D:H,5,0) -> 0.25 | I23: 900
B24: 1.11 | D24: CPU-10 | E24: Escavação, carga e transporte de material de 1ª categoria, caminho de serviço leito natural, com escavadeira hidráulica e caminhão basculante 10 m³, DMT de 50 ate 200 m. | F24: m³ | G24: =planilha!G24/Localidades!$B$11 -> 1700 | H24: =VLOOKUP(D24,'LOTE I'!D:H,5,0) -> 7.47 | I24: 12699
B25: 1.12 | D25: CPU-11 | E25: Espalhamento e Compactação mecânica de material de 1ª categoria em talude de aguada sem controle do Grau de Compactação mediante a utilização de trator de esteiras com potencia de 150HP. | F25: m³ | G25: =planilha!G25/Localidades!$B$11 -> 1700 | H25: =VLOOKUP(D25,'LOTE I'!D:H,5,0) -> 1.83 | I25: 3111
B26: TOTAL POR AGUADA | I26: =SUM(I14:I25) -> 19462.31

Sheet cpu
A5: SERVIÇOS DE LIMPEZA, MANUTENÇÃO E DESASSOREAMENTO DE AGUADAS.
A7: Composições de Preço Unitário
A8: Data Base Utilizada: SINAPI - setembo/2023; ORSE - setembro/2023: SICRO - julho/2023 | F8: BDI (%): | H8: =BDI!E30 -> 0.2269
F9: ENCARGOS SOCIAIS HORISTAS (%): | H9: ='Encargos Sociais'!H43 -> 1.1455
F10: ENCARGOS SOCIAIS MENSALISTAS (%): | H10: ='Encargos Sociais'!I43 -> 0.7011
F11: DATA BASE: MAIO/2023
A12: CPU-01 | B12: CODEVASF | C12: 1.1 | D12: MOBILIZAÇÃO - TRANSPORTE COMERCIAL COM CAMINHAO CARROCERIA 9 T, RODOVIA PAVIMENTADA | E12: TXKM | F12: COEF. | G12: PRECO UNITÁRIO (R$) | H12: TOTAL (R$)
A14: COMP. SINAPI | B14: SINAPI | C14: 88316 | D14: =IF(A14="COMP. SINAPI",VLOOKUP(C14,'Sinapi _Serv'!A:D,2,0),IF(cpu!A14="INS. SINAPI",VLOOKUP(cpu!C14,Sinapi_insumos!A:D,2,0),"")) -> SERVENTE COM ENCARGOS COMPLEMENTARES | E14: =IF(A14="COMP. SINAPI",VLOOKUP(C14,'Sinapi _Serv'!A:D,3,0),IF(cpu!A14="INS. SINAPI",VLOOKUP(cpu!C14,Sinapi_insumos!A:D,3,0),"")) -> H | F14: 0.01315 | G14: =IF(A14="COMP. SINAPI",VLOOKUP(C14,'Sinapi _Serv'!A:D,4,0),IF(cpu!A14="INS. SINAPI",VLOOKUP(cpu!C14,Sinapi_insumos!A:D,4,0),"")) -> 21.28 | H14: =ROUND(F14*G14,2) -> 0.28
A15: EQUIP. SICRO | B15: SICRO | C15: A9333 | D15: CAMINHÃO PLATAFORMA 8X2, PBTC 36.000 KG E DISTÂNCIA ENTRE EIXOS 4,8M - 210 KW - MOTORISTA DE CAMINHÃO | E15: CHP | F15: 0.004 | G15: 316.84 | H15: =ROUND(F15*G15,2) -> 1.27
E16: Sub total: | H16: =SUM(H14:H15) -> 1.55
E17: =$H$8 -> 0.2269 | H17: =ROUND(H16*E17,2) -> 0.35
E18: =A12 -> CPU-01 | F18: PREÇO UNITÁRIO TOTAL: | H18: =H16+H17 -> 1.9
A20: CPU-02 | B20: CODEVASF | C20: 1.2 | D20: DESMOBILIZAÇÃO - TRANSPORTE COMERCIAL COM CAMINHAO CARROCERIA 9 T, RODOVIA PAVIMENTADA | E20: TXKM | F20: COEF. | G20: PRECO UNITÁRIO (R$) | H20: TOTAL (R$)
A22: COMP. SINAPI | B22: SINAPI | C22: 88316 | D22: =IF(A22="COMP. SINAPI",VLOOKUP(C22,'Sinapi _Serv'!A:D,2,0),IF(cpu!A22="INS. SINAPI",VLOOKUP(cpu!C22,Sinapi_insumos!A:D,2,0),"")) -> SERVENTE COM ENCARGOS COMPLEMENTARES | E22: =IF(A22="COMP. SINAPI",VLOOKUP(C22,'Sinapi _Serv'!A:D,3,0),IF(cpu!A22="INS. SINAPI",VLOOKUP(cpu!C22,Sinapi_insumos!A:D,3,0),"")) -> H | F22: 0.01315 | G22: =IF(A22="COMP. SINAPI",VLOOKUP(C22,'Sinapi _Serv'!A:D,4,0),IF(cpu!A22="INS. SINAPI",VLOOKUP(cpu!C22,Sinapi_insumos!A:D,4,0),"")) -> 21.28 | H22: =ROUND(F22*G22,2) -> 0.28
A23: EQUIP. SICRO | B23: SICRO | C23: A9333 | D23: CAMINHÃO PLATAFORMA 8X2, PBTC 36.000 KG E DISTÂNCIA ENTRE EIXOS 4,8M - 210 KW - MOTORISTA DE CAMINHÃO | E23: CHP | F23: 0.004 | G23: =G15 -> 316.84 | H23: =ROUND(F23*G23,2) -> 1.27
E24: Sub total: | H24: =SUM(H22:H23) -> 1.55
E25: =$H$8 -> 0.2269 | H25: =ROUND(H24*E25,2) -> 0.35
E26: =A20 -> CPU-02 | F26: PREÇO UNITÁRIO TOTAL: | H26: =H24+H25 -> 1.9
A28: CPU-03 | B28: SINAPI | C28: 74209/1 | D28: PLACA DE OBRA EM CHAPA DE ACO GALVANIZADO (1,00 x 1,50 m²) | E28: M2 | F28: COEF. | G28: PRECO UNITÁRIO (R$) | H28: TOTAL (R$)
A30: INS. SINAPI | B30: SINAPI | C30: 4417 | D30: =IF(A30="COMP. SINAPI",VLOOKUP(C30,'Sinapi _Serv'!A:D,2,0),IF(cpu!A30="INS. SINAPI",VLOOKUP(cpu!C30,Sinapi_insumos!A:D,2,0),"")) -> SARRAFO NAO APARELHADO *2,5 X 7* CM, EM MACARANDUBA/MASSARANDUBA, ANGELIM, PEROBA-ROSA OU EQUIVALENTE DA REGIAO - BRUTA | E30: =IF(A30="COMP. SINAPI",VLOOKUP(C30,'Sinapi _Serv'!A:D,3,0),IF(cpu!A30="INS. SINAPI",VLOOKUP(cpu!C30,Sinapi_insumos!A:D,3,0),"")) -> M | F30: 1.5 | G30: =IF(A30="COMP. SINAPI",VLOOKUP(C30,'Sinapi _Serv'!A:D,4,0),IF(cpu!A30="INS. SINAPI",VLOOKUP(cpu!C30,Sinapi_insumos!A:D,4,0),"")) -> 8.43 | H30: =ROUND(F30*G30,2) -> 12.65
A31: INS. SINAPI | B31: SINAPI | C31: 4491 | D31: =IF(A31="COMP. SINAPI",VLOOKUP(C31,'Sinapi _Serv'!A:D,2,0),IF(cpu!A31="INS. SINAPI",VLOOKUP(cpu!C31,Sinapi_insumos!A:D,2,0),"")) -> PONTALETE *7,5 X 7,5* CM EM PINUS, MISTA OU EQUIVALENTE DA REGIAO - BRUTA | E31: =IF(A31="COMP. SINAPI",VLOOKUP(C31,'Sinapi _Serv'!A:D,3,0),IF(cpu!A31="INS. SINAPI",VLOOKUP(cpu!C31,Sinapi_insumos!A:D,3,0),"")) -> M | F31: 6 | G31: =IF(A31="COMP. SINAPI",VLOOKUP(C31,'Sinapi _Serv'!A:D,4,0),IF(cpu!A31="INS. SINAPI",VLOOKUP(cpu!C31,Sinapi_insumos!A:D,4,0),"")) -> 10.58 | H31: 63.48
A32: INS. SINAPI | B32: ORSE | C32: 578 | D32: =VLOOKUP(cpu!C32,Orse_insumos!A:D,2,0) -> Chapa de aço galvanizado nº 22 - e=0,7mm - dimensões 2,00x1,00m | E32: =VLOOKUP(cpu!C32,Orse_insumos!A:D,3,0) -> m2 | F32: 1.5 | G32: =Insumos!E22 -> 96.15 | H32: 144.23
A33: INS. SINAPI | B33: SINAPI | C33: 5075 | D33: =IF(A33="COMP. SINAPI",VLOOKUP(C33,'Sinapi _Serv'!A:D,2,0),IF(cpu!A33="INS. SINAPI",VLOOKUP(cpu!C33,Sinapi_insumos!A:D,2,0),"")) -> PREGO DE ACO POLIDO COM CABECA 18 X 30 (2 3/4 X 10) | E33: =IF(A33="COMP. SINAPI",VLOOKUP(C33,'Sinapi _Serv'!A:D,3,0),IF(cpu!A33="INS. SINAPI",VLOOKUP(cpu!C33,Sinapi_insumos!A:D,3,0),"")) -> KG | F33: 0.161535 | G33: =IF(A33="COMP. SINAPI",VLOOKUP(C33,'Sinapi _Serv'!A:D,4,0),IF(cpu!A33="INS. SINAPI",VLOOKUP(cpu!C33,Sinapi_insumos!A:D,4,0),"")) -> 18.31 | H33: 2.96
A34: COMP. SINAPI | B34: SINAPI | C34: 88262 | D34: =IF(A34="COMP. SINAPI",VLOOKUP(C34,'Sinapi _Serv'!A:D,2,0),IF(cpu!A34="INS. SINAPI",VLOOKUP(cpu!C34,Sinapi_insumos!A:D,2,0),"")) -> CARPINTEIRO DE FORMAS COM ENCARGOS COMPLEMENTARES | E34: =IF(A34="COMP. SINAPI",VLOOKUP(C34,'Sinapi _Serv'!A:D,3,0),IF(cpu!A34="INS. SINAPI",VLOOKUP(cpu!C34,Sinapi_insumos!A:D,3,0),"")) -> H | F34: 1.4955 | G34: =IF(A34="COMP. SINAPI",VLOOKUP(C34,'Sinapi _Serv'!A:D,4,0),IF(cpu!A34="INS. SINAPI",VLOOKUP(cpu!C34,Sinapi_insumos!A:D,4,0),"")) -> 26.13 | H34: 39.08
A35: COMP. SINAPI | B35: SINAPI | C35: 88316 | D35: =IF(A35="COMP. SINAPI",VLOOKUP(C35,'Sinapi _Serv'!A:D,2,0),IF(cpu!A35="INS. SINAPI",VLOOKUP(cpu!C35,Sinapi_insumos!A:D,2,0),"")) -> SERVENTE COM ENCARGOS COMPLEMENTARES | E35: =IF(A35="COMP. SINAPI",VLOOKUP(C35,'Sinapi _Serv'!A:D,3,0),IF(cpu!A35="INS. SINAPI",VLOOKUP(cpu!C35,Sinapi_insumos!A:D,3,0),"")) -> H | F35: 3.0254123 | G35: =IF(A35="COMP. SINAPI",VLOOKUP(C35,'Sinapi _Serv'!A:D,4,0),IF(cpu!A35="INS. SINAPI",VLOOKUP(cpu!C35,Sinapi_insumos!A:D,4,0),"")) -> 21.28 | H35: 64.38
A36: INS. SINAPI | B36: SINAPI | C36: 370 | D36: =IF(A36="COMP. SINAPI",VLOOKUP(C36,'Sinapi _Serv'!A:D,2,0),IF(cpu!A36="INS. SINAPI",VLOOKUP(cpu!C36,Sinapi_insumos!A:D,2,0),"")) -> AREIA MEDIA - POSTO JAZIDA/FORNECEDOR (RETIRADO NA JAZIDA, SEM TRANSPORTE) | E36: =IF(A36="COMP. SINAPI",VLOOKUP(C36,'Sinapi _Serv'!A:D,3,0),IF(cpu!A36="INS. SINAPI",VLOOKUP(cpu!C36,Sinapi_insumos!A:D,3,0),"")) -> M3 | F36: 0.0123839115 | G36: =IF(A36="COMP. SINAPI",VLOOKUP(C36,'Sinapi _Serv'!A:D,4,0),IF(cpu!A36="INS. SINAPI",VLOOKUP(cpu!C36,Sinapi_insumos!A:D,4,0),"")) -> 130 | H36: 1.61
A37: INS. SINAPI | B37: SINAPI | C37: 1379 | D37: =IF(A37="COMP. SINAPI",VLOOKUP(C37,'Sinapi _Serv'!A:D,2,0),IF(cpu!A37="INS. SINAPI",VLOOKUP(cpu!C37,Sinapi_insumos!A:D,2,0),"")) -> CIMENTO PORTLAND COMPOSTO CP II-32 | E37: =IF(A37="COMP. SINAPI",VLOOKUP(C37,'Sinapi _Serv'!A:D,3,0),IF(cpu!A37="INS. SINAPI",VLOOKUP(cpu!C37,Sinapi_insumos!A:D,3,0),"")) -> KG | F37: 3.17489349 | G37: =IF(A37="COMP. SINAPI",VLOOKUP(C37,'Sinapi _Serv'!A:D,4,0),IF(cpu!A37="INS. SINAPI",VLOOKUP(cpu!C37,Sinapi_insumos!A:D,4,0),"")) -> 0.7 | H37: 2.22
A38: INS. SINAPI | B38: SINAPI | C38: 4721 | D38: =IF(A38="COMP. SINAPI",VLOOKUP(C38,'Sinapi _Serv'!A:D,2,0),IF(cpu!A38="INS. SINAPI",VLOOKUP(cpu!C38,Sinapi_insumos!A:D,2,0),"")) -> PEDRA BRITADA N. 1 (9,5 a 19 MM) POSTO PEDREIRA/FORNECEDOR, SEM FRETE | E38: =IF(A38="COMP. SINAPI",VLOOKUP(C38,'Sinapi _Serv'!A:D,3,0),IF(cpu!A38="INS. SINAPI",VLOOKUP(cpu!C38,Sinapi_insumos!A:D,3,0),"")) -> M3 | F38: 0.008655261 | G38: =IF(A38="COMP. SINAPI",VLOOKUP(C38,'Sinapi _Serv'!A:D,4,0),IF(cpu!A38="INS. SINAPI",VLOOKUP(cpu!C38,Sinapi_insumos!A:D,4,0),"")) -> 104.48 | H38: 0.9
A39: COMP. SINAPI | B39: SINAPI | C39: 88377 | D39: =IF(A39="COMP. SINAPI",VLOOKUP(C39,'Sinapi _Serv'!A:D,2,0),IF(cpu!A39="INS. SINAPI",VLOOKUP(cpu!C39,Sinapi_insumos!A:D,2,0),"")) -> OPERADOR DE BETONEIRA ESTACIONÁRIA/MISTURADOR COM ENCARGOS COMPLEMENTARES | E39: =IF(A39="COMP. SINAPI",VLOOKUP(C39,'Sinapi _Serv'!A:D,3,0),IF(cpu!A39="INS. SINAPI",VLOOKUP(cpu!C39,Sinapi_insumos!A:D,3,0),"")) -> H | F39: 0.02216226 | G39: =IF(A39="COMP. SINAPI",VLOOKUP(C39,'Sinapi _Serv'!A:D,4,0),IF(cpu!A39="INS. SINAPI",VLOOKUP(cpu!C39,Sinapi_insumos!A:D,4,0),"")) -> 28.14 | H39: 0.62
A40: COMP. SINAPI | B40: SINAPI | C40: 88830 | D40: =IF(A40="COMP. SINAPI",VLOOKUP(C40,'Sinapi _Serv'!A:D,2,0),IF(cpu!A40="INS. SINAPI",VLOOKUP(cpu!C40,Sinapi_insumos!A:D,2,0),"")) -> BETONEIRA CAPACIDADE NOMINAL DE 400 L, CAPACIDADE DE MISTURA 280 L, MOTOR ELÉTRICO TRIFÁSICO POTÊNCIA DE 2 CV, SEM CARREGADOR - CHP DIURNO. AF_05/2023 | E40: =IF(A40="COMP. SINAPI",VLOOKUP(C40,'Sinapi _Serv'!A:D,3,0),IF(cpu!A40="INS. SINAPI",VLOOKUP(cpu!C40,Sinapi_insumos!A:D,3,0),"")) -> CHP | F40: 0.01138062 | G40: =IF(A40="COMP. SINAPI",VLOOKUP(C40,'Sinapi _Serv'!A:D,4,0),IF(cpu!A40="INS. SINAPI",VLOOKUP(cpu!C40,Sinapi_insumos!A:D,4,0),"")) -> 1.99 | H40: 0.02
E41: Sub total: | H41: =SUM(H30:H40) -> 332.15
E42: =$H$8 -> 0.2269 | H42: =ROUND(H41*E42,2) -> 75.36
E43: =A28 -> CPU-03 | F43: PREÇO UNITÁRIO TOTAL: | H43: =H41+H42 -> 407.51
A45: CPU-04 | B45: CODEVASF | C45: 2.1 | D45: ADMINISTRAÇÃO LOCAL | E45: % | F45: COEF. | G45: PRECO UNITÁRIO (R$) | H45: TOTAL (R$)
A47: COMP. SINAPI | B47: SINAPI | C47: 90776 | D47: =IF(A47="COMP. SINAPI",VLOOKUP(C47,'Sinapi _Serv'!A:D,2,0),IF(cpu!A47="INS. SINAPI",VLOOKUP(cpu!C47,Sinapi_insumos!A:D,2,0),"")) -> ENCARREGADO GERAL COM ENCARGOS COMPLEMENTARES | E47: =IF(A47="COMP. SINAPI",VLOOKUP(C47,'Sinapi _Serv'!A:D,3,0),IF(cpu!A47="INS. SINAPI",VLOOKUP(cpu!C47,Sinapi_insumos!A:D,3,0),"")) -> H | F47: 96 | G47: =IF(A47="COMP. SINAPI",VLOOKUP(C47,'Sinapi _Serv'!A:D,4,0),IF(cpu!A47="INS. SINAPI",VLOOKUP(cpu!C47,Sinapi_insumos!A:D,4,0),"")) -> 38.89 | H47: =ROUND(F47*G47,2) -> 3733.44
A48: COMP. SINAPI | B48: SINAPI | C48: 90781 | D48: =IF(A48="COMP. SINAPI",VLOOKUP(C48,'Sinapi _Serv'!A:D,2,0),IF(cpu!A48="INS. SINAPI",VLOOKUP(cpu!C48,Sinapi_insumos!A:D,2,0),"")) -> TOPOGRAFO COM ENCARGOS COMPLEMENTARES | E48: =IF(A48="COMP. SINAPI",VLOOKUP(C48,'Sinapi _Serv'!A:D,3,0),IF(cpu!A48="INS. SINAPI",VLOOKUP(cpu!C48,Sinapi_insumos!A:D,3,0),"")) -> H | F48: 96 | G48: =IF(A48="COMP. SINAPI",VLOOKUP(C48,'Sinapi _Serv'!A:D,4,0),IF(cpu!A48="INS. SINAPI",VLOOKUP(cpu!C48,Sinapi_insumos!A:D,4,0),"")) -> 29.9 | H48: 2870.4
A49: COMP. SINAPI | B49: SINAPI | C49: 88253 | D49: =IF(A49="COMP. SINAPI",VLOOKUP(C49,'Sinapi _Serv'!A:D,2,0),IF(cpu!A49="INS. SINAPI",VLOOKUP(cpu!C49,Sinapi_insumos!A:D,2,0),"")) -> AUXILIAR DE TOPÓGRAFO COM ENCARGOS COMPLEMENTARES | E49: =IF(A49="COMP. SINAPI",VLOOKUP(C49,'Sinapi _Serv'!A:D,3,0),IF(cpu!A49="INS. SINAPI",VLOOKUP(cpu!C49,Sinapi_insumos!A:D,3,0),"")) -> H | F49: =F48*2 -> 192 | G49: =IF(A49="COMP. SINAPI",VLOOKUP(C49,'Sinapi _Serv'!A:D,4,0),IF(cpu!A49="INS. SINAPI",VLOOKUP(cpu!C49,Sinapi_insumos!A:D,4,0),"")) -> 14.48 | H49: 2780.16
A50: COMP. SINAPI | B50: SINAPI | C50: 90772 | D50: AUXILIAR DE ESCRITORIO COM ENCARGOS COMPLEMENTARES | E50: =IF(A50="COMP. SINAPI",VLOOKUP(C50,'Sinapi _Serv'!A:D,3,0),IF(cpu!A50="INS. SINAPI",VLOOKUP(cpu!C50,Sinapi_insumos!A:D,3,0),"")) -> H | F50: =176/2.5 -> 70.4 | G50: =IF(A50="COMP. SINAPI",VLOOKUP(C50,'Sinapi _Serv'!A:D,4,0),IF(cpu!A50="INS. SINAPI",VLOOKUP(cpu!C50,Sinapi_insumos!A:D,4,0),"")) -> 17.95 | H50: 1263.68
A51: INS. SINAPI | B51: SINAPI | C51: 14250 | D51: ENERGIA | E51: =IF(A51="COMP. SINAPI",VLOOKUP(C51,'Sinapi _Serv'!A:D,3,0),IF(cpu!A51="INS. SINAPI",VLOOKUP(cpu!C51,Sinapi_insumos!A:D,3,0),"")) -> KWH | F51: 300 | G51: =IF(A51="COMP. SINAPI",VLOOKUP(C51,'Sinapi _Serv'!A:D,4,0),IF(cpu!A51="INS. SINAPI",VLOOKUP(cpu!C51,Sinapi_insumos!A:D,4,0),"")) -> 0.97 | H51: 291
A52: INSUMO | B52: ORSE | C52: 8978 | D52: =VLOOKUP(cpu!C52,Orse_insumos!A:D,2,0) -> Água - Consumo em volume | E52: =VLOOKUP(cpu!C52,Orse_insumos!A:D,3,0) -> m3 | F52: 25 | G52: =Insumos!E28 -> 3.77 | H52: 94.25
A53: INSUMO | B53: ORSE | C53: 6573 | D53: =VLOOKUP(cpu!C53,Orse_insumos!A:D,2,0) -> Instrumental de topografia | E53: =VLOOKUP(cpu!C53,Orse_insumos!A:D,3,0) -> mês | F53: 0.8 | G53: =Insumos!E29 -> 1180.59 | H53: 944.47
A54: MERCADO LOCAL | D54: ALOJAMENTO DE EQUIPE | E54: MÊS | F54: 1 | G54: 600 | H54: 600
A55: INS. SINAPI | B55: SINAPI | C55: 10775 | D55: Locacao de container 2,30 x 6,00 m, alt. 2,50 m, com 1 sanitario, para escritorio, completo, sem divisorias internas | E55: =IF(A55="COMP. SINAPI",VLOOKUP(C55,'Sinapi _Serv'!A:D,3,0),IF(cpu!A55="INS. SINAPI",VLOOKUP(cpu!C55,Sinapi_insumos!A:D,3,0),"")) -> MES | F55: 1 | G55: =IF(A55="COMP. SINAPI",VLOOKUP(C55,'Sinapi _Serv'!A:D,4,0),IF(cpu!A55="INS. SINAPI",VLOOKUP(cpu!C55,Sinapi_insumos!A:D,4,0),"")) -> 890 | H55: 890
A56: INSUMO | B56: ORSE | C56: 5896 | D56: =VLOOKUP(cpu!C56,Orse_insumos!A:D,2,0) -> Veículo tipo sedan ou pick-up capacidade 0,6 ton | E56: =VLOOKUP(cpu!C56,Orse_insumos!A:D,3,0) -> h | F56: =F47 -> 96 | G56: =Insumos!E42 -> 8.33 | H56: 799.68
E57: ADM. LOCAL - Custo mensal: | H57: =SUM(H47:H56) -> 14267.08
E58: =$H$8 -> 0.2269 | H58: =H57*E58 -> 3237.2
E59: =A45 -> CPU-04 | F59: PREÇO TOTAL: | H59: =SUM(H57:H58) -> 17504.28
A61: CPU-05 | B61: CODEVASF | C61: 1.6 | D61: Registro em cartório de registro de imóveis ou títulos de documentos do Termo de Cessão de uso da área onde está sendo recuperada a aguada. | E61: UNID. | F61: COEF. | G61: PRECO UNITÁRIO (R$) | H61: TOTAL (R$)
A63: INSUMO | B63: Tabela TJPE 2019 | D63: REGISTRO DE QUAISQUER ATOS SEM CONTEÚDO FINANCEIRO (PACTO ANTENUPCIAL, CITAÇÕES DE AÇÕES REAIS OU PESSOAIS REIPERSECUTÓRIAS, RELATIVAS A IMÓVEIS, ETC.) | E63: unid. | F63: 1 | G63: =Insumos!E32 -> 207.39 | H63: =ROUND(F63*G63,2) -> 207.39
A64: INSUMO | B64: ORSE | C64: 5896 | D64: =VLOOKUP(cpu!C64,Orse_insumos!A:D,2,0) -> Veículo tipo sedan ou pick-up capacidade 0,6 ton | E64: =VLOOKUP(cpu!C64,Orse_insumos!A:D,3,0) -> h | F64: 1 | G64: =Insumos!E42 -> 8.33 | H64: =ROUND(F64*G64,2) -> 8.33
E65: Sub total: | H65: =SUM(H63:H64) -> 215.72
E66: =$H$8 -> 0.2269 | H66: =ROUND(H65*E66,2) -> 48.95
E67: =A61 -> CPU-05 | F67: PREÇO UNITÁRIO TOTAL: | H67: =H65+H66 -> 264.67
A69: CPU-06 | B69: CODEVASF | C69: 1.7 | D69: ABERTURA DE CAMINHO DE SERVIÇO COM 4,0 M DE LARGURA | E69: M | F69: COEF. | G69: PRECO UNITÁRIO (R$) | H69: TOTAL (R$)
A71: COMP. SINAPI | B71: SINAPI | C71: 5851 | D71: =IF(A71="COMP. SINAPI",VLOOKUP(C71,'Sinapi _Serv'!A:D,2,0),IF(cpu!A71="INS. SINAPI",VLOOKUP(cpu!C71,Sinapi_insumos!A:D,2,0),"")) -> TRATOR DE ESTEIRAS, POTÊNCIA 150 HP, PESO OPERACIONAL 16,7 T, COM RODA MOTRIZ ELEVADA E LÂMINA 3,18 M3 - CHP DIURNO. AF_06/2014 | E71: =IF(A71="COMP. SINAPI",VLOOKUP(C71,'Sinapi _Serv'!A:D,3,0),IF(cpu!A71="INS. SINAPI",VLOOKUP(cpu!C71,Sinapi_insumos!A:D,3,0),"")) -> CHP | F71: 0.00056 | G71: =IF(A71="COMP. SINAPI",VLOOKUP(C71,'Sinapi _Serv'!A:D,4,0),IF(cpu!A71="INS. SINAPI",VLOOKUP(cpu!C71,Sinapi_insumos!A:D,4,0),"")) -> 257.21 | H71: =ROUND(F71*G71,2) -> 0.14
A72: COMP. SINAPI | B72: SINAPI | C72: 88316 | D72: =IF(A72="COMP. SINAPI",VLOOKUP(C72,'Sinapi _Serv'!A:D,2,0),IF(cpu!A72="INS. SINAPI",VLOOKUP(cpu!C72,Sinapi_insumos!A:D,2,0),"")) -> SERVENTE COM ENCARGOS COMPLEMENTARES | E72: =IF(A72="COMP. SINAPI",VLOOKUP(C72,'Sinapi _Serv'!A:D,3,0),IF(cpu!A72="INS. SINAPI",VLOOKUP(cpu!C72,Sinapi_insumos!A:D,3,0),"")) -> H | F72: 0.003 | G72: =IF(A72="COMP. SINAPI",VLOOKUP(C72,'Sinapi _Serv'!A:D,4,0),IF(cpu!A72="INS. SINAPI",VLOOKUP(cpu!C72,Sinapi_insumos!A:D,4,0),"")) -> 21.28 | H72: =ROUND(F72*G72,2) -> 0.06
E73: ADM. LOCAL - Custo mensal: | H73: =SUM(H71:H72) -> 0.2
E74: =$H$8 -> 0.2269 | H74: =ROUND(H73*E74,2) -> 0.05
E75: =A69 -> CPU-06 | F75: PREÇO UNITÁRIO TOTAL: | H75: =H73+H74 -> 0.25
A77: CPU-07 | B77: CODEVASF | C77: 1.8 | D77: DEMOLIÇÃO DE CERCA - ESTACAS DE MADEIRA COM ATÉ 20 FIOS DE ARAME FARPADO | E77: M | F77: COEF. | G77: PRECO UNITÁRIO (R$) | H77: TOTAL (R$)
A79: COMP. SINAPI | B79: SINAPI | C79: 88316 | D79: =IF(A79="COMP. SINAPI",VLOOKUP(C79,'Sinapi _Serv'!A:D,2,0),IF(cpu!A79="INS. SINAPI",VLOOKUP(cpu!C79,Sinapi_insumos!A:D,2,0),"")) -> SERVENTE COM ENCARGOS COMPLEMENTARES | E79: =IF(A79="COMP. SINAPI",VLOOKUP(C79,'Sinapi _Serv'!A:D,3,0),IF(cpu!A79="INS. SINAPI",VLOOKUP(cpu!C79,Sinapi_insumos!A:D,3,0),"")) -> H | F79: 0.8 | G79: =IF(A79="COMP. SINAPI",VLOOKUP(C79,'Sinapi _Serv'!A:D,4,0),IF(cpu!A79="INS. SINAPI",VLOOKUP(cpu!C79,Sinapi_insumos!A:D,4,0),"")) -> 21.28 | H79: =ROUND(F79*G79,2) -> 17.02
E80: Sub total: | H80: =SUM(H79:H79) -> 17.02
E81: =$H$8 -> 0.2269 | H81: =ROUND(H80*E81,2) -> 3.86
E82: =A77 -> CPU-07 | F82: PREÇO UNITÁRIO TOTAL: | H82: =H80+H81 -> 20.88
A84: CPU-08 | B84: CODEVASF | C84: 1.9 | D84: REASSENTAMENTO DE CERCA - ESTACAS DE MADEIRA COM ATÉ 20 FIOS DE ARAME FARPADO | E84: M | F84: COEF. | G84: PRECO UNITÁRIO (R$) | H84: TOTAL (R$)
A86: COMP. SINAPI | B86: SINAPI | C86: 88309 | D86: =IF(A86="COMP. SINAPI",VLOOKUP(C86,'Sinapi _Serv'!A:D,2,0),IF(cpu!A86="INS. SINAPI",VLOOKUP(cpu!C86,Sinapi_insumos!A:D,2,0),"")) -> PEDREIRO COM ENCARGOS COMPLEMENTARES | E86: =IF(A86="COMP. SINAPI",VLOOKUP(C86,'Sinapi _Serv'!A:D,3,0),IF(cpu!A86="INS. SINAPI",VLOOKUP(cpu!C86,Sinapi_insumos!A:D,3,0),"")) -> H | F86: 0.35 | G86: =IF(A86="COMP. SINAPI",VLOOKUP(C86,'Sinapi _Serv'!A:D,4,0),IF(cpu!A86="INS. SINAPI",VLOOKUP(cpu!C86,Sinapi_insumos!A:D,4,0),"")) -> 26.51 | H86: =ROUND(F86*G86,2) -> 9.28
A87: COMP. SINAPI | B87: SINAPI | C87: 88316 | D87: =IF(A87="COMP. SINAPI",VLOOKUP(C87,'Sinapi _Serv'!A:D,2,0),IF(cpu!A87="INS. SINAPI",VLOOKUP(cpu!C87,Sinapi_insumos!A:D,2,0),"")) -> SERVENTE COM ENCARGOS COMPLEMENTARES | E87: =IF(A87="COMP. SINAPI",VLOOKUP(C87,'Sinapi _Serv'!A:D,3,0),IF(cpu!A87="INS. SINAPI",VLOOKUP(cpu!C87,Sinapi_insumos!A:D,3,0),"")) -> H | F87: 0.7 | G87: =IF(A87="COMP. SINAPI",VLOOKUP(C87,'Sinapi _Serv'!A:D,4,0),IF(cpu!A87="INS. SINAPI",VLOOKUP(cpu!C87,Sinapi_insumos!A:D,4,0),"")) -> 21.28 | H87: =ROUND(F87*G87,2) -> 14.9
E88: Sub total: | H88: =SUM(H86:H87) -> 24.18
E89: =$H$8 -> 0.2269 | H89: =ROUND(H88*E89,2) -> 5.49
E90: =A84 -> CPU-08 | F90: PREÇO UNITÁRIO TOTAL: | H90: =H88+H89 -> 29.67
A92: CPU-09 | B92: SINAPI | C92: 1.10 | D92: DESMATAMENTO E LIMPEZA MECANIZADA DE TERRENO COM ARVORES ATE Ø 15CM, UTILIZANDO TRATOR DE ESTEIRAS | E92: UNID. | F92: COEF. | G92: PRECO UNITÁRIO (R$) | H92: TOTAL (R$)
A94: COMP. SINAPI | B94: SINAPI | C94: 5851 | D94: =IF(A94="COMP. SINAPI",VLOOKUP(C94,'Sinapi _Serv'!A:D,2,0),IF(cpu!A94="INS. SINAPI",VLOOKUP(cpu!C94,Sinapi_insumos!A:D,2,0),"")) -> TRATOR DE ESTEIRAS, POTÊNCIA 150 HP, PESO OPERACIONAL 16,7 T, COM RODA MOTRIZ ELEVADA E LÂMINA 3,18 M3 - CHP DIURNO. AF_06/2014 | E94: =IF(A94="COMP. SINAPI",VLOOKUP(C94,'Sinapi _Serv'!A:D,3,0),IF(cpu!A94="INS. SINAPI",VLOOKUP(cpu!C94,Sinapi_insumos!A:D,3,0),"")) -> CHP | F94: 0.00056 | G94: =IF(A94="COMP. SINAPI",VLOOKUP(C94,'Sinapi _Serv'!A:D,4,0),IF(cpu!A94="INS. SINAPI",VLOOKUP(cpu!C94,Sinapi_insumos!A:D,4,0),"")) -> 257.21 | H94: =ROUND(F94*G94,2) -> 0.14
A95: COMP. SINAPI | B95: SINAPI | C95: 88316 | D95: =IF(A95="COMP. SINAPI",VLOOKUP(C95,'Sinapi _Serv'!A:D,2,0),IF(cpu!A95="INS. SINAPI",VLOOKUP(cpu!C95,Sinapi_insumos!A:D,2,0),"")) -> SERVENTE COM ENCARGOS COMPLEMENTARES | E95: =IF(A95="COMP. SINAPI",VLOOKUP(C95,'Sinapi _Serv'!A:D,3,0),IF(cpu!A95="INS. SINAPI",VLOOKUP(cpu!C95,Sinapi_insumos!A:D,3,0),"")) -> H | F95: 0.003 | G95: =IF(A95="COMP. SINAPI",VLOOKUP(C95,'Sinapi _Serv'!A:D,4,0),IF(cpu!A95="INS. SINAPI",VLOOKUP(cpu!C95,Sinapi_insumos!A:D,4,0),"")) -> 21.28 | H95: =ROUND(F95*G95,2) -> 0.06
E96: Sub total: | H96: =SUM(H94:H95) -> 0.2
E97: =$H$8 -> 0.2269 | H97: =ROUND(H96*E97,2) -> 0.05
E98: =A92 -> CPU-09 | F98: PREÇO UNITÁRIO TOTAL: | H98: =H96+H97 -> 0.25
A100: CPU-10 | B100: CODEVASF | C100: 1.11 | D100: ESCAVAÇÃO, CARGA E TRANSPORTE DE MATERIAL DE 1ª CATEGORIA, CAMINHO DE SERVIÇO LEITO NATURAL, COM ESCAVADEIRA HIDRÁULICA E CAMINHÃO BASCULANTE 10 M³, DMT DE 50 ATE 200 M. | E100: M³ | F100: COEF. | G100: PRECO UNITÁRIO (R$) | H100: TOTAL (R$)
A102: COMP. SINAPI | B102: SINAPI | C102: 88907 | D102: =IF(A102="COMP. SINAPI",VLOOKUP(C102,'Sinapi _Serv'!A:D,2,0),IF(cpu!A102="INS. SINAPI",VLOOKUP(cpu!C102,Sinapi_insumos!A:D,2,0),"")) -> ESCAVADEIRA HIDRÁULICA SOBRE ESTEIRAS, CAÇAMBA 1,20 M3, PESO OPERACIONAL 21 T, POTÊNCIA BRUTA 155 HP - CHP DIURNO. AF_06/2014 | E102: =IF(A102="COMP. SINAPI",VLOOKUP(C102,'Sinapi _Serv'!A:D,3,0),IF(cpu!A102="INS. SINAPI",VLOOKUP(cpu!C102,Sinapi_insumos!A:D,3,0),"")) -> CHP | F102: 0.0160472 | G102: =IF(A102="COMP. SINAPI",VLOOKUP(C102,'Sinapi _Serv'!A:D,4,0),IF(cpu!A102="INS. SINAPI",VLOOKUP(cpu!C102,Sinapi_insumos!A:D,4,0),"")) -> 263.21 | H102: =ROUND(F102*G102,2) -> 4.22
A103: COMP. SINAPI | B103: SINAPI | C103: 5811 | D103: =IF(A103="COMP. SINAPI",VLOOKUP(C103,'Sinapi _Serv'!A:D,2,0),IF(cpu!A103="INS. SINAPI",VLOOKUP(cpu!C103,Sinapi_insumos!A:D,2,0),"")) -> CAMINHÃO BASCULANTE 6 M3, PESO BRUTO TOTAL 16.000 KG, CARGA ÚTIL MÁXIMA 13.071 KG, DISTÂNCIA ENTRE EIXOS 4,80 M, POTÊNCIA 230 CV INCLUSIVE CAÇAMBA METÁLICA - CHP DIURNO. AF_06/2014 | E103: =IF(A103="COMP. SINAPI",VLOOKUP(C103,'Sinapi _Serv'!A:D,3,0),IF(cpu!A103="INS. SINAPI",VLOOKUP(cpu!C103,Sinapi_insumos!A:D,3,0),"")) -> CHP | F103: 0.00866664 | G103: =IF(A103="COMP. SINAPI",VLOOKUP(C103,'Sinapi _Serv'!A:D,4,0),IF(cpu!A103="INS. SINAPI",VLOOKUP(cpu!C103,Sinapi_insumos!A:D,4,0),"")) -> 209.8 | H103: =ROUND(F103*G103,2) -> 1.82
A104: COMP. SINAPI | B104: SINAPI | C104: 88316 | D104: =IF(A104="COMP. SINAPI",VLOOKUP(C104,'Sinapi _Serv'!A:D,2,0),IF(cpu!A104="INS. SINAPI",VLOOKUP(cpu!C104,Sinapi_insumos!A:D,2,0),"")) -> SERVENTE COM ENCARGOS COMPLEMENTARES | E104: =IF(A104="COMP. SINAPI",VLOOKUP(C104,'Sinapi _Serv'!A:D,3,0),IF(cpu!A104="INS. SINAPI",VLOOKUP(cpu!C104,Sinapi_insumos!A:D,3,0),"")) -> H | F104: 0.0024 | G104: =IF(A104="COMP. SINAPI",VLOOKUP(C104,'Sinapi _Serv'!A:D,4,0),IF(cpu!A104="INS. SINAPI",VLOOKUP(cpu!C104,Sinapi_insumos!A:D,4,0),"")) -> 21.28 | H104: =ROUND(F104*G104,2) -> 0.05
E105: Sub total: | H105: =SUM(H102:H104) -> 6.09
E106: =$H$8 -> 0.2269 | H106: =ROUND(H105*E106,2) -> 1.38
E107: =A100 -> CPU-10 | F107: PREÇO UNITÁRIO TOTAL: | H107: =H105+H106 -> 7.47
A109: CPU-11 | B109: SINAPI | C109: 1.12 | D109: ESPALHAMENTO DE MATERIAL DE 1A CATEGORIA COM TRATOR DE ESTEIRA COM 153HP | E109: M³ | F109: COEF. | G109: PRECO UNITÁRIO (R$) | H109: TOTAL (R$)
A111: COMP. SINAPI | B111: SINAPI | C111: 5851 | D111: =IF(A111="COMP. SINAPI",VLOOKUP(C111,'Sinapi _Serv'!A:D,2,0),IF(cpu!A111="INS. SINAPI",VLOOKUP(cpu!C111,Sinapi_insumos!A:D,2,0),"")) -> TRATOR DE ESTEIRAS, POTÊNCIA 150 HP, PESO OPERACIONAL 16,7 T, COM RODA MOTRIZ ELEVADA E LÂMINA 3,18 M3 - CHP DIURNO. AF_06/2014 | E111: =IF(A111="COMP. SINAPI",VLOOKUP(C111,'Sinapi _Serv'!A:D,3,0),IF(cpu!A111="INS. SINAPI",VLOOKUP(cpu!C111,Sinapi_insumos!A:D,3,0),"")) -> CHP | F111: 0.003 | G111: =IF(A111="COMP. SINAPI",VLOOKUP(C111,'Sinapi _Serv'!A:D,4,0),IF(cpu!A111="INS. SINAPI",VLOOKUP(cpu!C111,Sinapi_insumos!A:D,4,0),"")) -> 257.21 | H111: =ROUND(F111*G111,2) -> 0.77
A112: COMP. SINAPI | B112: SINAPI | C112: 5853 | D112: =IF(A112="COMP. SINAPI",VLOOKUP(C112,'Sinapi _Serv'!A:D,2,0),IF(cpu!A112="INS. SINAPI",VLOOKUP(cpu!C112,Sinapi_insumos!A:D,2,0),"")) -> TRATOR DE ESTEIRAS, POTÊNCIA 150 HP, PESO OPERACIONAL 16,7 T, COM RODA MOTRIZ ELEVADA E LÂMINA 3,18 M3 - CHI DIURNO. AF_06/2014 | E112: =IF(A112="COMP. SINAPI",VLOOKUP(C112,'Sinapi _Serv'!A:D,3,0),IF(cpu!A112="INS. SINAPI",VLOOKUP(cpu!C112,Sinapi_insumos!A:D,3,0),"")) -> CHI | F112: 0.006 | G112: =IF(A112="COMP. SINAPI",VLOOKUP(C112,'Sinapi _Serv'!A:D,4,0),IF(cpu!A112="INS. SINAPI",VLOOKUP(cpu!C112,Sinapi_insumos!A:D,4,0),"")) -> 89.71 | H112: =ROUND(F112*G112,2)-0.01 -> 0.53
A113: COMP. SINAPI | B113: SINAPI | C113: 88316 | D113: =IF(A113="COMP. SINAPI",VLOOKUP(C113,'Sinapi _Serv'!A:D,2,0),IF(cpu!A113="INS. SINAPI",VLOOKUP(cpu!C113,Sinapi_insumos!A:D,2,0),"")) -> SERVENTE COM ENCARGOS COMPLEMENTARES | E113: =IF(A113="COMP. SINAPI",VLOOKUP(C113,'Sinapi _Serv'!A:D,3,0),IF(cpu!A113="INS. SINAPI",VLOOKUP(cpu!C113,Sinapi_insumos!A:D,3,0),"")) -> H | F113: 0.009 | G113: =IF(A113="COMP. SINAPI",VLOOKUP(C113,'Sinapi _Serv'!A:D,4,0),IF(cpu!A113="INS. SINAPI",VLOOKUP(cpu!C113,Sinapi_insumos!A:D,4,0),"")) -> 21.28 | H113: =ROUND(F113*G113,2) -> 0.19
E114: Sub total: | H114: =SUM(H111:H113) -> 1.49
E115: =$H$8 -> 0.2269 | H115: =ROUND(H114*E115,2) -> 0.34
E116: =A109 -> CPU-11 | F116: PREÇO UNITÁRIO TOTAL: | H116: =H114+H115 -> 1.83

Sheet Mob e Desmob
A7: MEMÓRIA DE CÁLCULO DOS MOMENTOS DE TRANSPORTE PARA MOBILIZAÇÃO E DESMOBILIZAÇÃO - LOTE I
H10: SINAPI SETEMBRO/2023, ORSE SETEMBRO/2023 e SICRO JULHO/2023
A11: Deslocamento:
C12: Distancia méd. (Km) | D12: Qtde. | E12: Total (Km)
A13: Mobilização intra-municipal (entre os trechos de serviço): | C13: 0.75 | D13: ='Localidades I'!B11 -> 0 | E13: =C13*D13 -> 0
A14: Desmobilização intra-municipal (entre os trechos de serviço): | C14: 0.75 | D14: =D13 -> 0 | E14: =C14*D14 -> 0
A15: Mobilização inter-municipal (entre municipios): | C15: 10 | D15: 58 | E15: =C15*D15 -> 580
A16: Desmobilização inter-municipal (entre municipios): | C16: 10 | D16: 18 | E16: =C16*D16 -> 180
A17: Mobilização - Total (km) | E17: =SUM(E13:E16) -> 760
A18: Desmobilização - Total (km) | E18: =E17 -> 760
A21: Peso das máquinas:
E22: Escavadeira Hidraulica (155HP) | H22: 21 | I22: ton
E23: Trator de esteiras | H23: 16.7 | I23: ton
E24: Caminhão Basculanate | H24: 0 | I24: ton
E27: Total | H27: =SUM(H22:H24) -> 37.7 | I27: ton
A29: Portanto: | B29: Portanto
A30: Mobilização - Total (km) | E30: =H27*E17 -> 28652 | F30: t x km
A31: Desmobilização - Total (km) | E31: =H27*E18 -> 28652 | F31: t x km
A35: MEMÓRIA DE CÁLCULO DOS MOMENTOS DE TRANSPORTE PARA MOBILIZAÇÃO E DESMOBILIZAÇÃO
A39: Deslocamento:
C40: Distancia méd. (Km) | D40: Qtde. | E40: Total (Km)
A41: Mobilização intra-municipal (entre os trechos de serviço): | C41: 1 | D41: =Localidades!B11-D43 -> 177 | E41: =C41*D41 -> 177
A42: Desmobilização intra-municipal (entre os trechos de serviço): | C42: 1 | D42: 0 | E42: =C42*D42 -> 0
A43: Mobilização inter-municipal (entre municipios): | C43: 15 | D43: 73 | E43: =C43*D43 -> 1095
A44: Desmobilização inter-municipal (entre municipios): | C44: 400 | D44: 1 | E44: =C44*D44 -> 400
A45: Mobilização - Total (km) | E45: =E41+E43 -> 1272
A46: Desmobilização - Total (km) | E46: =E44 -> 400
A49: Peso das máquinas:
E50: Escavadeira Hidraulica (155HP) | H50: 21 | I50: ton
E51: Trator de esteiras | H51: 16.7 | I51: ton
E52: Caminhão Basculanate | H52: 0 | I52: ton
E55: Total | H55: =SUM(H50:H52) -> 37.7 | I55: ton
A57: Portanto:
A58: Mobilização - Total (km) | E58: =H55*E45 -> 47954.4 | F58: t x km
A59: Desmobilização - Total (km) | E59: =H55*E46 -> 15080 | F59: t x km

Sheet VEICULO
C1: C.P.U. AUX. 01
B2: CODEVASF
B4: (B11) Hilux CD SR 3.0 diesel 4x4 163cv
B6: A | C6: Depreciação mensal do equipamento
B7: A1 | C7: Preço de Aquisição | D7: 121012
B8: A2 | C8: Tempo previsto de vida útil (meses) | D8: 48
B9: A3 | C9: Previsão de recup. Na venda do bem usado | D9: 0.4
B10: A4 | C10: Custo mensal [A1-(A3xA1)]/A2 | D10: =(D7-(D9*D7))/D8 -> 1512.65
B12: B | C12: Juros pelo Capital empregado
B13: B1 | C13: Taxa mensal de Juros | D13: 0.05
B14: B2 | C14: Juros s/depreciação/aluguel (B1xA4) | D14: =D13*D10 -> 75.63
B16: C | C16: Conservação e manutenção
B17: C1 | C17: Taxa de gastos s/a deprec. Inc. seguros (%) | D17: 1
B18: C2 | C18: Incidência mensal (C1xA4) | D18: =D17*D10 -> 1512.65
B20: D | C20: Combustível
B21: D1 | C21: Média mensal de quilômetro por veículo | D21: 3000
B22: 4221 | C22: Preço do litro de combustível | D22: =Insumos!E31 -> 6.29
B23: D3 | C23: Quilômetros rodados com um litro combustivel | D23: 10
B24: D4 | C24: Combustivel (D1/D3)*D2 | D24: =(D21/D23)*D22 -> 1887
B26: E | C26: Lubrificantes
B27: E1 | C27: Quilometragem do Contrato | D27: =D21*12 -> 36000
B28: E2 | C28: Franquia por troca de óleo (km) | D28: 5000
B29: E3 | C29: Preço do litro de óleo | D29: =Insumos!E43 -> 29.33
B30: E4 | C30: Quantidade de litros de óleo por troca | D30: 3.5
B31: E5 | C31: Quantidade de dias do Contrato | D31: 365
B32: E6 | C32: Lubrificantes E = (E1*E3*E4*30)/E2*E5 | D32: =(D27*D29*D30*30)/(D28*D31) -> 60.75
B34: F | C34: Pneus
B35: F1 | C35: Quilometragem do Contrato | D35: =D21*12 -> 36000
B36: F2 | C36: Vida do Pneu em quilômetros | D36: 45000
B37: F3 | C37: Quantidade de pneus | D37: 5
B38: F4 | C38: Preço do Pneu | D38: 557.35
B39: F5 | C39: Quantidade de dias do contrato | D39: =D31 -> 365
B40: F6 | C40: Pneus = (F1*F3*F4*30)/(F2*F5) | D40: =(D35*D37*D38*30)/(D36*D39) -> 183.24
B42: G | C42: Motorista
B43: G1 | C43: Salário com encargos sociais | D43: 0
B45: H | C45: Custo Mensal
C46: Sem Motorista | D46: =D10+D14+D18+D24+D32+D40 -> 5231.92
C47: Com Motorista | D47: =D10+D14+D18+D24+D32+D40+D43 -> 5231.92
B49: I | C49: Custo Direto p/ km Rodado
C50: Sem Motorista | D50: =D46/D21 -> 1.74
C51: Com Motorista | D51: 0
B53: J | C53: Preço cobrado pela empresa
B54: J1 | C54: Sem Motorista c/ BDI | D54: =D46*(1+BDI!E30) -> 6419.04
B55: J2

Sheet Localidades I (hidden)
G3: Afogados | H3: 1
G4: Arcoverde | H4: 2
B6: Obra: SERVIÇOS DE LIMPEZA, MANUTENÇÃO E DESASSOREAMENTO DE AGUADAS EM COMUNIDADES RURAIS, NA ÁREA DE ATUAÇÃO DA CODEVASF PERNAMBUCO. LOTE I: nas microrregiões, Brejo Pernambucano, Mata Meridional Pernambucana, Suape, Vitória do Santo Antão, Médio Capibaribe, Garanhuns, Mata Setentrional Pernambucana, municípios de Caruaru, Riacho das Almas, Bezerros, Gravatá e São Caitano pertencentes ao Vale do Itapojuca. | G6: Belém | H6: 3
B7: RELAÇÃO DAS LOCALIDADES | G7: Bodocó | H7: 4
B8: Volume Total Estimado (m³): | C8: =C9+C12+C15+C18+C21+C24+C27 -> 0 | F8: =C9/1800 -> 0 | G8: Carnaíba | H8: 5
B9: Comunidades rurais dos municípios do estado de Pernambuco, CODEVASF Pernambuco. | C9: =C11*B11 -> 0 | E9: =C9*7 -> 0 | G9: Exu | H9: 6
B10: Número de Comunidades | C10: Volume por comunidade (m³) | G10: Floresta | H10: 7
B11: 0 | C11: 1400 | F11: 1156.5 | G11: Granito | H11: 8
G12: Itapetim | H12: 9
G13: Mirandiba | H13: 10
G14: Ouricuri | H14: 11
G15: Parnamirim | H15: 12
G16: Petrolândia | H16: 13
G17: Petrolina | H17: 14
G18: Salgueiro | H18: 15
G19: Sta. Maria | H19: 16
G20: Serrita | H20: 17
G21: Tabira | H21: 18
G22: Trindade | H22: 19
G23: Verdejante | H23: 20
I26: =I27/175 -> 0

Sheet Localidades
B6: Obra: SERVIÇOS DE LIMPEZA, MANUTENÇÃO E DESASSOREAMENTO DE AGUADAS EM COMUNIDADES RURAIS, NA ÁREA DE ATUAÇÃO DA CODEVASF PERNAMBUCO
B7: RELAÇÃO DAS LOCALIDADES
B8: Volume Total Estimado (m³): | C8: =C9+C12+C15+C18+C21+C24+C27 -> 425000
B9: Comunidades rurais dos municípios do estado de Pernambuco, 3ª SR CODEVASF Pernambuco. | C9: =C11*B11 -> 425000 | E9: ª
B10: Número de Comunidades | C10: Volume por comunidade (m³)
B11: 250 | C11: 1700
F26: =F27/175 -> 0

Sheet BDI
B6: DETALHAMENTO DO BDI - SERVIÇOS
B7: SEM DESONERAÇÃO
B8: Item | C8: Descrição dos serviços | D8: Preço de Venda (%) | E8: Custo Direto (%)
B10: 1 | C10: Administração Central (A) | E10: 0.045
B12: 2 | C12: Impostos e Taxas (I) | D12: =SUM(D13:D16) -> 0.0665
B13: 2.1 | C13: ISS | D13: 0.03
B14: 2.2 | C14: PIS | D14: 0.0065
B15: 2.3 | C15: Cofins | D15: 0.03
B16: 2.4 | C16: CPRB | D16: 0
B18: 3 | C18: Risco, seguro e garantia (R) | E18: =SUM(E19:E20) -> 0.0149
B19: 3.1 | C19: Risco | E19: 0.01
B20: 3.2 | C20: Seguro + Garantia | E20: 0.0049
B22: 4 | C22: Despesas Financeiras (DF) | E22: 0.0099
B24: 5 | C24: Lucro (L) | E24: 0.07
C26: BDI* (%) | E26: =((((1+E10+E18)*(1+E22)*(1+E24))/(1-D12)))-1 -> 0.2269 | I26: =I27/175 -> 0
C30: BDI (%) - ADOTADO | E30: =E26 -> 0.2269
B32: AC = | C32: taxa de rateio da Administração Central | E32: =E10 -> 0.045
B33: I = | C33: taxa de tributos | E33: =D12 -> 0.0665
B34: R = | C34: taxa de risco, seguro e garantia | E34: =E18 -> 0.0149
B35: DF = | C35: taxa das despesas financeiras | E35: =E22 -> 0.0099
B36: L = | C36: taxa de lucro | E36: =E24 -> 0.07

Sheet Encargos Sociais
A1: DETALHAMENTO DOS ENCARGOS SOCIAIS
A3: DISCRIMINAÇÃO | F3: COM DESONERAÇÃO | H3: SEM DESONERAÇÃO
F4: HORISTA | G4: MESALISTA | H4: HORISTA | I4: MESALISTA
A5: A | B5: GRUPO A
A6: A1 | B6: INSS | F6: 0 | G6: 0 | H6: 0.2 | I6: 0.2
A7: A2 | B7: Sesi | F7: 0.015 | G7: 0.015 | H7: 0.015 | I7: 0.015
A8: A3 | B8: Senai | F8: 0.01 | G8: 0.01 | H8: 0.01 | I8: 0.01
A9: A4 | B9: Incra | F9: 0.002 | G9: 0.002 | H9: 0.002 | I9: 0.002
A10: A5 | B10: Sebrae | F10: 0.006 | G10: 0.006 | H10: 0.006 | I10: 0.006
A11: A6 | B11: Salário Educação | F11: 0.025 | G11: 0.025 | H11: 0.025 | I11: 0.025
A12: A7 | B12: Seguro Contra Acidente de Trabalho | F12: 0.03 | G12: 0.03 | H12: 0.03 | I12: 0.03
A13: A8 | B13: FGTS | F13: 0.08 | G13: 0.08 | H13: 0.08 | I13: 0.08
A14: A9 | B14: Seconci | F14: 0 | G14: 0,00% | H14: 0 | I14: 0
A15: SUBTOTAL DE "A" | F15: =SUM(F6:F14) -> 0.168 | G15: 0.168 | H15: =ROUND(SUM(H6:H14),4) -> 0.368 | I15: 0.368
A17: B | B17: GRUPO B
A18: B1 | B18: Repouso Semanal Remunerado | F18: 0.1806 | G18: NÃO INCIDE | H18: 0.1806 | I18: NÃO INCIDE
A19: B2 | B19: Feriados | F19: 0.0433 | G19: NÃO INCIDE | H19: 0.0433 | I19: NÃO INCIDE
A20: B3 | B20: Auxílio - Enfermidade | F20: 0.0087 | G20: 0.0066 | H20: 0.0087 | I20: 0.0066
A21: B4 | B21: 13º Salário | F21: 0.1103 | G21: 0.0833 | H21: 0.1103 | I21: 0.0833
A22: B5 | B22: Licença Paternidade | F22: 0.0007 | G22: 0.0005 | H22: 0.0007 | I22: 0.0005
A23: B6 | B23: Faltas Justificadas | F23: 0.0074 | G23: 0.0056 | H23: 0.0074 | I23: 0.0056
A24: B7 | B24: Dias de Chuvas | F24: 0.0223 | G24: NÃO INCIDE | H24: 0.0223 | I24: NÃO INCIDE
A25: B8 | B25: Auxílio Acidente de Trabalho | F25: 0.0011 | G25: 0.0008 | H25: 0.0011 | I25: 0.0008
A26: B9 | B26: Férias Gozadas | F26: 0.1046 | G26: 0.079 | H26: 0.1046 | I26: 0.079
A27: B10 | B27: Salário Maternidade | F27: 0.0004 | G27: 0.0003 | H27: 0.0004 | I27: 0.0003
A28: SUBTOTAL DE "B" | F28: =ROUND(SUM(F18:F27),4) -> 0.4794 | G28: =SUM(G19:G27) -> 0.1761 | H28: =ROUND(SUM(H18:H27),4) -> 0.4794 | I28: =SUM(I19:I27) -> 0.1761
A30: C | B30: GRUPO C
A31: C1 | B31: Aviso Prévio Indenizado | F31: 0.048 | G31: 0.0363 | H31: 0.048 | I31: 0.0363
A32: C2 | B32: Aviso Prévio Trabalhado | F32: 0.0011 | G32: 0.0009 | H32: 0.0011 | I32: 0.0009
A33: C3 | B33: Férias Indenizadas | F33: 0.0349 | G33: 0.0264 | H33: 0.0349 | I33: 0.0264
A34: C4 | B34: Depósito Recisão Sem Justa Causa | F34: 0.0295 | G34: 0.0223 | H34: 0.0295 | I34: 0.0223
A35: C5 | B35: Indenização Adicional | F35: 0.004 | G35: 0.0031 | H35: 0.004 | I35: 0.0031
A36: SUBTOTAL DE "C" | F36: =ROUND(SUM(F31:F35),4) -> 0.1175 | G36: =SUM(G31:G35) -> 0.089 | H36: =ROUND(SUM(H31:H35),4) -> 0.1175 | I36: =SUM(I31:I35) -> 0.089
A38: D | B38: GRUPO D
A39: D1 | B39: Reincidência de Grupo A sobre Grupo B | F39: 0.0805 | G39: 0.0296 | H39: 0.1764 | I39: 0.0648
A40: D2 | B40: Reincidência de Grupo A sobre Aviso Prévio Trabalhado e Reincidência do FGTS sobre Aviso Prévio Indenizado | F40: 0.004 | G40: 0.0031 | H40: 0.0042 | I40: 0.0032
A41: SUBTOTAL DE "D" | F41: =ROUND(SUM(F39:F40),4) -> 0.0845 | G41: =SUM(G39:G40) -> 0.0327 | H41: =ROUND(SUM(H39:H40),4) -> 0.1806 | I41: =SUM(I39:I40) -> 0.068
A43: TOTAIS DE ENCARGOS SOCIAIS | F43: =F15+F28+F36+F41 -> 0.8494 | G43: 0.4658 | H43: 1.1455 | I43: 0.7011

Sheet Insumos
A4: RELAÇÃO DE INSUMOS
A6: FONTE | B6: COD | C6: DESCRIÇÃO | D6: unid. | E6: PRECO UNITÁRIO (R$)
C7: MAO DE OBRA
A8: SINAPI | B8: 88316 | C8: SERVENTE COM ENCARGOS COMPLEMENTARES | D8: =VLOOKUP(B8,'Sinapi _Serv'!A:D,3,0) -> H | E8: =VLOOKUP(B8,'Sinapi _Serv'!A:D,4,0) -> 21.28
A9: SINAPI | B9: 88262 | C9: CARPINTEIRO DE FORMAS COM ENCARGOS COMPLEMENTARES | D9: =VLOOKUP(B9,'Sinapi _Serv'!A:D,3,0) -> H | E9: =VLOOKUP(B9,'Sinapi _Serv'!A:D,4,0) -> 26.13
A10: SINAPI | B10: 88377 | C10: OPERADOR DE BETONEIRA ESTACIONÁRIA/MISTURADOR COM ENCARGOS COMPLEMENTARES | D10: =VLOOKUP(B10,'Sinapi _Serv'!A:D,3,0) -> H | E10: =VLOOKUP(B10,'Sinapi _Serv'!A:D,4,0) -> 28.14
A11: SINAPI | B11: 90776 | C11: ENCARREGADO GERAL COM ENCARGOS COMPLEMENTARES | D11: =VLOOKUP(B11,'Sinapi _Serv'!A:D,3,0) -> H | E11: =VLOOKUP(B11,'Sinapi _Serv'!A:D,4,0) -> 38.89
A12: SINAPI | B12: 90781 | C12: TOPOGRAFO COM ENCARGOS COMPLEMENTARES | D12: =VLOOKUP(B12,'Sinapi _Serv'!A:D,3,0) -> H | E12: =VLOOKUP(B12,'Sinapi _Serv'!A:D,4,0) -> 29.9
A13: SINAPI | B13: 88253 | C13: AUXILIAR DE TOPÓGRAFO COM ENCARGOS COMPLEMENTARES | D13: =VLOOKUP(B13,'Sinapi _Serv'!A:D,3,0) -> H | E13: =VLOOKUP(B13,'Sinapi _Serv'!A:D,4,0) -> 14.48
A14: SINAPI | B14: 90772 | C14: AUXILIAR DE ESCRITORIO COM ENCARGOS COMPLEMENTARES | D14: =VLOOKUP(B14,'Sinapi _Serv'!A:D,3,0) -> H | E14: =VLOOKUP(B14,'Sinapi _Serv'!A:D,4,0) -> 17.95
A15: SINAPI | B15: 88309 | C15: PEDREIRO COM ENCARGOS COMPLEMENTARES | D15: =VLOOKUP(B15,'Sinapi _Serv'!A:D,3,0) -> H | E15: =VLOOKUP(B15,'Sinapi _Serv'!A:D,4,0) -> 26.51
C16: INSUMOS
A17: SINAPI | B17: 5075 | C17: PREGO DE ACO POLIDO COM CABECA 18 X 30 (2 3/4 X 10) | D17: =VLOOKUP(B17,Sinapi_insumos!A:D,3,0) -> KG | E17: =VLOOKUP(B17,Sinapi_insumos!A:D,4,0) -> 18.31
A18: SINAPI | B18: 10775 | C18: Locacao de container 2,30 x 6,00 m, alt. 2,50 m, com 1 sanitario, para escritorio, completo, sem divisorias internas | D18: =VLOOKUP(B18,Sinapi_insumos!A:D,3,0) -> MES | E18: =VLOOKUP(B18,Sinapi_insumos!A:D,4,0) -> 890
A19: SINAPI | B19: 5824 | C19: CAMINHÃO TOCO, PBT 16.000 KG, CARGA ÚTIL MÁX. 10.685 KG, DIST. ENTRE EIXOS 4,8 M, POTÊNCIA 189 CV, INCLUSIVE CARROCERIA FIXA ABERTA DE MADEIRA P/ TRANSPORTE GERAL DE CARGA SECA, DIMEN. APROX. 2,5 X 7,00 X 0,50 M - CHP DIURNO. AF_06/2014 | D19: H | E19: =VLOOKUP(B19,'Sinapi _Serv'!A:D,4,0) -> 222.94
A20: SINAPI | B20: 4417 | C20: SARRAFO DE MADEIRA NAO APARELHADA *2,5 X 7* CM, MACARANDUBA, ANGELIM OU EQUIVALENTE DA REGIAO | D20: =VLOOKUP(B20,Sinapi_insumos!A:D,3,0) -> M | E20: =VLOOKUP(B20,Sinapi_insumos!A:D,4,0) -> 8.43
A21: SINAPI | B21: 4491 | C21: PECA DE MADEIRA NATIVA / REGIONAL 7,5 X 7,5CM (3X3) NAO APARELHADA (P/FORMA) | D21: =VLOOKUP(B21,Sinapi_insumos!A:D,3,0) -> M | E21: =VLOOKUP(B21,Sinapi_insumos!A:D,4,0) -> 10.58
A22: ORSE | B22: 578 | C22: Chapa de aço galvanizado nº 22 - e=0,7mm | D22: =VLOOKUP(B22,Orse_insumos!A:D,3,0) -> m2 | E22: =VLOOKUP(B22,Orse_insumos!A:D,4,0) -> 96.15
A23: SINAPI | B23: 370 | C23: AREIA MEDIA - POSTO JAZIDA/FORNECEDOR (RETIRADO NA JAZIDA, SEM TRANSPORTE) | D23: =VLOOKUP(B23,Sinapi_insumos!A:D,3,0) -> M3 | E23: =VLOOKUP(B23,Sinapi_insumos!A:D,4,0) -> 130
A24: SINAPI | B24: 1379 | C24: CIMENTO PORTLAND COMPOSTO CP II-32 | D24: =VLOOKUP(B24,Sinapi_insumos!A:D,3,0) -> KG | E24: =VLOOKUP(B24,Sinapi_insumos!A:D,4,0) -> 0.7
A25: SINAPI | B25: 4721 | C25: PEDRA BRITADA N. 1 (9,5 a 19 MM) POSTO PEDREIRA/FORNECEDOR, SEM FRETE | D25: =VLOOKUP(B25,Sinapi_insumos!A:D,3,0) -> M3 | E25: =VLOOKUP(B25,Sinapi_insumos!A:D,4,0) -> 104.48
A26: SINAPI | B26: 88830 | C26: BETONEIRA CAPACIDADE NOMINAL DE 400 L, CAPACIDADE DE MISTURA 280 L, MOTOR ELÉTRICO TRIFÁSICO POTÊNCIA DE 2 CV, SEM CARREGADOR - CHP DIURNO. AF_10/2014 | D26: =VLOOKUP(B26,'Sinapi _Serv'!A:D,3,0) -> CHP | E26: =VLOOKUP(B26,'Sinapi _Serv'!A:D,4,0) -> 1.99
A27: SINAPI | B27: 14250 | C27: ENERGIA | D27: =VLOOKUP(B27,Sinapi_insumos!A:D,3,0) -> KWH | E27: =VLOOKUP(B27,Sinapi_insumos!A:D,4,0) -> 0.97
A28: ORSE | B28: 8978 | C28: ÁGUA | D28: =VLOOKUP(B28,Orse_insumos!A:D,3,0) -> m3 | E28: =VLOOKUP(B28,Orse_insumos!A:D,4,0) -> 3.77
A29: ORSE | B29: 6573 | C29: Instrumental de topografia | D29: =VLOOKUP(B29,Orse_insumos!A:D,3,0) -> mês | E29: =VLOOKUP(B29,Orse_insumos!A:D,4,0) -> 1180.59
A30: COTAÇÃO | C30: ALOJAMENTO DE EQUIPE | D30: MÊS | E30: 600
A31: SINAPI | B31: 4221 | C31: OLEO DIESEL COMBUSTIVEL COMUM | D31: =VLOOKUP(B31,Sinapi_insumos!A:D,3,0) -> L | E31: =VLOOKUP(B31,Sinapi_insumos!A:D,4,0) -> 6.29
B32: Tabela TJPE 2023 | C32: REGISTRO DE QUAISQUER ATOS SEM CONTEÚDO FINANCEIRO (PACTO ANTENUPCIAL, CITAÇÕES DE AÇÕES REAIS OU PESSOAIS REIPERSECUTÓRIAS, RELATIVAS A IMÓVEIS, ETC.) | D32: unid. | E32: 207.39
A33: SINAPI | B33: 89035 | C33: TRATOR DE PNEUS, POTÊNCIA 85 CV, TRAÇÃO 4X4, PESO COM LASTRO DE 4.675 KG - CHP DIURNO. AF_06/2014 | D33: =VLOOKUP(B33,'Sinapi _Serv'!A:D,3,0) -> CHP | E33: =VLOOKUP(B33,'Sinapi _Serv'!A:D,4,0) -> 137.87
A34: SINAPI | B34: 5921 | C34: GRADE DE DISCO REBOCÁVEL COM 20 DISCOS 24" X 6 MM COM PNEUS PARA TRANSPORTE - CHP DIURNO. AF_06/2014 | D34: =VLOOKUP(B34,'Sinapi _Serv'!A:D,3,0) -> CHP | E34: =VLOOKUP(B34,'Sinapi _Serv'!A:D,4,0) -> 5.47
A35: SINAPI | B35: 5851 | C35: TRATOR DE ESTEIRAS, POTÊNCIA 150 HP, PESO OPERACIONAL 16,7 T, COM RODA MOTRIZ ELEVADA E LÂMINA 3,18 M3 - CHP DIURNO. AF_06/2014 | D35: =VLOOKUP(B35,'Sinapi _Serv'!A:D,3,0) -> CHP | E35: =VLOOKUP(B35,'Sinapi _Serv'!A:D,4,0) -> 257.21
A36: SINAPI | B36: 88907 | C36: ESCAVADEIRA HIDRÁULICA SOBRE ESTEIRAS, CAÇAMBA 1,20 M3, PESO OPERACIONAL 21 T, POTÊNCIA BRUTA 155 HP - CHP DIURNO. AF_06/2014 | D36: =VLOOKUP(B36,'Sinapi _Serv'!A:D,3,0) -> CHP | E36: =VLOOKUP(B36,'Sinapi _Serv'!A:D,4,0) -> 263.21
A37: SINAPI | B37: 5811 | C37: CAMINHÃO BASCULANTE 6 M3, PESO BRUTO TOTAL 16.000 KG, CARGA ÚTIL MÁXIMA 13.071 KG, DISTÂNCIA ENTRE EIXOS 4,80 M, POTÊNCIA 230 CV INCLUSIVE CAÇAMBA METÁLICA - CHP DIURNO. AF_06/2014 | D37: =VLOOKUP(B37,'Sinapi _Serv'!A:D,3,0) -> CHP | E37: =VLOOKUP(B37,'Sinapi _Serv'!A:D,4,0) -> 209.8
A38: SINAPI | B38: 5853 | C38: TRATOR DE ESTEIRAS, POTÊNCIA 150 HP, PESO OPERACIONAL 16,7 T, COM RODA MOTRIZ ELEVADA E LÂMINA 3,18 M3 - CHI DIURNO. AF_06/2014 | D38: =VLOOKUP(B38,'Sinapi _Serv'!A:D,3,0) -> CHI | E38: =VLOOKUP(B38,'Sinapi _Serv'!A:D,4,0) -> 89.71
A39: SINAPI | B39: 5932 | C39: MOTONIVELADORA POTÊNCIA BÁSICA LÍQUIDA (PRIMEIRA MARCHA) 125 HP, PESO BRUTO 13032 KG, LARGURA DA LÂMINA DE 3,7 M - CHP DIURNO. AF_06/2014 | D39: =VLOOKUP(B39,'Sinapi _Serv'!A:D,3,0) -> CHP | E39: =VLOOKUP(B39,'Sinapi _Serv'!A:D,4,0) -> 285.9
A40: SINAPI | B40: 7049 | C40: ROLO COMPACTADOR PE DE CARNEIRO VIBRATORIO, POTENCIA 125 HP, PESO OPERACIONAL SEM/COM LASTRO 11,95 / 13,30 T, IMPACTO DINAMICO 38,5 / 22,5 T, LARGURA DE TRABALHO 2,15 M - CHP DIURNO. AF_06/2014 | D40: =VLOOKUP(B40,'Sinapi _Serv'!A:D,3,0) -> CHP | E40: =VLOOKUP(B40,'Sinapi _Serv'!A:D,4,0) -> 241.02
A41: SINAPI | B41: 6259 | C41: CAMINHÃO PIPA 6.000 L, PESO BRUTO TOTAL 13.000 KG, DISTÂNCIA ENTRE EIXOS 4,80 M, POTÊNCIA 189 CV INCLUSIVE TANQUE DE AÇO PARA TRANSPORTE DE ÁGUA, CAPACIDADE 6 M3 - CHP DIURNO. AF_06/2014 | D41: =VLOOKUP(B41,'Sinapi _Serv'!A:D,3,0) -> CHP | E41: =VLOOKUP(B41,'Sinapi _Serv'!A:D,4,0) -> 264.1
A42: ORSE | B42: 5896 | C42: Veículo tipo sedan ou pick-up capacidade 0,6 ton - s/ motorista | D42: =VLOOKUP(B42,Orse_insumos!A:D,3,0) -> h | E42: =VLOOKUP(B42,Orse_insumos!A:D,4,0) -> 8.33
A43: SINAPI | B43: 4227 | C43: OLEO LUBRIFICANTE PARA MOTORES DE EQUIPAMENTOS PESADOS (CAMINHOES, TRATORES, RETROS E ETC) | D43: =VLOOKUP(B43,Sinapi_insumos!A:D,3,0) -> L | E43: =VLOOKUP(B43,Sinapi_insumos!A:D,4,0) -> 29.33

Sheet Sinapi_insumos
A1: PRECOS DE INSUMOS
A3: MES DE COLETA: 09/2023
A4: LOCALIDADE: 1250 - RECIFE
A5: ENCARGOS SOCIAIS (%) HORISTA 114,55 MENSALISTA 70,11
A7: CODIGO | B7: DESCRICAO DO INSUMO | C7: UNIDADE | D7: PRECO MEDIANO R$
A8: 38605 | B8: ABERTURA PARA ENCAIXE DE CUBA OU LAVATORIO EM BANCADA DE MARMORE/ GRANITO OU OUTRO TIPO DE PEDRA NATURAL | C8: UN | D8: 159.92
A9: 11270 | B9: ABRACADEIRA DE LATAO PARA FIXACAO DE CABO PARA-RAIO, DIMENSOES 32 X 24 X 24 MM | C9: UN | D9: 3.4
A10: 412 | B10: ABRACADEIRA DE NYLON PARA AMARRACAO DE CABOS, COMPRIMENTO DE *230* X *7,6* MM | C10: UN | D10: 1.13
A11: 414 | B11: ABRACADEIRA DE NYLON PARA AMARRACAO DE CABOS, COMPRIMENTO DE 100 X 2,5 MM | C11: UN | D11: 0.07
A12: 410 | B12: ABRACADEIRA DE NYLON PARA AMARRACAO DE CABOS, COMPRIMENTO DE 150 X *3,6* MM | C12: UN | D12: 0.17
A13: 411 | B13: ABRACADEIRA DE NYLON PARA AMARRACAO DE CABOS, COMPRIMENTO DE 200 X *4,6* MM | C13: UN | D13: 0.22
A14: 408 | B14: ABRACADEIRA DE NYLON PARA AMARRACAO DE CABOS, COMPRIMENTO DE 390 X *4,6* MM | C14: UN | D14: 1.09
A15: 39131 | B15: ABRACADEIRA EM ACO PARA AMARRACAO DE ELETRODUTOS, TIPO D, COM 1 1/2" E CUNHA DE FIXACAO | C15: UN | D15: 5.1
A16: 394 | B16: ABRACADEIRA EM ACO PARA AMARRACAO DE ELETRODUTOS, TIPO D, COM 1 1/2" E PARAFUSO DE FIXACAO | C16: UN | D16: 5.17
A17: 39130 | B17: ABRACADEIRA EM ACO PARA AMARRACAO DE ELETRODUTOS, TIPO D, COM 1 1/4" E CUNHA DE FIXACAO | C17: UN | D17: 4.65
A18: 395 | B18: ABRACADEIRA EM ACO PARA AMARRACAO DE ELETRODUTOS, TIPO D, COM 1 1/4" E PARAFUSO DE FIXACAO | C18: UN | D18: 4.97
A19: 39127 | B19: ABRACADEIRA EM ACO PARA AMARRACAO DE ELETRODUTOS, TIPO D, COM 1/2" E CUNHA DE FIXACAO | C19: UN | D19: 2.45
A20: 392 | B20: ABRACADEIRA EM ACO PARA AMARRACAO DE ELETRODUTOS, TIPO D, COM 1/2" E PARAFUSO DE FIXACAO | C20: UN | D20: 2.52
A21: 39129 | B21: ABRACADEIRA EM ACO PARA AMARRACAO DE ELETRODUTOS, TIPO D, COM 1" E CUNHA DE FIXACAO | C21: UN | D21: 2.87
A22: 393 | B22: ABRACADEIRA EM ACO PARA AMARRACAO DE ELETRODUTOS, TIPO D, COM 1" E PARAFUSO DE FIXACAO | C22: UN | D22: 3
A23: 39133 | B23: ABRACADEIRA EM ACO PARA AMARRACAO DE ELETRODUTOS, TIPO D, COM 2 1/2" E CUNHA DE FIXACAO | C23: UN | D23: 6.7
A24: 397 | B24: ABRACADEIRA EM ACO PARA AMARRACAO DE ELETRODUTOS, TIPO D, COM 2 1/2" E PARAFUSO DE FIXACAO | C24: UN | D24: 7.4
A25: 39132 | B25: ABRACADEIRA EM ACO PARA AMARRACAO DE ELETRODUTOS, TIPO D, COM 2" E CUNHA DE FIXACAO | C25: UN | D25: 5.36
A26: 396 | B26: ABRACADEIRA EM ACO PARA AMARRACAO DE ELETRODUTOS, TIPO D, COM 2" E PARAFUSO DE FIXACAO | C26: UN | D26: 5.74
A27: 39135 | B27: ABRACADEIRA EM ACO PARA AMARRACAO DE ELETRODUTOS, TIPO D, COM 3 1/2" E CUNHA DE FIXACAO | C27: UN | D27: 10.72
A28: 39128 | B28: ABRACADEIRA EM ACO PARA AMARRACAO DE ELETRODUTOS, TIPO D, COM 3/4" E CUNHA DE FIXACAO | C28: UN | D28: 2.68
A29: 400 | B29: ABRACADEIRA EM ACO PARA AMARRACAO DE ELETRODUTOS, TIPO D, COM 3/4" E PARAFUSO DE FIXACAO | C29: UN | D29: 2.61
A30: 39125 | B30: ABRACADEIRA EM ACO PARA AMARRACAO DE ELETRODUTOS, TIPO D, COM 3/8" E PARAFUSO DE FIXACAO | C30: UN | D30: 2.68
A31: 39134 | B31: ABRACADEIRA EM ACO PARA AMARRACAO DE ELETRODUTOS, TIPO D, COM 3" E CUNHA DE FIXACAO | C31: UN | D31: 8.93
A32: 398 | B32: ABRACADEIRA EM ACO PARA AMARRACAO DE ELETRODUTOS, TIPO D, COM 3" E PARAFUSO DE FIXACAO | C32: UN | D32: 8.23
A33: 39126 | B33: ABRACADEIRA EM ACO PARA AMARRACAO DE ELETRODUTOS, TIPO D, COM 4" E CUNHA DE FIXACAO | C33: UN | D33: 12.06
A34: 399 | B34: ABRACADEIRA EM ACO PARA AMARRACAO DE ELETRODUTOS, TIPO D, COM 4" E PARAFUSO DE FIXACAO | C34: UN | D34: 10.62
A35: 39158 | B35: ABRACADEIRA EM ACO PARA AMARRACAO DE ELETRODUTOS, TIPO ECONOMICA (GOTA), COM 8" | C35: UN | D35: 28.53
A36: 39141 | B36: ABRACADEIRA EM ACO PARA AMARRACAO DE ELETRODUTOS, TIPO U SIMPLES, COM 1 1/2" | C36: UN | D36: 2.07
A37: 39140 | B37: ABRACADEIRA EM ACO PARA AMARRACAO DE ELETRODUTOS, TIPO U SIMPLES, COM 1 1/4" | C37: UN | D37: 1.88
A38: 39137 | B38: ABRACADEIRA EM ACO PARA AMARRACAO DE ELETRODUTOS, TIPO U SIMPLES, COM 1/2" | C38: UN | D38: 1.08
A39: 39139 | B39: ABRACADEIRA EM ACO PARA AMARRACAO DE ELETRODUTOS, TIPO U SIMPLES, COM 1" | C39: UN | D39: 1.56
A40: 39143 | B40: ABRACADEIRA EM ACO PARA AMARRACAO DE ELETRODUTOS, TIPO U SIMPLES, COM 2 1/2" | C40: UN | D40: 4.27
A41: 39142 | B41: ABRACADEIRA EM ACO PARA AMARRACAO DE ELETRODUTOS, TIPO U SIMPLES, COM 2" | C41: UN | D41: 3.06
A42: 39138 | B42: ABRACADEIRA EM ACO PARA AMARRACAO DE ELETRODUTOS, TIPO U SIMPLES, COM 3/4" | C42: UN | D42: 1.14
A43: 39136 | B43: ABRACADEIRA EM ACO PARA AMARRACAO DE ELETRODUTOS, TIPO U SIMPLES, COM 3/8" | C43: UN | D43: 0.76
A44: 39144 | B44: ABRACADEIRA EM ACO PARA AMARRACAO DE ELETRODUTOS, TIPO U SIMPLES, COM 3" | C44: UN | D44: 4.97
A45: 39145 | B45: ABRACADEIRA EM ACO PARA AMARRACAO DE ELETRODUTOS, TIPO U SIMPLES, COM 4" | C45: UN | D45: 8.2
A46: 12615 | B46: ABRACADEIRA PVC, PARA CALHA PLUVIAL, DIAMETRO ENTRE *80 E 100* MM, PARA DRENAGEM PLUVIAL PREDIAL | C46: UN | D46: 13.85
A47: 11927 | B47: ABRACADEIRA, GALVANIZADA/ZINCADA, ROSCA SEM FIM, PARAFUSO INOX, LARGURA FITA *12,6 A *14 MM, D = 2" A 2 1/2" | C47: UN | D47: 10.17
A48: 11928 | B48: ABRACADEIRA, GALVANIZADA/ZINCADA, ROSCA SEM FIM, PARAFUSO INOX, LARGURA FITA *12,6 A *14 MM, D = 3" A 3 3/4" | C48: UN | D48: 11.65
A49: 11929 | B49: ABRACADEIRA, GALVANIZADA/ZINCADA, ROSCA SEM FIM, PARAFUSO INOX, LARGURA FITA *12,6 A *14 MM, D = 4" A 4 3/4" | C49: UN | D49: 18.02
A50: 36801 | B50: ACABAMENTO DE METAL CROMADO PARA REGISTRO PEQUENO, DE PAREDE, 1/2 " OU 3/4 " | C50: UN | D50: 31.63
A51: 36246 | B51: ACABAMENTO SIMPLES/CONVENCIONAL PARA FORRO PVC, TIPO "U" OU "C", COR BRANCA, COMPRIMENTO 6 M | C51: M | D51: 4.26
A52: 37600 | B52: ACESSORIO DE LIGACAO NAO ELETRICO PARA CARGAS EXPLOSIVAS, TUBO DE 6 M | C52: UN | D52: 104.86
A53: 37599 | B53: ACESSORIO INICIADOR NAO ELETRICO, TUBO DE 6 M, TEMPO DE RETARDO DE *160* MS | C53: UN | D53: 97.6
A54: 1 | B54: ACETILENO (RECARGA DE GAS ACETILENO PARA CILINDRO DE CONJUNTO OXICORTE GRANDE) NAO INCLUI TROCA/MANUTENCAO DO CILINDRO | C54: KG | D54: 72.65
A55: 3 | B55: ACIDO CLORIDRICO / ACIDO MURIATICO, DILUICAO 10% A 12% PARA USO EM LIMPEZA | C55: L | D55: 23.45
A56: 43054 | B56: ACO CA-25, 10,0 MM, OU 12,5 MM, OU 16,0 MM, OU 20,0 MM, OU 25,0 MM, VERGALHAO | C56: KG | D56: 10.57
A57: 42402 | B57: ACO CA-25, 16,0 MM, BARRA DE TRANSFERENCIA | C57: KG | D57: 10.1
A58: 42403 | B58: ACO CA-25, 20,0 MM, BARRA DE TRANSFERENCIA | C58: KG | D58: 12.96
A59: 42404 | B59: ACO CA-25, 25,0 MM, BARRA DE TRANSFERENCIA | C59: KG | D59: 12.88
A60: 42405 | B60: ACO CA-25, 32,0 MM, BARRA DE TRANSFERENCIA | C60: KG | D60: 13.72
A61: 34341 | B61: ACO CA-25, 32,0 MM, VERGALHAO | C61: KG | D61: 11.91
A62: 43053 | B62: ACO CA-25, 6,3 MM OU 8,0 MM, VERGALHAO | C62: KG | D62: 9.44
A63: 43058 | B63: ACO CA-50, 10,0 MM, OU 12,5 MM, OU 16,0 MM, OU 20,0 MM, DOBRADO E CORTADO | C63: KG | D63: 9.79
A64: 34 | B64: ACO CA-50, 10,0 MM, VERGALHAO | C64: KG | D64: 9.84
A65: 43055 | B65: ACO CA-50, 12,5 MM OU 16,0 MM, VERGALHAO | C65: KG | D65: 8.52
A66: 43056 | B66: ACO CA-50, 20,0 MM OU 25,0 MM, VERGALHAO | C66: KG | D66: 9.82
A67: 43057 | B67: ACO CA-50, 32,0 MM, VERGALHAO | C67: KG | D67: 10.79
A68: 34449 | B68: ACO CA-50, 6,3 MM, DOBRADO E CORTADO | C68: KG | D68: 11.54
A69: 32 | B69: ACO CA-50, 6,3 MM, VERGALHAO | C69: KG | D69: 10.38
A70: 33 | B70: ACO CA-50, 8,0 MM, VERGALHAO | C70: KG | D70: 10.43
A71: 43061 | B71: ACO CA-60, 4,2 MM OU 5,0 MM, DOBRADO E CORTADO | C71: KG | D71: 9.75
A72: 43059 | B72: ACO CA-60, 4,2 MM, OU 5,0 MM, OU 6,0 MM, OU 7,0 MM, VERGALHAO | C72: KG | D72: 9.31
A73: 43062 | B73: ACO CA-60, 6,0 MM OU 7,0 MM, DOBRADO E CORTADO | C73: KG | D73: 10.31
A74: 43060 | B74: ACO CA-60, 8,0 MM OU 9,5 MM, VERGALHAO | C74: KG | D74: 8.11
A75: 40410 | B75: ACOPLAMENTO RIGIDO EM FERRO FUNDIDO PARA SISTEMA DE TUBULACAO RANHURADA, DN 50 MM (2") | C75: UN | D75: 23.71
A76: 40411 | B76: ACOPLAMENTO RIGIDO EM FERRO FUNDIDO PARA SISTEMA DE TUBULACAO RANHURADA, DN 65 MM (2 1/2") | C76: UN | D76: 25.73
A77: 40412 | B77: ACOPLAMENTO RIGIDO EM FERRO FUNDIDO PARA SISTEMA DE TUBULACAO RANHURADA, DN 80 MM (3") | C77: UN | D77: 28.88
A78: 44254 | B78: ADAPTADOR CPVC, ROSCAVEL, COM FLANGES E ANEL DE VEDACAO, 15 MM, CAIXA D'AGUA PARA AGUA QUENTE | C78: UN | D78: 26.51
A79: 44255 | B79: ADAPTADOR CPVC, ROSCAVEL, COM FLANGES E ANEL DE VEDACAO, 22 MM, CAIXA D'AGUA PARA AGUA QUENTE | C79: UN | D79: 29.38
A80: 44256 | B80: ADAPTADOR CPVC, ROSCAVEL, COM FLANGES E ANEL DE VEDACAO, 28 MM, CAIXA D'AGUA PARA AGUA QUENTE | C80: UN | D80: 33.19
A81: 44257 | B81: ADAPTADOR CPVC, ROSCAVEL, COM FLANGES E ANEL DE VEDACAO, 35 MM, CAIXA D'AGUA PARA AGUA QUENTE | C81: UN | D81: 52.5
A82: 44258 | B82: ADAPTADOR CPVC, ROSCAVEL, COM FLANGES E ANEL DE VEDACAO, 42 MM, CAIXA D'AGUA PARA AGUA QUENTE | C82: UN | D82: 60
A83: 44259 | B83: ADAPTADOR CPVC, ROSCAVEL, COM FLANGES E ANEL DE VEDACAO, 54 MM, CAIXA D'AGUA PARA AGUA QUENTE | C83: UN | D83: 82.36
A84: 37997 | B84: ADAPTADOR CPVC, SOLDAVEL, 15 MM, PARA AGUA QUENTE | C84: UN | D84: 15.8
A85: 37998 | B85: ADAPTADOR CPVC, SOLDAVEL, 22 MM, PARA AGUA QUENTE | C85: UN | D85: 21.14
A86: 55 | B86: ADAPTADOR DE COMPRESSAO EM POLIPROPILENO (PP), PARA TUBO EM PEAD, 20 MM X 1/2", PARA LIGACAO PREDIAL DE AGUA (NTS 179) | C86: UN | D86: 3.87
A87: 61 | B87: ADAPTADOR DE COMPRESSAO EM POLIPROPILENO (PP), PARA TUBO EM PEAD, 20 MM X 3/4", PARA LIGACAO PREDIAL DE AGUA (NTS 179) | C87: UN | D87: 3.66
A88: 62 | B88: ADAPTADOR DE COMPRESSAO EM POLIPROPILENO (PP), PARA TUBO EM PEAD, 32 MM X 1", PARA LIGACAO PREDIAL DE AGUA (NTS 179) | C88: UN | D88: 7.58
A89: 10899 | B89: ADAPTADOR EM LATAO, ENGATE RAPIDO 2 1/2" X ROSCA INTERNA 5 FIOS 2 1/2", PARA INSTALACAO PREDIAL DE COMBATE A INCENDIO | C89: UN | D89: 109.52
A90: 10900 | B90: ADAPTADOR EM LATAO, ENGATE RAPIDO1 1/2" X ROSCA INTERNA 5 FIOS 2 1/2", PARA INSTALACAO PREDIAL DE COMBATE A INCENDIO | C90: UN | D90: 85.71
A91: 103 | B91: ADAPTADOR PVC SOLDAVEL CURTO COM BOLSA E ROSCA, 110 MM X 4", PARA AGUA FRIA | C91: UN | D91: 47.7
A92: 107 | B92: ADAPTADOR PVC SOLDAVEL CURTO COM BOLSA E ROSCA, 20 MM X 1/2", PARA AGUA FRIA | C92: UN | D92: 0.9
A93: 65 | B93: ADAPTADOR PVC SOLDAVEL CURTO COM BOLSA E ROSCA, 25 MM X 3/4", PARA AGUA FRIA | C93: UN | D93: 0.98
A94: 108 | B94: ADAPTADOR PVC SOLDAVEL CURTO COM BOLSA E ROSCA, 32 MM X 1", PARA AGUA FRIA | C94: UN | D94: 1.98
A95: 110 | B95: ADAPTADOR PVC SOLDAVEL CURTO COM BOLSA E ROSCA, 40 MM X 1 1/2", PARA AGUA FRIA | C95: UN | D95: 6.86
A96: 109 | B96: ADAPTADOR PVC SOLDAVEL CURTO COM BOLSA E ROSCA, 40 MM X 1 1/4", PARA AGUA FRIA | C96: UN | D96: 4.09
A97: 111 | B97: ADAPTADOR PVC SOLDAVEL CURTO COM BOLSA E ROSCA, 50 MM X 1 1/4", PARA AGUA FRIA | C97: UN | D97: 9.28
A98: 112 | B98: ADAPTADOR PVC SOLDAVEL CURTO COM BOLSA E ROSCA, 50 MM X1 1/2", PARA AGUA FRIA | C98: UN | D98: 4.92
A99: 113 | B99: ADAPTADOR PVC SOLDAVEL CURTO COM BOLSA E ROSCA, 60 MM X 2", PARA AGUA FRIA | C99: UN | D99: 12.32
A100: 104 | B100: ADAPTADOR PVC SOLDAVEL CURTO COM BOLSA E ROSCA, 75 MM X 2 1/2", PARA AGUA FRIA | C100: UN | D100: 21.44
A101: 102 | B101: ADAPTADOR PVC SOLDAVEL CURTO COM BOLSA E ROSCA, 85 MM X 3", PARA AGUA FRIA | C101: UN | D101: 29.56
A102: 95 | B102: ADAPTADOR PVC SOLDAVEL, COM FLANGE E ANEL DE VEDACAO, 20 MM X 1/2", PARA CAIXA D'AGUA | C102: UN | D102: 12.49
A103: 96 | B103: ADAPTADOR PVC SOLDAVEL, COM FLANGE E ANEL DE VEDACAO, 25 MM X 3/4", PARA CAIXA D'AGUA | C103: UN | D103: 13.59
A104: 97 | B104: ADAPTADOR PVC SOLDAVEL, COM FLANGE E ANEL DE VEDACAO, 32 MM X 1", PARA CAIXA D'AGUA | C104: UN | D104: 20.44
A105: 98 | B105: ADAPTADOR PVC SOLDAVEL, COM FLANGE E ANEL DE VEDACAO, 40 MM X 1 1/4", PARA CAIXA D'AGUA | C105: UN | D105: 30.6
A106: 99 | B106: ADAPTADOR PVC SOLDAVEL, COM FLANGE E ANEL DE VEDACAO, 50 MM X 1 1/2", PARA CAIXA D'AGUA | C106: UN | D106: 28.92
A107: 100 | B107: ADAPTADOR PVC SOLDAVEL, COM FLANGES E ANEL DE VEDACAO, 60 MM X 2", PARA CAIXA D' AGUA | C107: UN | D107: 50.53
A108: 75 | B108: ADAPTADOR PVC SOLDAVEL, COM FLANGES LIVRES, 110 MM X 4", PARA CAIXA D' AGUA | C108: UN | D108: 294.59
A109: 83 | B109: ADAPTADOR PVC SOLDAVEL, COM FLANGES LIVRES, 75 MM X 2 1/2", PARA CAIXA D' AGUA | C109: UN | D109: 235.51
A110: 74 | B110: ADAPTADOR PVC SOLDAVEL, COM FLANGES LIVRES, 85 MM X 3", PARA CAIXA D' AGUA | C110: UN | D110: 336.72
A111: 106 | B111: ADAPTADOR PVC SOLDAVEL, LONGO, COM FLANGE LIVRE, 110 MM X 4", PARA CAIXA D' AGUA | C111: UN | D111: 425.79
A112: 88 | B112: ADAPTADOR PVC SOLDAVEL, LONGO, COM FLANGE LIVRE, 32 MM X 1", PARA CAIXA D' AGUA | C112: UN | D112: 11.97
A113: 82 | B113: ADAPTADOR PVC SOLDAVEL, LONGO, COM FLANGE LIVRE, 75 MM X 2 1/2", PARA CAIXA D' AGUA | C113: UN | D113: 224.07
A114: 105 | B114: ADAPTADOR PVC SOLDAVEL, LONGO, COM FLANGE LIVRE, 85 MM X 3", PARA CAIXA D' AGUA | C114: UN | D114: 317.51
A115: 60 | B115: ADAPTADOR PVC, COM REGISTRO, PARA PEAD, 20 MM X 3/4", PARA LIGACAO PREDIAL DE AGUA | C115: UN | D115: 5.02
A116: 72 | B116: ADAPTADOR PVC, ROSCAVEL, COM FLANGES E ANEL DE VEDACAO, 1 1/2", PARA CAIXA D'AGUA | C116: UN | D116: 55.46
A117: 67 | B117: ADAPTADOR PVC, ROSCAVEL, COM FLANGES E ANEL DE VEDACAO, 1/2", PARA CAIXA D' AGUA | C117: UN | D117: 17.93
A118: 71 | B118: ADAPTADOR PVC, ROSCAVEL, COM FLANGES E ANEL DE VEDACAO, 1", PARA CAIXA D' AGUA | C118: UN | D118: 34.25
A119: 73 | B119: ADAPTADOR PVC, ROSCAVEL, COM FLANGES E ANEL DE VEDACAO, 3/4", PARA CAIXA D' AGUA | C119: UN | D119: 17.16
A120: 46 | B120: ADAPTADOR, PVC PBA, BOLSA/ROSCA, JE, DN 75 / DE 85 MM | C120: UN | D120: 38.06
A121: 47 | B121: ADAPTADOR, PVC PBA, BOLSA/ROSCA, JE, DN 100 / DE 110 MM | C121: UN | D121: 65.07
A122: 48 | B122: ADAPTADOR, PVC PBA, BOLSA/ROSCA, JE, DN 50 / DE 60 MM | C122: UN | D122: 16.97
A123: 52 | B123: ADAPTADOR, PVC PBA, PONTA/ROSCA, JE, DN 50 / DE 60 MM | C123: UN | D123: 12.89
A124: 43 | B124: ADAPTADOR, PVC PBA, PONTA/ROSCA, JE, DN 75 / DE 85 MM | C124: UN | D124: 43.52
A125: 39719 | B125: ADESIVO / COLA DE CONTATO LIQUIDO, A BASE DE RESINAS, PARA COLAGEM DE ESPUMA PARA ISOLAMENTO TERMICO FLEXIVEL | C125: L | D125: 150.11
A126: 3410 | B126: ADESIVO / COLA PARA EPS (ISOPOR) E OUTROS MATERIAIS | C126: KG | D126: 33.76
A127: 4791 | B127: ADESIVO ACRILICO DE BASE AQUOSA / COLA DE CONTATO | C127: KG | D127: 42.99
A128: 157 | B128: ADESIVO ESTRUTURAL A BASE DE RESINA EPOXI PARA INJECAO EM TRINCAS, BICOMPONENTE, BAIXA VISCOSIDADE | C128: KG | D128: 157.36
A129: 156 | B129: ADESIVO ESTRUTURAL A BASE DE RESINA EPOXI, BICOMPONENTE, FLUIDO | C129: KG | D129: 56.03
A130: 131 | B130: ADESIVO ESTRUTURAL A BASE DE RESINA EPOXI, BICOMPONENTE, PASTOSO (TIXOTROPICO) | C130: KG | D130: 47.92
A131: 21114 | B131: ADESIVO PARA TUBOS CPVC, *75* G | C131: UN | D131: 29.59
A132: 119 | B132: ADESIVO PLASTICO PARA PVC, BISNAGA COM 75 GR | C132: UN | D132: 7.5
A133: 122 | B133: ADESIVO PLASTICO PARA PVC, FRASCO COM *850* GR | C133: UN | D133: 57.7
A134: 20080 | B134: ADESIVO PLASTICO PARA PVC, FRASCO COM 175 GR | C134: UN | D134: 18.83
A135: 124 | B135: ADITIVO ACELERADOR DE PEGA E ENDURECIMENTO PARA ARGAMASSAS E CONCRETOS, LIQUIDO E ISENTO DE CLORETOS | C135: L | D135: 18.48
A136: 7334 | B136: ADITIVO ADESIVO LIQUIDO PARA ARGAMASSAS DE REVESTIMENTOS CIMENTICIOS | C136: L | D136: 16.08
A137: 123 | B137: ADITIVO IMPERMEABILIZANTE DE PEGA NORMAL PARA ARGAMASSAS E CONCRETOS SEM ARMACAO, LIQUIDO E ISENTO DE CLORETOS | C137: L | D137: 7.56
A138: 127 | B138: ADITIVO IMPERMEABILIZANTE DE PEGA ULTRARRAPIDA, LIQUIDO E ISENTO DE CLORETOS | C138: L | D138: 18.05
A139: 41373 | B139: ADITIVO LIQUIDO IMPERMEABILIZANTE CRISTALIZANTE | C139: L | D139: 25.15
A140: 133 | B140: ADITIVO LIQUIDO INCORPORADOR DE AR PARA CONCRETO E ARGAMASSA, LIQUIDO E ISENTO DE CLORETOS | C140: L | D140: 7.49
A141: 43617 | B141: ADITIVO PLASTIFICANTE E ESTABILIZADOR PARA ARGAMASSAS DE ASSENTAMENTO E REBOCO, LIQUIDO E ISENTO DE CLORETOS | C141: L | D141: 8.37
A142: 132 | B142: ADITIVO PLASTIFICANTE RETARDADOR DE PEGA E REDUTOR DE AGUA PARA CONCRETO, LIQUIDO E ISENTO DE CLORETOS | C142: L | D142: 7.77
A143: 43618 | B143: ADITIVO SUPERPLASTIFICANTE DE PEGA NORMAL PARA CONCRETO, LIQUIDO E ISENTO DE CLORETOS | C143: KG | D143: 19.56
A144: 37476 | B144: ADUELA/ GALERIA PRE-MOLDADA DE CONCRETO ARMADO, SECAO QUADRADA INTERNA DE 1,50 X 1,50 M (L X A), MISULA DE 20 X 20 CM, C = 1,00 M, ESPESSURA MIN = 15 CM, TB-45 E FCK DO CONCRETO = 30 MPA | C144: UN | D144: 2911.76
A145: 37478 | B145: ADUELA/ GALERIA PRE-MOLDADA DE CONCRETO ARMADO, SECAO RETANGULAR INTERNA DE 2,00 X 2,00 M (L X A), MISULA DE 20 X 20 CM, C = 1,00 M, ESPESSURA MIN = 15 CM, TB-45 E FCK DO CONCRETO = 30 MPA | C145: UN | D145: 3647.05
A146: 37477 | B146: ADUELA/ GALERIA PRE-MOLDADA DE CONCRETO ARMADO, SECAO RETANGULAR INTERNA DE 2,50 X 2,50 M (L X A), MISULA DE 20 X 20 CM, C = 1,00 M, ESPESSURA MIN = 15 CM, TB-45 E FCK DO CONCRETO = 30 MPA | C146: UN | D146: 4941.17
A147: 37479 | B147: ADUELA/ GALERIA PRE-MOLDADA DE CONCRETO ARMADO, SECAO RETANGULAR INTERNA DE 3,00 X 3,00 M (L X A), MISULA DE 20 X 20 CM, C = 1.00 M, ESPESSURA MIN = 20 CM, TB-45 E FCK DO CONCRETO = 30 MPA | C147: UN | D147: 5860.29
A148: 4319 | B148: AFASTADOR PARA TELHA DE FIBROCIMENTO CANALETE 90 OU KALHETAO | C148: UN | D148: 1.44
A149: 42409 | B149: AGENTE DE CURA, PROTETOR DA EVAPORACAO DA AGUA DE HIDRATACAO DO CONCRETO | C149: KG | D149: 12.32
A150: 40553 | B150: AGREGADO RECICLADO, TIPO RACHAO RECICLADO CINZA, CLASSE A | C150: M3 | D150: 52.5
A151: 6114 | B151: AJUDANTE DE ARMADOR (HORISTA) | C151: H | D151: 15.06
A152: 40912 | B152: AJUDANTE DE ARMADOR (MENSALISTA) | C152: MES | D152: 2627.68
A153: 247 | B153: AJUDANTE DE ELETRICISTA (HORISTA) | C153: H | D153: 14.24
A154: 40919 | B154: AJUDANTE DE ELETRICISTA (MENSALISTA) | C154: MES | D154: 2487.85
A155: 40984 | B155: AJUDANTE DE ESTRUTURAS METALICAS (MENSALISTA) | C155: MES | D155: 3125.55
A156: 44499 | B156: AJUDANTE DE ESTRUTURAS METALICAS HORISTA | C156: H | D156: 17.91
A157: 248 | B157: AJUDANTE DE OPERACAO EM GERAL (HORISTA) | C157: H | D157: 17.59
A158: 41086 | B158: AJUDANTE DE OPERACAO EM GERAL (MENSALISTA) | C158: MES | D158: 3072.39
A159: 34466 | B159: AJUDANTE DE PINTOR (HORISTA) | C159: H | D159: 15.03
A160: 41083 | B160: AJUDANTE DE PINTOR (MENSALISTA) | C160: MES | D160: 2627.12
A161: 252 | B161: AJUDANTE DE SERRALHEIRO (HORISTA) | C161: H | D161: 17.59
A162: 40909 | B162: AJUDANTE DE SERRALHEIRO (MENSALISTA) | C162: MES | D162: 3072.39
A163: 242 | B163: AJUDANTE ESPECIALIZADO (HORISTA) | C163: H | D163: 17.57
A164: 41085 | B164: AJUDANTE ESPECIALIZADO (MENSALISTA) | C164: MES | D164: 3065.68
A165: 427 | B165: ALCA PREFORMADA DE CONTRA POSTE, EM ACO GALVANIZADO, PARA CABO 3/16", COMPRIMENTO *860* MM | C165: UN | D165: 6.31
A166: 417 | B166: ALCA PREFORMADA DE DISTRIBUICAO, EM ACO GALVANIZADO, PARA CABO DE ALUMINIO DIAMETRO 16 A 25 MM | C166: UN | D166: 2.97
A167: 11273 | B167: ALCA PREFORMADA DE DISTRIBUICAO, EM ACO GALVANIZADO, PARA CONDUTORES DE ALUMINIO AWG 1/0 (CAA 6/1 OU CA 7 FIOS) | C167: UN | D167: 9.22
A168: 11272 | B168: ALCA PREFORMADA DE DISTRIBUICAO, EM ACO GALVANIZADO, PARA CONDUTORES DE ALUMINIO AWG 2 (CAA 6/1 OU CA 7 FIOS) | C168: UN | D168: 5.57
A169: 11275 | B169: ALCA PREFORMADA DE SERVICO, EM ACO GALVANIZADO, PARA CONDUTORES DE ALUMINIO AWG 4 (CAA 6/1) | C169: UN | D169: 2.23
A170: 11274 | B170: ALCA PREFORMADA DE SERVICO, EM ACO GALVANIZADO, PARA CONDUTORES DE ALUMINIO AWG 6 (CAA 6/1) | C170: UN | D170: 1.7
A171: 38470 | B171: ALICATE DE CORTE DIAGONAL 6 " COM ISOLAMENTO | C171: UN | D171: 42
A172: 38547 | B172: ALICATE DE CRIMPAR RJ11, RJ12 E RJ45 | C172: UN | D172: 114.61
A173: 38469 | B173: ALICATE DE PRESSAO PARA SOLDA DE CHAPA 18 " | C173: UN | D173: 123.24
A174: 38467 | B174: ALICATE DE PRESSAO 11 " PARA SOLDA, TIPO C | C174: UN | D174: 69.34
A175: 38468 | B175: ALICATE DE PRESSAO 11 " PARA SOLDA, TIPO U | C175: UN | D175: 76.3
A176: 38471 | B176: ALICATE PARA ANEIS DE PISTAO, CAPACIDADE 50 A 100 MM | C176: UN | D176: 99.09
A177: 37370 | B177: ALIMENTACAO - HORISTA (COLETADO CAIXA - ENCARGOS COMPLEMENTARES) | C177: H | D177: 2.28
A178: 40862 | B178: ALIMENTACAO - MENSALISTA (COLETADO CAIXA - ENCARGOS COMPLEMENTARES) | C178: MES | D178: 429.36
A179: 10658 | B179: ALISADORA DE CONCRETO COM MOTOR A GASOLINA DE 5,5 HP, PESO COM MOTOR DE 78 KG, 4 PAS | C179: UN | D179: 7359
A180: 253 | B180: ALMOXARIFE (HORISTA) | C180: H | D180: 20.03
A181: 40809 | B181: ALMOXARIFE (MENSALISTA) | C181: MES | D181: 3495.42
A182: 42428 | B182: ALONGADOR COM TRES ALTURAS, EM TUBO DE ACO CARBONO, PINTURA NO PROCESSO ELETROSTATICO - EQUIPAMENTO DE GINASTICA PARA ACADEMIA AO AR LIVRE / ACADEMIA DA TERCEIRA IDADE - ATI | C182: UN | D182: 2271
A183: 301 | B183: ANEL BORRACHA PARA TUBO ESGOTO PREDIAL, DN 100 MM (NBR 5688) | C183: UN | D183: 4
A184: 296 | B184: ANEL BORRACHA PARA TUBO ESGOTO PREDIAL, DN 50 MM (NBR 5688) | C184: UN | D184: 2.26
A185: 297 | B185: ANEL BORRACHA PARA TUBO ESGOTO PREDIAL, DN 75 MM (NBR 5688) | C185: UN | D185: 3.32
A186: 299 | B186: ANEL BORRACHA, DN 100 MM, PARA TUBO SERIE REFORCADA ESGOTO PREDIAL | C186: UN | D186: 4.69
A187: 300 | B187: ANEL BORRACHA, DN 150 MM, PARA TUBO SERIE REFORCADA ESGOTO PREDIAL | C187: UN | D187: 16.24
A188: 20085 | B188: ANEL BORRACHA, DN 50 MM, PARA TUBO SERIE REFORCADA ESGOTO PREDIAL | C188: UN | D188: 2.97
A189: 298 | B189: ANEL BORRACHA, DN 75 MM, PARA TUBO SERIE REFORCADA ESGOTO PREDIAL | C189: UN | D189: 3.61
A190: 311 | B190: ANEL BORRACHA, PARA TUBO PVC DEFOFO, DN 100 MM (NBR 7665) | C190: UN | D190: 13.39
A191: 318 | B191: ANEL BORRACHA, PARA TUBO PVC DEFOFO, DN 150 MM (NBR 7665) | C191: UN | D191: 26.97
A192: 319 | B192: ANEL BORRACHA, PARA TUBO PVC DEFOFO, DN 200 MM (NBR 7665) | C192: UN | D192: 42.28
A193: 303 | B193: ANEL BORRACHA, PARA TUBO PVC, REDE COLETOR ESGOTO, DN 100 MM (NBR 7362) | C193: UN | D193: 4.43
A194: 305 | B194: ANEL BORRACHA, PARA TUBO PVC, REDE COLETOR ESGOTO, DN 150 MM (NBR 7362) | C194: UN | D194: 13.94
A195: 306 | B195: ANEL BORRACHA, PARA TUBO PVC, REDE COLETOR ESGOTO, DN 200 MM (NBR 7362) | C195: UN | D195: 21.14
A196: 307 | B196: ANEL BORRACHA, PARA TUBO PVC, REDE COLETOR ESGOTO, DN 250 MM (NBR 7362) | C196: UN | D196: 53.41
A197: 309 | B197: ANEL BORRACHA, PARA TUBO PVC, REDE COLETOR ESGOTO, DN 350 MM (NBR 7362) | C197: UN | D197: 87.49
A198: 310 | B198: ANEL BORRACHA, PARA TUBO PVC, REDE COLETOR ESGOTO, DN 400 MM (NBR 7362) | C198: UN | D198: 121.26
A199: 328 | B199: ANEL BORRACHA, PARA TUBO/CONEXAO PVC PBA, DN 100 MM, PARA REDE AGUA | C199: UN | D199: 10.6
A200: 325 | B200: ANEL BORRACHA, PARA TUBO/CONEXAO PVC PBA, DN 50 MM, PARA REDE AGUA | C200: UN | D200: 3.13
A201: 20326 | B201: ANEL BORRACHA, PARA TUBO/CONEXAO PVC PBA, DN 60 MM, PARA REDE AGUA | C201: UN | D201: 5.72
A202: 329 | B202: ANEL BORRACHA, PARA TUBO/CONEXAO PVC PBA, DN 75 MM, PARA REDE AGUA | C202: UN | D202: 8.86
... 4740 more rows

Sheet Sinapi _Serv
A1: PCI.817.01 - CUSTO DE COMPOSIÇÕES - SINTÉTICO DATA DE EMISSÃO: 16/10/2023 23:45:25 DATA DE RT: 16/10/2023
A2: ENCARGOS SOCIAIS SOBRE PREÇOS DA MÃO-DE-OBRA: 114,55%(HORA) 70,11%(MÊS)
A3: ABRANGÊNCIA : NACIONAL LOCALIDADE : RECIFE DATA DE PREÇO : 09/2023 REFERÊNCIA COLETA : MEDIANO
A5: CODIGO | B5: DESCRICAO DA COMPOSICAO | C5: UNIDADE | D5: CUSTO TOTAL
A6: 97141 | B6: ASSENTAMENTO DE TUBO DE FERRO FUNDIDO PARA REDE DE ÁGUA, DN 80 MM, JUNTA ELÁSTICA, INSTALADO EM LOCAL COM NÍVEL ALTO DE INTERFERÊNCIAS (NÃO INCLUI FORNECIMENTO). AF_11/2017 | C6: M | D6: 9.81
A7: 97142 | B7: ASSENTAMENTO DE TUBO DE FERRO FUNDIDO PARA REDE DE ÁGUA, DN 100 MM, JUNTA ELÁSTICA, INSTALADO EM LOCAL COM NÍVEL ALTO DE INTERFERÊNCIAS (NÃO INCLUI FORNECIMENTO). AF_11/2017 | C7: M | D7: 10.9
A8: 97143 | B8: ASSENTAMENTO DE TUBO DE FERRO FUNDIDO PARA REDE DE ÁGUA, DN 150 MM, JUNTA ELÁSTICA, INSTALADO EM LOCAL COM NÍVEL ALTO DE INTERFERÊNCIAS (NÃO INCLUI FORNECIMENTO). AF_11/2017 | C8: M | D8: 13.64
A9: 97144 | B9: ASSENTAMENTO DE TUBO DE FERRO FUNDIDO PARA REDE DE ÁGUA, DN 200 MM, JUNTA ELÁSTICA, INSTALADO EM LOCAL COM NÍVEL ALTO DE INTERFERÊNCIAS (NÃO INCLUI FORNECIMENTO). AF_11/2017 | C9: M | D9: 16.36
A10: 97145 | B10: ASSENTAMENTO DE TUBO DE FERRO FUNDIDO PARA REDE DE ÁGUA, DN 250 MM, JUNTA ELÁSTICA, INSTALADO EM LOCAL COM NÍVEL ALTO DE INTERFERÊNCIAS (NÃO INCLUI FORNECIMENTO). AF_11/2017 | C10: M | D10: 19.11
A11: 97146 | B11: ASSENTAMENTO DE TUBO DE FERRO FUNDIDO PARA REDE DE ÁGUA, DN 300 MM, JUNTA ELÁSTICA, INSTALADO EM LOCAL COM NÍVEL ALTO DE INTERFERÊNCIAS (NÃO INCLUI FORNECIMENTO). AF_11/2017 | C11: M | D11: 21.85
A12: 97147 | B12: ASSENTAMENTO DE TUBO DE FERRO FUNDIDO PARA REDE DE ÁGUA, DN 350 MM, JUNTA ELÁSTICA, INSTALADO EM LOCAL COM NÍVEL ALTO DE INTERFERÊNCIAS (NÃO INCLUI FORNECIMENTO). AF_11/2017 | C12: M | D12: 24.61
A13: 97148 | B13: ASSENTAMENTO DE TUBO DE FERRO FUNDIDO PARA REDE DE ÁGUA, DN 400 MM, JUNTA ELÁSTICA, INSTALADO EM LOCAL COM NÍVEL ALTO DE INTERFERÊNCIAS (NÃO INCLUI FORNECIMENTO). AF_11/2017 | C13: M | D13: 27.35
A14: 97149 | B14: ASSENTAMENTO DE TUBO DE FERRO FUNDIDO PARA REDE DE ÁGUA, DN 450 MM, JUNTA ELÁSTICA, INSTALADO EM LOCAL COM NÍVEL ALTO DE INTERFERÊNCIAS (NÃO INCLUI FORNECIMENTO). AF_11/2017 | C14: M | D14: 30.14
A15: 97150 | B15: ASSENTAMENTO DE TUBO DE FERRO FUNDIDO PARA REDE DE ÁGUA, DN 500 MM, JUNTA ELÁSTICA, INSTALADO EM LOCAL COM NÍVEL ALTO DE INTERFERÊNCIAS (NÃO INCLUI FORNECIMENTO). AF_11/2017 | C15: M | D15: 37.12
A16: 97151 | B16: ASSENTAMENTO DE TUBO DE FERRO FUNDIDO PARA REDE DE ÁGUA, DN 600 MM, JUNTA ELÁSTICA, INSTALADO EM LOCAL COM NÍVEL ALTO DE INTERFERÊNCIAS (NÃO INCLUI FORNECIMENTO). AF_11/2017 | C16: M | D16: 43.26
A17: 97152 | B17: ASSENTAMENTO DE TUBO DE FERRO FUNDIDO PARA REDE DE ÁGUA, DN 700 MM, JUNTA ELÁSTICA, INSTALADO EM LOCAL COM NÍVEL ALTO DE INTERFERÊNCIAS (NÃO INCLUI FORNECIMENTO). AF_11/2017 | C17: M | D17: 49.18
A18: 97153 | B18: ASSENTAMENTO DE TUBO DE FERRO FUNDIDO PARA REDE DE ÁGUA, DN 800 MM, JUNTA ELÁSTICA, INSTALADO EM LOCAL COM NÍVEL ALTO DE INTERFERÊNCIAS (NÃO INCLUI FORNECIMENTO). AF_11/2017 | C18: M | D18: 55.23
A19: 97154 | B19: ASSENTAMENTO DE TUBO DE FERRO FUNDIDO PARA REDE DE ÁGUA, DN 900 MM, JUNTA ELÁSTICA, INSTALADO EM LOCAL COM NÍVEL ALTO DE INTERFERÊNCIAS (NÃO INCLUI FORNECIMENTO). AF_11/2017 | C19: M | D19: 61.31
A20: 97155 | B20: ASSENTAMENTO DE TUBO DE FERRO FUNDIDO PARA REDE DE ÁGUA, DN 1000 MM, JUNTA ELÁSTICA, INSTALADO EM LOCAL COM NÍVEL ALTO DE INTERFERÊNCIAS (NÃO INCLUI FORNECIMENTO). AF_11/2017 | C20: M | D20: 67.39
A21: 97156 | B21: ASSENTAMENTO DE TUBO DE FERRO FUNDIDO PARA REDE DE ÁGUA, DN 1200 MM, JUNTA ELÁSTICA, INSTALADO EM LOCAL COM NÍVEL ALTO DE INTERFERÊNCIAS (NÃO INCLUI FORNECIMENTO). AF_11/2017 | C21: M | D21: 79.93
A22: 97157 | B22: ASSENTAMENTO DE TUBO DE FERRO FUNDIDO PARA REDE DE ÁGUA, DN 80 MM, JUNTA ELÁSTICA, INSTALADO EM LOCAL COM NÍVEL BAIXO DE INTERFERÊNCIAS (NÃO INCLUI FORNECIMENTO). AF_11/2017 | C22: M | D22: 5.88
A23: 97158 | B23: ASSENTAMENTO DE TUBO DE FERRO FUNDIDO PARA REDE DE ÁGUA, DN 100 MM, JUNTA ELÁSTICA, INSTALADO EM LOCAL COM NÍVEL BAIXO DE INTERFERÊNCIAS (NÃO INCLUI FORNECIMENTO). AF_11/2017 | C23: M | D23: 6.54
A24: 97159 | B24: ASSENTAMENTO DE TUBO DE FERRO FUNDIDO PARA REDE DE ÁGUA, DN 150 MM, JUNTA ELÁSTICA, INSTALADO EM LOCAL COM NÍVEL BAIXO DE INTERFERÊNCIAS (NÃO INCLUI FORNECIMENTO). AF_11/2017 | C24: M | D24: 8.2
A25: 97160 | B25: ASSENTAMENTO DE TUBO DE FERRO FUNDIDO PARA REDE DE ÁGUA, DN 200 MM, JUNTA ELÁSTICA, INSTALADO EM LOCAL COM NÍVEL BAIXO DE INTERFERÊNCIAS (NÃO INCLUI FORNECIMENTO). AF_11/2017 | C25: M | D25: 9.84
A26: 97161 | B26: ASSENTAMENTO DE TUBO DE FERRO FUNDIDO PARA REDE DE ÁGUA, DN 250 MM, JUNTA ELÁSTICA, INSTALADO EM LOCAL COM NÍVEL BAIXO DE INTERFERÊNCIAS (NÃO INCLUI FORNECIMENTO). AF_11/2017 | C26: M | D26: 11.53
A27: 97162 | B27: ASSENTAMENTO DE TUBO DE FERRO FUNDIDO PARA REDE DE ÁGUA, DN 300 MM, JUNTA ELÁSTICA, INSTALADO EM LOCAL COM NÍVEL BAIXO DE INTERFERÊNCIAS (NÃO INCLUI FORNECIMENTO). AF_11/2017 | C27: M | D27: 13.19
A28: 97163 | B28: ASSENTAMENTO DE TUBO DE FERRO FUNDIDO PARA REDE DE ÁGUA, DN 350 MM, JUNTA ELÁSTICA, INSTALADO EM LOCAL COM NÍVEL BAIXO DE INTERFERÊNCIAS (NÃO INCLUI FORNECIMENTO). AF_11/2017 | C28: M | D28: 14.87
A29: 97164 | B29: ASSENTAMENTO DE TUBO DE FERRO FUNDIDO PARA REDE DE ÁGUA, DN 400 MM, JUNTA ELÁSTICA, INSTALADO EM LOCAL COM NÍVEL BAIXO DE INTERFERÊNCIAS (NÃO INCLUI FORNECIMENTO). AF_11/2017 | C29: M | D29: 16.53
A30: 97165 | B30: ASSENTAMENTO DE TUBO DE FERRO FUNDIDO PARA REDE DE ÁGUA, DN 450 MM, JUNTA ELÁSTICA, INSTALADO EM LOCAL COM NÍVEL BAIXO DE INTERFERÊNCIAS (NÃO INCLUI FORNECIMENTO). AF_11/2017 | C30: M | D30: 18.23
A31: 97166 | B31: ASSENTAMENTO DE TUBO DE FERRO FUNDIDO PARA REDE DE ÁGUA, DN 500 MM, JUNTA ELÁSTICA, INSTALADO EM LOCAL COM NÍVEL BAIXO DE INTERFERÊNCIAS (NÃO INCLUI FORNECIMENTO). AF_11/2017 | C31: M | D31: 22.49
A32: 97167 | B32: ASSENTAMENTO DE TUBO DE FERRO FUNDIDO PARA REDE DE ÁGUA, DN 600 MM, JUNTA ELÁSTICA, INSTALADO EM LOCAL COM NÍVEL BAIXO DE INTERFERÊNCIAS (NÃO INCLUI FORNECIMENTO). AF_11/2017 | C32: M | D32: 26.24
A33: 97168 | B33: ASSENTAMENTO DE TUBO DE FERRO FUNDIDO PARA REDE DE ÁGUA, DN 700 MM, JUNTA ELÁSTICA, INSTALADO EM LOCAL COM NÍVEL BAIXO DE INTERFERÊNCIAS (NÃO INCLUI FORNECIMENTO). AF_11/2017 | C33: M | D33: 29.77
A34: 97169 | B34: ASSENTAMENTO DE TUBO DE FERRO FUNDIDO PARA REDE DE ÁGUA, DN 800 MM, JUNTA ELÁSTICA, INSTALADO EM LOCAL COM NÍVEL BAIXO DE INTERFERÊNCIAS (NÃO INCLUI FORNECIMENTO). AF_11/2017 | C34: M | D34: 33.43
A35: 97170 | B35: ASSENTAMENTO DE TUBO DE FERRO FUNDIDO PARA REDE DE ÁGUA, DN 900 MM, JUNTA ELÁSTICA, INSTALADO EM LOCAL COM NÍVEL BAIXO DE INTERFERÊNCIAS (NÃO INCLUI FORNECIMENTO). AF_11/2017 | C35: M | D35: 37.13
A36: 97171 | B36: ASSENTAMENTO DE TUBO DE FERRO FUNDIDO PARA REDE DE ÁGUA, DN 1000 MM, JUNTA ELÁSTICA, INSTALADO EM LOCAL COM NÍVEL BAIXO DE INTERFERÊNCIAS (NÃO INCLUI FORNECIMENTO). AF_11/2017 | C36: M | D36: 40.84
A37: 97172 | B37: ASSENTAMENTO DE TUBO DE FERRO FUNDIDO PARA REDE DE ÁGUA, DN 1200 MM, JUNTA ELÁSTICA, INSTALADO EM LOCAL COM NÍVEL BAIXO DE INTERFERÊNCIAS (NÃO INCLUI FORNECIMENTO). AF_11/2017 | C37: M | D37: 48.59
A38: 97173 | B38: ASSENTAMENTO DE TUBO DE AÇO CARBONO PARA REDE DE ÁGUA, DN 600 MM (24), JUNTA SOLDADA, INSTALADO EM LOCAL COM NÍVEL ALTO DE INTERFERÊNCIAS (NÃO INCLUI FORNECIMENTO). AF_11/2017 | C38: M | D38: 37.86
A39: 97174 | B39: ASSENTAMENTO DE TUBO DE AÇO CARBONO PARA REDE DE ÁGUA, DN 700 MM (28), JUNTA SOLDADA, INSTALADO EM LOCAL COM NÍVEL ALTO DE INTERFERÊNCIAS (NÃO INCLUI FORNECIMENTO). AF_11/2017 | C39: M | D39: 43.78
A40: 97175 | B40: ASSENTAMENTO DE TUBO DE AÇO CARBONO PARA REDE DE ÁGUA, DN 800 MM (32), JUNTA SOLDADA, INSTALADO EM LOCAL COM NÍVEL ALTO DE INTERFERÊNCIAS (NÃO INCLUI FORNECIMENTO). AF_11/2017 | C40: M | D40: 49.71
A41: 97176 | B41: ASSENTAMENTO DE TUBO DE AÇO CARBONO PARA REDE DE ÁGUA, DN 900 MM (36), JUNTA SOLDADA, INSTALADO EM LOCAL COM NÍVEL ALTO DE INTERFERÊNCIAS (NÃO INCLUI FORNECIMENTO). AF_11/2017 | C41: M | D41: 55.63
A42: 97177 | B42: ASSENTAMENTO DE TUBO DE AÇO CARBONO PARA REDE DE ÁGUA, DN 1000 MM (40) OU DN 1100 MM (44), JUNTA SOLDADA, INSTALADO EM LOCAL COM NÍVEL ALTO DE INTERFERÊNCIAS (NÃO INCLUI FORNECIMENTO). AF_11/2017 | C42: M | D42: 67.48
A43: 97178 | B43: ASSENTAMENTO DE TUBO DE AÇO CARBONO PARA REDE DE ÁGUA, DN 1200 MM (48) OU DN 1300 MM (52), JUNTA SOLDADA, INSTALADO EM LOCAL COM NÍVEL ALTO DE INTERFERÊNCIAS (NÃO INCLUI FORNECIMENTO). AF_11/2017 | C43: M | D43: 79.34
A44: 97179 | B44: ASSENTAMENTO DE TUBO DE AÇO CARBONO PARA REDE DE ÁGUA, DN 1400 MM (56'') OU DN 1500 MM (60), JUNTA SOLDADA, INSTALADO EM LOCAL COM NÍVEL ALTO DE INTERFERÊNCIAS (NÃO INCLUI FORNECIMENTO). AF_11/2017 | C44: M | D44: 91.19
A45: 97180 | B45: ASSENTAMENTO DE TUBO DE AÇO CARBONO PARA REDE DE ÁGUA, DN 1600 MM (64) OU DN 1700 MM (68), JUNTA SOLDADA, INSTALADO EM LOCAL COM NÍVEL ALTO DE INTERFERÊNCIAS (NÃO INCLUI FORNECIMENTO). AF_11/2017 | C45: M | D45: 103.05
A46: 97181 | B46: ASSENTAMENTO DE TUBO DE AÇO CARBONO PARA REDE DE ÁGUA, DN 1800 MM (72) OU DN 1900 MM (76), JUNTA SOLDADA, INSTALADO EM LOCAL COM NÍVEL ALTO DE INTERFERÊNCIAS (NÃO INCLUI FORNECIMENTO). AF_11/2017 | C46: M | D46: 119.67
A47: 97182 | B47: ASSENTAMENTO DE TUBO DE AÇO CARBONO PARA REDE DE ÁGUA, DN 2000 MM (80) OU DN 2100 MM (84), JUNTA SOLDADA, INSTALADO EM LOCAL COM NÍVEL ALTO DE INTERFERÊNCIAS (NÃO INCLUI FORNECIMENTO). AF_11/2017 | C47: M | D47: 132.04
A48: 97183 | B48: ASSENTAMENTO DE TUBO DE AÇO CARBONO PARA REDE DE ÁGUA, DN 600 MM (24), JUNTA SOLDADA, INSTALADO EM LOCAL COM NÍVEL BAIXO DE INTERFERÊNCIAS (NÃO INCLUI FORNECIMENTO). AF_11/2017 | C48: M | D48: 29.8
A49: 97184 | B49: ASSENTAMENTO DE TUBO DE AÇO CARBONO PARA REDE DE ÁGUA, DN 700 MM (28), JUNTA SOLDADA, INSTALADO EM LOCAL COM NÍVEL BAIXO DE INTERFERÊNCIAS (NÃO INCLUI FORNECIMENTO). AF_11/2017 | C49: M | D49: 34.52
A50: 97185 | B50: ASSENTAMENTO DE TUBO DE AÇO CARBONO PARA REDE DE ÁGUA, DN 800 MM (32), JUNTA SOLDADA, INSTALADO EM LOCAL COM NÍVEL BAIXO DE INTERFERÊNCIAS (NÃO INCLUI FORNECIMENTO). AF_11/2017 | C50: M | D50: 39.26
A51: 97186 | B51: ASSENTAMENTO DE TUBO DE AÇO CARBONO PARA REDE DE ÁGUA, DN 900 MM (36), JUNTA SOLDADA, INSTALADO EM LOCAL COM NÍVEL BAIXO DE INTERFERÊNCIAS (NÃO INCLUI FORNECIMENTO). AF_11/2017 | C51: M | D51: 44
A52: 97187 | B52: ASSENTAMENTO DE TUBO DE AÇO CARBONO PARA REDE DE ÁGUA, DN 1000 MM (40 ) OU DN 1100 MM (44 ), JUNTA SOLDADA, INSTALADO EM LOCAL COM NÍVEL BAIXO DE INTERFERÊNCIAS (NÃO INCLUI FORNECIMENTO). AF_11/2017 | C52: M | D52: 53.47
A53: 97188 | B53: ASSENTAMENTO DE TUBO DE AÇO CARBONO PARA REDE DE ÁGUA, DN 1200 MM (48) OU DN 1300 MM (52), JUNTA SOLDADA, INSTALADO EM LOCAL COM NÍVEL BAIXO DE INTERFERÊNCIAS (NÃO INCLUI FORNECIMENTO). AF_11/2017 | C53: M | D53: 62.94
A54: 97189 | B54: ASSENTAMENTO DE TUBO DE AÇO CARBONO PARA REDE DE ÁGUA, DN 1400 MM (56'') OU DN 1500 MM (60), JUNTA SOLDADA, INSTALADO EM LOCAL COM NÍVEL BAIXO DE INTERFERÊNCIAS (NÃO INCLUI FORNECIMENTO). AF_11/2017 | C54: M | D54: 72.4
A55: 97190 | B55: ASSENTAMENTO DE TUBO DE AÇO CARBONO PARA REDE DE ÁGUA, DN 1600 MM (64) OU DN 1700 MM (68), JUNTA SOLDADA, INSTALADO EM LOCAL COM NÍVEL BAIXO DE INTERFERÊNCIAS (NÃO INCLUI FORNECIMENTO). AF_11/2017 | C55: M | D55: 81.88
A56: 97191 | B56: ASSENTAMENTO DE TUBO DE AÇO CARBONO PARA REDE DE ÁGUA, DN 1800 MM (72) OU DN 1900 MM (76), JUNTA SOLDADA, INSTALADO EM LOCAL COM NÍVEL BAIXO DE INTERFERÊNCIAS (NÃO INCLUI FORNECIMENTO). AF_11/2017 | C56: M | D56: 94.85
A57: 97192 | B57: ASSENTAMENTO DE TUBO DE AÇO CARBONO PARA REDE DE ÁGUA, DN 2000 MM (80) OU DN 2100 MM (84), JUNTA SOLDADA, INSTALADO EM LOCAL COM NÍVEL BAIXO DE INTERFERÊNCIAS (NÃO INCLUI FORNECIMENTO). AF_11/2017 | C57: M | D57: 104.7
A58: 90694 | B58: TUBO DE PVC PARA REDE COLETORA DE ESGOTO DE PAREDE MACIÇA, DN 100 MM, JUNTA ELÁSTICA - FORNECIMENTO E ASSENTAMENTO. AF_01/2021 | C58: M | D58: 50.73
A59: 90695 | B59: TUBO DE PVC PARA REDE COLETORA DE ESGOTO DE PAREDE MACIÇA, DN 150 MM, JUNTA ELÁSTICA - FORNECIMENTO E ASSENTAMENTO. AF_01/2021 | C59: M | D59: 96.37
A60: 90696 | B60: TUBO DE PVC PARA REDE COLETORA DE ESGOTO DE PAREDE MACIÇA, DN 200 MM, JUNTA ELÁSTICA - FORNECIMENTO E ASSENTAMENTO. AF_01/2021 | C60: M | D60: 161.04
A61: 90697 | B61: TUBO DE PVC PARA REDE COLETORA DE ESGOTO DE PAREDE MACIÇA, DN 250 MM, JUNTA ELÁSTICA - FORNECIMENTO E ASSENTAMENTO. AF_01/2021 | C61: M | D61: 249.83
A62: 90698 | B62: TUBO DE PVC PARA REDE COLETORA DE ESGOTO DE PAREDE MACIÇA, DN 300 MM, JUNTA ELÁSTICA, FORNECIMENTO E ASSENTAMENTO. AF_01/2021 | C62: M | D62: 381.89
A63: 90699 | B63: TUBO DE PVC PARA REDE COLETORA DE ESGOTO DE PAREDE MACIÇA, DN 350 MM, JUNTA ELÁSTICA - FORNECIMENTO E ASSENTAMENTO. AF_01/2021 | C63: M | D63: 537.51
A64: 90700 | B64: TUBO DE PVC PARA REDE COLETORA DE ESGOTO DE PAREDE MACIÇA, DN 400 MM, JUNTA ELÁSTICA FORNECIMENTO E ASSENTAMENTO. AF_01/2021 | C64: M | D64: 627.74
A65: 90701 | B65: TUBO DE PVC CORRUGADO DE DUPLA PAREDE PARA REDE COLETORA DE ESGOTO, DN 150 MM, JUNTA ELÁSTICA - FORNECIMENTO E ASSENTAMENTO. AF_01/2021 | C65: M | D65: 76.17
A66: 90702 | B66: TUBO DE PVC CORRUGADO DE DUPLA PAREDE PARA REDE COLETORA DE ESGOTO, DN 200 MM, JUNTA ELÁSTICA - FORNECIMENTO E ASSENTAMENTO. AF_01/2021 | C66: M | D66: 126.03
A67: 90703 | B67: TUBO DE PVC CORRUGADO DE DUPLA PAREDE PARA REDE COLETORA DE ESGOTO, DN 250 MM, JUNTA ELÁSTICA - FORNECIMENTO E ASSENTAMENTO. AF_01/2021 | C67: M | D67: 198.1
A68: 90704 | B68: TUBO DE PVC CORRUGADO DE DUPLA PAREDE PARA REDE COLETORA DE ESGOTO, DN 300 MM, JUNTA ELÁSTICA - FORNECIMENTO E ASSENTAMENTO. AF_01/2021 | C68: M | D68: 295.72
A69: 90705 | B69: TUBO DE PVC CORRUGADO DE DUPLA PAREDE PARA REDE COLETORA DE ESGOTO, DN 350 MM, JUNTA ELÁSTICA - FORNECIMENTO E ASSENTAMENTO. AF_01/2021 | C69: M | D69: 384.27
A70: 90706 | B70: TUBO DE PVC CORRUGADO DE DUPLA PAREDE PARA REDE COLETORA DE ESGOTO, DN 400 MM, JUNTA ELÁSTICA - FORNECIMENTO E ASSENTAMENTO. AF_01/2021 | C70: M | D70: 509.52
A71: 90708 | B71: TUBO DE PEAD CORRUGADO DE DUPLA PAREDE PARA REDE COLETORA DE ESGOTO, DN 600 MM, JUNTA ELÁSTICA INTEGRADA - FORNECIMENTO E ASSENTAMENTO. AF_01/2021 | C71: M | D71: 1644.39
A72: 90724 | B72: JUNTA ARGAMASSADA ENTRE TUBO DN 100 MM E O POÇO DE VISITA/ CAIXA DE CONCRETO OU ALVENARIA EM REDES DE ESGOTO. AF_01/2021 | C72: UN | D72: 27.09
A73: 90725 | B73: JUNTA ARGAMASSADA ENTRE TUBO DN 150 MM E O POÇO DE VISITA/ CAIXA DE CONCRETO OU ALVENARIA EM REDES DE ESGOTO. AF_01/2021 | C73: UN | D73: 33.31
A74: 90726 | B74: JUNTA ARGAMASSADA ENTRE TUBO DN 200 MM E O POÇO/ CAIXA DE CONCRETO OU ALVENARIA EM REDES DE ESGOTO. AF_01/2021 | C74: UN | D74: 39.6
A75: 90727 | B75: JUNTA ARGAMASSADA ENTRE TUBO DN 250 MM E O POÇO DE VISITA/ CAIXA DE CONCRETO OU ALVENARIA EM REDES DE ESGOTO. AF_01/2021 | C75: UN | D75: 45.83
A76: 90728 | B76: JUNTA ARGAMASSADA ENTRE TUBO DN 300 MM E O POÇO DE VISITA/ CAIXA DE CONCRETO OU ALVENARIA EM REDES DE ESGOTO. AF_01/2021 | C76: UN | D76: 52.06
A77: 90729 | B77: JUNTA ARGAMASSADA ENTRE TUBO DN 350 MM E O POÇO DE VISITA/ CAIXA DE CONCRETO OU ALVENARIA EM REDES DE ESGOTO. AF_01/2021 | C77: UN | D77: 58.28
A78: 90730 | B78: JUNTA ARGAMASSADA ENTRE TUBO DN 400 MM E O POÇO DE VISITA/ CAIXA DE CONCRETO OU ALVENARIA EM REDES DE ESGOTO. AF_01/2021 | C78: UN | D78: 64.51
A79: 90731 | B79: JUNTA ARGAMASSADA ENTRE TUBO DN 450 MM E O POÇO DE VISITA/ CAIXA DE CONCRETO OU ALVENARIA EM REDES DE ESGOTO. AF_01/2021 | C79: UN | D79: 70.74
A80: 90732 | B80: JUNTA ARGAMASSADA ENTRE TUBO DN 600 MM E O POÇO DE VISITA/ CAIXA DE CONCRETO OU ALVENARIA EM REDES DE ESGOTO. AF_01/2021 | C80: UN | D80: 89.41
A81: 90733 | B81: ASSENTAMENTO DE TUBO DE PVC PARA REDE COLETORA DE ESGOTO DE PAREDE MACIÇA, DN 100 MM, JUNTA ELÁSTICA (NÃO INCLUI FORNECIMENTO). AF_01/2021 | C81: M | D81: 3.83
A82: 90734 | B82: ASSENTAMENTO DE TUBO DE PVC PARA REDE COLETORA DE ESGOTO DE PAREDE MACIÇA, DN 150 MM, JUNTA ELÁSTICA, (NÃO INCLUI FORNECIMENTO). AF_01/2021 | C82: M | D82: 4.53
A83: 90735 | B83: ASSENTAMENTO DE TUBO DE PVC PARA REDE COLETORA DE ESGOTO DE PAREDE MACIÇA, DN 200 MM, JUNTA ELÁSTICA (NÃO INCLUI FORNECIMENTO). AF_01/2021 | C83: M | D83: 5.24
A84: 90736 | B84: ASSENTAMENTO DE TUBO DE PVC PARA REDE COLETORA DE ESGOTO DE PAREDE MACIÇA, DN 250 MM, JUNTA ELÁSTICA (NÃO INCLUI FORNECIMENTO). AF_01/2021 | C84: M | D84: 5.94
A85: 90737 | B85: ASSENTAMENTO DE TUBO DE PVC PARA REDE COLETORA DE ESGOTO DE PAREDE MACIÇA, DN 300 MM, JUNTA ELÁSTICA (NÃO INCLUI FORNECIMENTO). AF_01/2021 | C85: M | D85: 6.66
A86: 90738 | B86: ASSENTAMENTO DE TUBO DE PVC PARA REDE COLETORA DE ESGOTO DE PAREDE MACIÇA, DN 350 MM, JUNTA ELÁSTICA (NÃO INCLUI FORNECIMENTO). AF_01/2021 | C86: M | D86: 7.36
A87: 90739 | B87: ASSENTAMENTO DE TUBO DE PVC PARA REDE COLETORA DE ESGOTO DE PAREDE MACIÇA, DN 400 MM, JUNTA ELÁSTICA (NÃO INCLUI FORNECIMENTO). AF_01/2021 | C87: M | D87: 10.33
A88: 90740 | B88: ASSENTAMENTO DE TUBO DE PVC CORRUGADO DE DUPLA PAREDE PARA REDE COLETORA DE ESGOTO, DN 150 MM, JUNTA ELÁSTICA (NÃO INCLUI FORNECIMENTO). AF_01/2021 | C88: M | D88: 5.05
A89: 90741 | B89: ASSENTAMENTO DE TUBO DE PVC CORRUGADO DE DUPLA PAREDE PARA REDE COLETORA DE ESGOTO, DN 200 MM, JUNTA ELÁSTICA (NÃO INCLUI FORNECIMENTO). AF_01/2021 | C89: M | D89: 5.75
A90: 90742 | B90: ASSENTAMENTO DE TUBO DE PVC CORRUGADO DE DUPLA PAREDE PARA REDE COLETORA DE ESGOTO, DN 250 MM, JUNTA ELÁSTICA (NÃO INCLUI FORNECIMENTO). AF_01/2021 | C90: M | D90: 6.47
A91: 90743 | B91: ASSENTAMENTO DE TUBO DE PVC CORRUGADO DE DUPLA PAREDE PARA REDE COLETORA DE ESGOTO, DN 300 MM, JUNTA ELÁSTICA (NÃO INCLUI FORNECIMENTO). AF_01/2021 | C91: M | D91: 7.18
A92: 90744 | B92: ASSENTAMENTO DE TUBO DE PVC CORRUGADO DE DUPLA PAREDE PARA REDE COLETORA DE ESGOTO, DN 350 MM, JUNTA ELÁSTICA (NÃO INCLUI FORNECIMENTO). AF_01/2021 | C92: M | D92: 7.88
A93: 90745 | B93: ASSENTAMENTO DE TUBO DE PVC CORRUGADO DE DUPLA PAREDE PARA REDE COLETORA DE ESGOTO, DN 400 MM, JUNTA ELÁSTICA (NÃO INCLUI FORNECIMENTO). AF_01/2021 | C93: M | D93: 11.53
A94: 90746 | B94: ASSENTAMENTO DE TUBO DE PEAD CORRUGADO DE DUPLA PAREDE PARA REDE COLETORA DE ESGOTO, DN 450 MM, JUNTA ELÁSTICA INTEGRADA (NÃO INCLUI FORNECIMENTO). AF_01/2021 | C94: M | D94: 4.14
A95: 90747 | B95: ASSENTAMENTO DE TUBO DE PEAD CORRUGADO DE DUPLA PAREDE PARA REDE COLETORA DE ESGOTO, DN 600 MM, JUNTA ELÁSTICA INTEGRADA (NÃO INCLUI FORNECIMENTO). AF_01/2021 | C95: M | D95: 18.56
A96: 94869 | B96: TUBO DE PEAD CORRUGADO DE DUPLA PAREDE PARA REDE COLETORA DE ESGOTO, DN 250 MM, JUNTA ELÁSTICA INTEGRADA - FORNECIMENTO E ASSENTAMENTO. AF_01/2021 | C96: M | D96: 291.31
A97: 94870 | B97: ASSENTAMENTO DE TUBO DE PEAD CORRUGADO DE DUPLA PAREDE PARA REDE COLETORA DE ESGOTO, DN 250 MM, JUNTA ELÁSTICA INTEGRADA (NÃO INCLUI FORNECIMENTO). AF_01/2021 | C97: M | D97: 1.91
A98: 94871 | B98: TUBO DE PEAD CORRUGADO DE DUPLA PAREDE PARA REDE COLETORA DE ESGOTO, DN 300 MM, JUNTA ELÁSTICA INTEGRADA - FORNECIMENTO E ASSENTAMENTO. AF_01/2021 | C98: M | D98: 456.17
A99: 94872 | B99: ASSENTAMENTO DE TUBO DE PEAD CORRUGADO DE DUPLA PAREDE PARA REDE COLETORA DE ESGOTO, DN 300 MM, JUNTA ELÁSTICA INTEGRADA (NÃO INCLUI FORNECIMENTO). AF_01/2021 | C99: M | D99: 2.76
A100: 94875 | B100: TUBO DE PEAD CORRUGADO DE DUPLA PAREDE PARA REDE COLETORA DE ESGOTO, DN 800 MM, JUNTA ELÁSTICA INTEGRADA - FORNECIMENTO E ASSENTAMENTO. AF_01/2021 | C100: M | D100: 2672.36
A101: 94876 | B101: ASSENTAMENTO DE TUBO DE PEAD CORRUGADO DE DUPLA PAREDE PARA REDE COLETORA DE ESGOTO, DN 800 MM, JUNTA ELÁSTICA INTEGRADA (NÃO INCLUI FORNECIMENTO). AF_01/2021 | C101: M | D101: 30.58
A102: 94878 | B102: ASSENTAMENTO DE TUBO DE PEAD CORRUGADO DE DUPLA PAREDE PARA REDE COLETORA DE ESGOTO, DN 900 MM, JUNTA ELÁSTICA INTEGRADA (NÃO INCLUI FORNECIMENTO). AF_01/2021 | C102: M | D102: 35.46
A103: 94879 | B103: TUBO DE PEAD CORRUGADO DE DUPLA PAREDE PARA REDE COLETORA DE ESGOTO, DN 1000 MM, JUNTA ELÁSTICA INTEGRADA - FORNECIMENTO E ASSENTAMENTO. AF_01/2021 | C103: M | D103: 4114.94
A104: 94880 | B104: ASSENTAMENTO DE TUBO DE PEAD CORRUGADO DE DUPLA PAREDE PARA REDE COLETORA DE ESGOTO, DN 1000 MM, JUNTA ELÁSTICA INTEGRADA (NÃO INCLUI FORNECIMENTO). AF_01/2021 | C104: M | D104: 45.33
A105: 94881 | B105: TUBO DE PEAD CORRUGADO DE DUPLA PAREDE PARA REDE COLETORA DE ESGOTO, DN 1200 MM, JUNTA ELÁSTICA INTEGRADA - FORNECIMENTO E ASSENTAMENTO. AF_01/2021 | C105: M | D105: 5677.3
A106: 94882 | B106: ASSENTAMENTO DE TUBO DE PEAD CORRUGADO DE DUPLA PAREDE PARA REDE COLETORA DE ESGOTO, DN 1200 MM, JUNTA ELÁSTICA INTEGRADA (NÃO INCLUI FORNECIMENTO). AF_01/2021 | C106: M | D106: 52.84
A107: 94884 | B107: ASSENTAMENTO DE TUBO DE PEAD CORRUGADO DE DUPLA PAREDE PARA REDE COLETORA DE ESGOTO, DN 1500 MM, JUNTA ELÁSTICA INTEGRADA (NÃO INCLUI FORNECIMENTO). AF_01/2021 | C107: M | D107: 68.11
A108: 97121 | B108: ASSENTAMENTO DE TUBO DE PVC PBA PARA REDE DE ÁGUA, DN 50 MM, JUNTA ELÁSTICA INTEGRADA, INSTALADO EM LOCAL COM NÍVEL ALTO DE INTERFERÊNCIAS (NÃO INCLUI FORNECIMENTO). AF_11/2017 | C108: M | D108: 2.26
A109: 97122 | B109: ASSENTAMENTO DE TUBO DE PVC PBA PARA REDE DE ÁGUA, DN 75 MM, JUNTA ELÁSTICA INTEGRADA, INSTALADO EM LOCAL COM NÍVEL ALTO DE INTERFERÊNCIAS (NÃO INCLUI FORNECIMENTO). AF_11/2017 | C109: M | D109: 3.12
A110: 97123 | B110: ASSENTAMENTO DE TUBO DE PVC PBA PARA REDE DE ÁGUA, DN 100 MM, JUNTA ELÁSTICA INTEGRADA, INSTALADO EM LOCAL COM NÍVEL ALTO DE INTERFERÊNCIAS (NÃO INCLUI FORNECIMENTO). AF_11/2017 | C110: M | D110: 3.96
A111: 97124 | B111: ASSENTAMENTO DE TUBO DE PVC PBA PARA REDE DE ÁGUA, DN 50 MM, JUNTA ELÁSTICA INTEGRADA, INSTALADO EM LOCAL COM NÍVEL BAIXO DE INTERFERÊNCIAS (NÃO INCLUI FORNECIMENTO). AF_11/2017 | C111: M | D111: 0.99
A112: 97125 | B112: ASSENTAMENTO DE TUBO DE PVC PBA PARA REDE DE ÁGUA, DN 75 MM, JUNTA ELÁSTICA INTEGRADA, INSTALADO EM LOCAL COM NÍVEL BAIXO DE INTERFERÊNCIAS (NÃO INCLUI FORNECIMENTO). AF_11/2017 | C112: M | D112: 1.39
A113: 97126 | B113: ASSENTAMENTO DE TUBO DE PVC PBA PARA REDE DE ÁGUA, DN 100 MM, JUNTA ELÁSTICA INTEGRADA, INSTALADO EM LOCAL COM NÍVEL BAIXO DE INTERFERÊNCIAS (NÃO INCLUI FORNECIMENTO). AF_11/2017 | C113: M | D113: 1.76
A114: 102264 | B114: TUBO DE PVC BRANCO PARA REDE COLETORA DE ESGOTO CONDOMINIAL DE PAREDE MACIÇA, DN 100 MM, JUNTA ELÁSTICA - FORNECIMENTO E ASSENTAMENTO. AF_01/2021 | C114: M | D114: 22.12
A115: 102265 | B115: JUNTA ARGAMASSADA ENTRE TUBO DN 800 MM E O POÇO DE VISITA/ CAIXA DE CONCRETO OU ALVENARIA EM REDES DE ESGOTO. AF_01/2021 | C115: UN | D115: 114.31
A116: 102266 | B116: JUNTA ARGAMASSADA ENTRE TUBO DN 900 MM E O POÇO DE VISITA/ CAIXA DE CONCRETO OU ALVENARIA EM REDES DE ESGOTO. AF_01/2021 | C116: UN | D116: 126.76
A117: 102267 | B117: JUNTA ARGAMASSADA ENTRE TUBO DN 1000 MM E O POÇO DE VISITA/ CAIXA DE CONCRETO OU ALVENARIA EM REDES DE ESGOTO. AF_01/2021 | C117: UN | D117: 145.51
A118: 102268 | B118: JUNTA ARGAMASSADA ENTRE TUBO DN 1200 MM E O POÇO DE VISITA/ CAIXA DE CONCRETO OU ALVENARIA EM REDES DE ESGOTO. AF_01/2021 | C118: UN | D118: 164.18
A119: 102269 | B119: JUNTA ARGAMASSADA ENTRE TUBO DN 1500 MM E O POÇO DE VISITA/ CAIXA DE CONCRETO OU ALVENARIA EM REDES DE ESGOTO. AF_01/2021 | C119: UN | D119: 201.53
A120: 92833 | B120: TUBO DE CONCRETO PARA REDES COLETORAS DE ESGOTO SANITÁRIO, DIÂMETRO DE 300 MM, JUNTA ELÁSTICA, INSTALADO EM LOCAL COM BAIXO NÍVEL DE INTERFERÊNCIAS - FORNECIMENTO E ASSENTAMENTO. AF_12/2015 | C120: M | D120: 172.42
A121: 92834 | B121: ASSENTAMENTO DE TUBO DE CONCRETO PARA REDES COLETORAS DE ESGOTO SANITÁRIO, DIÂMETRO DE 300 MM, JUNTA ELÁSTICA, INSTALADO EM LOCAL COM BAIXO NÍVEL DE INTERFERÊNCIAS (NÃO INCLUI FORNECIMENTO). AF_12/2015 | C121: M | D121: 10.03
A122: 92835 | B122: TUBO DE CONCRETO PARA REDES COLETORAS DE ESGOTO SANITÁRIO, DIÂMETRO DE 400 MM, JUNTA ELÁSTICA, INSTALADO EM LOCAL COM BAIXO NÍVEL DE INTERFERÊNCIAS - FORNECIMENTO E ASSENTAMENTO. AF_12/2015 | C122: M | D122: 181.81
A123: 92836 | B123: ASSENTAMENTO DE TUBO DE CONCRETO PARA REDES COLETORAS DE ESGOTO SANITÁRIO, DIÂMETRO DE 400 MM, JUNTA ELÁSTICA, INSTALADO EM LOCAL COM BAIXO NÍVEL DE INTERFERÊNCIAS (NÃO INCLUI FORNECIMENTO). AF_12/2015 | C123: M | D123: 12.79
A124: 92837 | B124: TUBO DE CONCRETO PARA REDES COLETORAS DE ESGOTO SANITÁRIO, DIÂMETRO DE 500 MM, JUNTA ELÁSTICA, INSTALADO EM LOCAL COM BAIXO NÍVEL DE INTERFERÊNCIAS - FORNECIMENTO E ASSENTAMENTO. AF_12/2015 | C124: M | D124: 316.5
A125: 92838 | B125: ASSENTAMENTO DE TUBO DE CONCRETO PARA REDES COLETORAS DE ESGOTO SANITÁRIO, DIÂMETRO DE 500 MM, JUNTA ELÁSTICA, INSTALADO EM LOCAL COM BAIXO NÍVEL DE INTERFERÊNCIAS (NÃO INCLUI FORNECIMENTO). AF_12/2015 | C125: M | D125: 15.35
A126: 92839 | B126: TUBO DE CONCRETO PARA REDES COLETORAS DE ESGOTO SANITÁRIO, DIÂMETRO DE 600 MM, JUNTA ELÁSTICA, INSTALADO EM LOCAL COM BAIXO NÍVEL DE INTERFERÊNCIAS - FORNECIMENTO E ASSENTAMENTO. AF_12/2015 | C126: M | D126: 386.87
A127: 92840 | B127: ASSENTAMENTO DE TUBO DE CONCRETO PARA REDES COLETORAS DE ESGOTO SANITÁRIO, DIÂMETRO DE 600 MM, JUNTA ELÁSTICA, INSTALADO EM LOCAL COM BAIXO NÍVEL DE INTERFERÊNCIAS (NÃO INCLUI FORNECIMENTO). AF_12/2015 | C127: M | D127: 18.2
A128: 92841 | B128: TUBO DE CONCRETO PARA REDES COLETORAS DE ESGOTO SANITÁRIO, DIÂMETRO DE 700 MM, JUNTA ELÁSTICA, INSTALADO EM LOCAL COM BAIXO NÍVEL DE INTERFERÊNCIAS - FORNECIMENTO E ASSENTAMENTO. AF_12/2015 | C128: M | D128: 503.72
A129: 92842 | B129: ASSENTAMENTO DE TUBO DE CONCRETO PARA REDES COLETORAS DE ESGOTO SANITÁRIO, DIÂMETRO DE 700 MM, JUNTA ELÁSTICA, INSTALADO EM LOCAL COM BAIXO NÍVEL DE INTERFERÊNCIAS (NÃO INCLUI FORNECIMENTO). AF_12/2015 | C129: M | D129: 20.76
A130: 92843 | B130: TUBO DE CONCRETO PARA REDES COLETORAS DE ESGOTO SANITÁRIO, DIÂMETRO DE 800 MM, JUNTA ELÁSTICA, INSTALADO EM LOCAL COM BAIXO NÍVEL DE INTERFERÊNCIAS - FORNECIMENTO E ASSENTAMENTO. AF_12/2015 | C130: M | D130: 524.35
A131: 92844 | B131: ASSENTAMENTO DE TUBO DE CONCRETO PARA REDES COLETORAS DE ESGOTO SANITÁRIO, DIÂMETRO DE 800 MM, JUNTA ELÁSTICA, INSTALADO EM LOCAL COM BAIXO NÍVEL DE INTERFERÊNCIAS (NÃO INCLUI FORNECIMENTO). AF_12/2015 | C131: M | D131: 23.61
A132: 92845 | B132: TUBO DE CONCRETO PARA REDES COLETORAS DE ESGOTO SANITÁRIO, DIÂMETRO DE 900 MM, JUNTA ELÁSTICA, INSTALADO EM LOCAL COM BAIXO NÍVEL DE INTERFERÊNCIAS - FORNECIMENTO E ASSENTAMENTO. AF_12/2015 | C132: M | D132: 770.56
A133: 92846 | B133: ASSENTAMENTO DE TUBO DE CONCRETO PARA REDES COLETORAS DE ESGOTO SANITÁRIO, DIÂMETRO DE 900 MM, JUNTA ELÁSTICA, INSTALADO EM LOCAL COM BAIXO NÍVEL DE INTERFERÊNCIAS (NÃO INCLUI FORNECIMENTO). AF_12/2015 | C133: M | D133: 26.16
A134: 92847 | B134: TUBO DE CONCRETO PARA REDES COLETORAS DE ESGOTO SANITÁRIO, DIÂMETRO DE 1000 MM, JUNTA ELÁSTICA, INSTALADO EM LOCAL COM BAIXO NÍVEL DE INTERFERÊNCIAS - FORNECIMENTO E ASSENTAMENTO. AF_12/2015 | C134: M | D134: 795.7
A135: 92848 | B135: ASSENTAMENTO DE TUBO DE CONCRETO PARA REDES COLETORAS DE ESGOTO SANITÁRIO, DIÂMETRO DE 1000 MM, JUNTA ELÁSTICA, INSTALADO EM LOCAL COM BAIXO NÍVEL DE INTERFERÊNCIAS (NÃO INCLUI FORNECIMENTO). AF_12/2015 | C135: M | D135: 29.05
A136: 92849 | B136: TUBO DE CONCRETO PARA REDES COLETORAS DE ESGOTO SANITÁRIO, DIÂMETRO DE 300 MM, JUNTA ELÁSTICA, INSTALADO EM LOCAL COM ALTO NÍVEL DE INTERFERÊNCIAS - FORNECIMENTO E ASSENTAMENTO. AF_12/2015 | C136: M | D136: 181.34
A137: 92850 | B137: ASSENTAMENTO DE TUBO DE CONCRETO PARA REDES COLETORAS DE ESGOTO SANITÁRIO, DIÂMETRO DE 300 MM, JUNTA ELÁSTICA, INSTALADO EM LOCAL COM ALTO NÍVEL DE INTERFERÊNCIAS (NÃO INCLUI FORNECIMENTO). AF_12/2015 | C137: M | D137: 18.95
A138: 92851 | B138: TUBO DE CONCRETO PARA REDES COLETORAS DE ESGOTO SANITÁRIO, DIÂMETRO DE 400 MM, JUNTA ELÁSTICA, INSTALADO EM LOCAL COM ALTO NÍVEL DE INTERFERÊNCIAS - FORNECIMENTO E ASSENTAMENTO. AF_12/2015 | C138: M | D138: 192.94
A139: 92852 | B139: ASSENTAMENTO DE TUBO DE CONCRETO PARA REDES COLETORAS DE ESGOTO SANITÁRIO, DIÂMETRO DE 400 MM, JUNTA ELÁSTICA, INSTALADO EM LOCAL COM ALTO NÍVEL DE INTERFERÊNCIAS (NÃO INCLUI FORNECIMENTO). AF_12/2015 | C139: M | D139: 23.92
A140: 92853 | B140: TUBO DE CONCRETO PARA REDES COLETORAS DE ESGOTO SANITÁRIO, DIÂMETRO DE 500 MM, JUNTA ELÁSTICA, INSTALADO EM LOCAL COM ALTO NÍVEL DE INTERFERÊNCIAS - FORNECIMENTO E ASSENTAMENTO. AF_12/2015 | C140: M | D140: 330.29
A141: 92854 | B141: ASSENTAMENTO DE TUBO DE CONCRETO PARA REDES COLETORAS DE ESGOTO SANITÁRIO, DIÂMETRO DE 500 MM, JUNTA ELÁSTICA, INSTALADO EM LOCAL COM ALTO NÍVEL DE INTERFERÊNCIAS (NÃO INCLUI FORNECIMENTO). AF_12/2015 | C141: M | D141: 29.14
A142: 92855 | B142: TUBO DE CONCRETO PARA REDES COLETORAS DE ESGOTO SANITÁRIO, DIÂMETRO DE 600 MM, JUNTA ELÁSTICA, INSTALADO EM LOCAL COM ALTO NÍVEL DE INTERFERÊNCIAS - FORNECIMENTO E ASSENTAMENTO. AF_12/2015 | C142: M | D142: 403.01
A143: 92856 | B143: ASSENTAMENTO DE TUBO DE CONCRETO PARA REDES COLETORAS DE ESGOTO SANITÁRIO, DIÂMETRO DE 600 MM, JUNTA ELÁSTICA, INSTALADO EM LOCAL COM ALTO NÍVEL DE INTERFERÊNCIAS (NÃO INCLUI FORNECIMENTO). AF_12/2015 | C143: M | D143: 34.34
A144: 92857 | B144: TUBO DE CONCRETO PARA REDES COLETORAS DE ESGOTO SANITÁRIO, DIÂMETRO DE 700 MM, JUNTA ELÁSTICA, INSTALADO EM LOCAL COM ALTO NÍVEL DE INTERFERÊNCIAS - FORNECIMENTO E ASSENTAMENTO. AF_12/2015 | C144: M | D144: 522.26
A145: 92858 | B145: ASSENTAMENTO DE TUBO DE CONCRETO PARA REDES COLETORAS DE ESGOTO SANITÁRIO, DIÂMETRO DE 700 MM, JUNTA ELÁSTICA, INSTALADO EM LOCAL COM ALTO NÍVEL DE INTERFERÊNCIAS (NÃO INCLUI FORNECIMENTO). AF_12/2015 | C145: M | D145: 39.3
A146: 92859 | B146: TUBO DE CONCRETO PARA REDES COLETORAS DE ESGOTO SANITÁRIO, DIÂMETRO DE 800 MM, JUNTA ELÁSTICA, INSTALADO EM LOCAL COM ALTO NÍVEL DE INTERFERÊNCIAS - FORNECIMENTO E ASSENTAMENTO. AF_12/2015 | C146: M | D146: 545.37
A147: 92860 | B147: ASSENTAMENTO DE TUBO DE CONCRETO PARA REDES COLETORAS DE ESGOTO SANITÁRIO, DIÂMETRO DE 800 MM, JUNTA ELÁSTICA, INSTALADO EM LOCAL COM ALTO NÍVEL DE INTERFERÊNCIAS (NÃO INCLUI FORNECIMENTO). AF_12/2015 | C147: M | D147: 44.63
A148: 92861 | B148: TUBO DE CONCRETO PARA REDES COLETORAS DE ESGOTO SANITÁRIO, DIÂMETRO DE 900 MM, JUNTA ELÁSTICA, INSTALADO EM LOCAL COM ALTO NÍVEL DE INTERFERÊNCIAS - FORNECIMENTO E ASSENTAMENTO. AF_12/2015 | C148: M | D148: 794.21
A149: 92862 | B149: ASSENTAMENTO DE TUBO DE CONCRETO PARA REDES COLETORAS DE ESGOTO SANITÁRIO, DIÂMETRO DE 900 MM, JUNTA ELÁSTICA, INSTALADO EM LOCAL COM ALTO NÍVEL DE INTERFERÊNCIAS (NÃO INCLUI FORNECIMENTO). AF_12/2015 | C149: M | D149: 49.81
A150: 92863 | B150: TUBO DE CONCRETO PARA REDES COLETORAS DE ESGOTO SANITÁRIO, DIÂMETRO DE 1000 MM, JUNTA ELÁSTICA, INSTALADO EM LOCAL COM ALTO NÍVEL DE INTERFERÊNCIAS - FORNECIMENTO E ASSENTAMENTO. AF_12/2015 | C150: M | D150: 821.66
A151: 92864 | B151: ASSENTAMENTO DE TUBO DE CONCRETO PARA REDES COLETORAS DE ESGOTO SANITÁRIO, DIÂMETRO DE 1000 MM, JUNTA ELÁSTICA, INSTALADO EM LOCAL COM ALTO NÍVEL DE INTERFERÊNCIAS (NÃO INCLUI FORNECIMENTO). AF_12/2015 | C151: M | D151: 55.01
A152: 92210 | B152: TUBO DE CONCRETO PARA REDES COLETORAS DE ÁGUAS PLUVIAIS, DIÂMETRO DE 400 MM, JUNTA RÍGIDA, INSTALADO EM LOCAL COM BAIXO NÍVEL DE INTERFERÊNCIAS - FORNECIMENTO E ASSENTAMENTO. AF_12/2015 | C152: M | D152: 150.95
A153: 92211 | B153: TUBO DE CONCRETO PARA REDES COLETORAS DE ÁGUAS PLUVIAIS, DIÂMETRO DE 500 MM, JUNTA RÍGIDA, INSTALADO EM LOCAL COM BAIXO NÍVEL DE INTERFERÊNCIAS - FORNECIMENTO E ASSENTAMENTO. AF_12/2015 | C153: M | D153: 181.65
A154: 92212 | B154: TUBO DE CONCRETO PARA REDES COLETORAS DE ÁGUAS PLUVIAIS, DIÂMETRO DE 600 MM, JUNTA RÍGIDA, INSTALADO EM LOCAL COM BAIXO NÍVEL DE INTERFERÊNCIAS - FORNECIMENTO E ASSENTAMENTO. AF_12/2015 | C154: M | D154: 263.97
A155: 92213 | B155: TUBO DE CONCRETO PARA REDES COLETORAS DE ÁGUAS PLUVIAIS, DIÂMETRO DE 700 MM, JUNTA RÍGIDA, INSTALADO EM LOCAL COM BAIXO NÍVEL DE INTERFERÊNCIAS - FORNECIMENTO E ASSENTAMENTO. AF_12/2015 | C155: M | D155: 342.56
A156: 92214 | B156: TUBO DE CONCRETO PARA REDES COLETORAS DE ÁGUAS PLUVIAIS, DIÂMETRO DE 800 MM, JUNTA RÍGIDA, INSTALADO EM LOCAL COM BAIXO NÍVEL DE INTERFERÊNCIAS - FORNECIMENTO E ASSENTAMENTO. AF_12/2015 | C156: M | D156: 412.15
A157: 92215 | B157: TUBO DE CONCRETO PARA REDES COLETORAS DE ÁGUAS PLUVIAIS, DIÂMETRO DE 900 MM, JUNTA RÍGIDA, INSTALADO EM LOCAL COM BAIXO NÍVEL DE INTERFERÊNCIAS - FORNECIMENTO E ASSENTAMENTO. AF_12/2015 | C157: M | D157: 472.89
A158: 92216 | B158: TUBO DE CONCRETO PARA REDES COLETORAS DE ÁGUAS PLUVIAIS, DIÂMETRO DE 1000 MM, JUNTA RÍGIDA, INSTALADO EM LOCAL COM BAIXO NÍVEL DE INTERFERÊNCIAS - FORNECIMENTO E ASSENTAMENTO. AF_12/2015 | C158: M | D158: 498.03
A159: 92219 | B159: TUBO DE CONCRETO PARA REDES COLETORAS DE ÁGUAS PLUVIAIS, DIÂMETRO DE 400 MM, JUNTA RÍGIDA, INSTALADO EM LOCAL COM ALTO NÍVEL DE INTERFERÊNCIAS - FORNECIMENTO E ASSENTAMENTO. AF_12/2015 | C159: M | D159: 162.08
A160: 92220 | B160: TUBO DE CONCRETO PARA REDES COLETORAS DE ÁGUAS PLUVIAIS, DIÂMETRO DE 500 MM, JUNTA RÍGIDA, INSTALADO EM LOCAL COM ALTO NÍVEL DE INTERFERÊNCIAS - FORNECIMENTO E ASSENTAMENTO. AF_12/2015 | C160: M | D160: 195.43
A161: 92221 | B161: TUBO DE CONCRETO PARA REDES COLETORAS DE ÁGUAS PLUVIAIS, DIÂMETRO DE 600 MM, JUNTA RÍGIDA, INSTALADO EM LOCAL COM ALTO NÍVEL DE INTERFERÊNCIAS - FORNECIMENTO E ASSENTAMENTO. AF_12/2015 | C161: M | D161: 280.11
A162: 92222 | B162: TUBO DE CONCRETO PARA REDES COLETORAS DE ÁGUAS PLUVIAIS, DIÂMETRO DE 700 MM, JUNTA RÍGIDA, INSTALADO EM LOCAL COM ALTO NÍVEL DE INTERFERÊNCIAS - FORNECIMENTO E ASSENTAMENTO. AF_12/2015 | C162: M | D162: 361.34
A163: 92223 | B163: TUBO DE CONCRETO PARA REDES COLETORAS DE ÁGUAS PLUVIAIS, DIÂMETRO DE 800 MM, JUNTA RÍGIDA, INSTALADO EM LOCAL COM ALTO NÍVEL DE INTERFERÊNCIAS - FORNECIMENTO E ASSENTAMENTO. AF_12/2015 | C163: M | D163: 433.16
A164: 92224 | B164: TUBO DE CONCRETO PARA REDES COLETORAS DE ÁGUAS PLUVIAIS, DIÂMETRO DE 900 MM, JUNTA RÍGIDA, INSTALADO EM LOCAL COM ALTO NÍVEL DE INTERFERÊNCIAS - FORNECIMENTO E ASSENTAMENTO. AF_12/2015 | C164: M | D164: 496.2
A165: 92226 | B165: TUBO DE CONCRETO PARA REDES COLETORAS DE ÁGUAS PLUVIAIS, DIÂMETRO DE 1000 MM, JUNTA RÍGIDA, INSTALADO EM LOCAL COM ALTO NÍVEL DE INTERFERÊNCIAS - FORNECIMENTO E ASSENTAMENTO. AF_12/2015 | C165: M | D165: 524.13
A166: 92808 | B166: ASSENTAMENTO DE TUBO DE CONCRETO PARA REDES COLETORAS DE ÁGUAS PLUVIAIS, DIÂMETRO DE 300 MM, JUNTA RÍGIDA, INSTALADO EM LOCAL COM BAIXO NÍVEL DE INTERFERÊNCIAS (NÃO INCLUI FORNECIMENTO). AF_12/2015 | C166: M | D166: 45.08
A167: 92809 | B167: ASSENTAMENTO DE TUBO DE CONCRETO PARA REDES COLETORAS DE ÁGUAS PLUVIAIS, DIÂMETRO DE 400 MM, JUNTA RÍGIDA, INSTALADO EM LOCAL COM BAIXO NÍVEL DE INTERFERÊNCIAS (NÃO INCLUI FORNECIMENTO). AF_12/2015 | C167: M | D167: 57.8
A168: 92810 | B168: ASSENTAMENTO DE TUBO DE CONCRETO PARA REDES COLETORAS DE ÁGUAS PLUVIAIS, DIÂMETRO DE 500 MM, JUNTA RÍGIDA, INSTALADO EM LOCAL COM BAIXO NÍVEL DE INTERFERÊNCIAS (NÃO INCLUI FORNECIMENTO). AF_12/2015 | C168: M | D168: 70.33
A169: 92811 | B169: ASSENTAMENTO DE TUBO DE CONCRETO PARA REDES COLETORAS DE ÁGUAS PLUVIAIS, DIÂMETRO DE 600 MM, JUNTA RÍGIDA, INSTALADO EM LOCAL COM BAIXO NÍVEL DE INTERFERÊNCIAS (NÃO INCLUI FORNECIMENTO). AF_12/2015 | C169: M | D169: 83.72
A170: 92812 | B170: ASSENTAMENTO DE TUBO DE CONCRETO PARA REDES COLETORAS DE ÁGUAS PLUVIAIS, DIÂMETRO DE 700 MM, JUNTA RÍGIDA, INSTALADO EM LOCAL COM BAIXO NÍVEL DE INTERFERÊNCIAS (NÃO INCLUI FORNECIMENTO). AF_12/2015 | C170: M | D170: 96.89
A171: 92813 | B171: ASSENTAMENTO DE TUBO DE CONCRETO PARA REDES COLETORAS DE ÁGUAS PLUVIAIS, DIÂMETRO DE 800 MM, JUNTA RÍGIDA, INSTALADO EM LOCAL COM BAIXO NÍVEL DE INTERFERÊNCIAS (NÃO INCLUI FORNECIMENTO). AF_12/2015 | C171: M | D171: 112.25
A172: 92814 | B172: ASSENTAMENTO DE TUBO DE CONCRETO PARA REDES COLETORAS DE ÁGUAS PLUVIAIS, DIÂMETRO DE 900 MM, JUNTA RÍGIDA, INSTALADO EM LOCAL COM BAIXO NÍVEL DE INTERFERÊNCIAS (NÃO INCLUI FORNECIMENTO). AF_12/2015 | C172: M | D172: 128.31
A173: 92815 | B173: ASSENTAMENTO DE TUBO DE CONCRETO PARA REDES COLETORAS DE ÁGUAS PLUVIAIS, DIÂMETRO DE 1000 MM, JUNTA RÍGIDA, INSTALADO EM LOCAL COM BAIXO NÍVEL DE INTERFERÊNCIAS (NÃO INCLUI FORNECIMENTO). AF_12/2015 | C173: M | D173: 146.63
A174: 92816 | B174: TUBO DE CONCRETO PARA REDES COLETORAS DE ÁGUAS PLUVIAIS, DIÂMETRO DE 1200 MM, JUNTA RÍGIDA, INSTALADO EM LOCAL COM BAIXO NÍVEL DE INTERFERÊNCIAS - FORNECIMENTO E ASSENTAMENTO. AF_12/2015 | C174: M | D174: 708.33
A175: 92817 | B175: ASSENTAMENTO DE TUBO DE CONCRETO PARA REDES COLETORAS DE ÁGUAS PLUVIAIS, DIÂMETRO DE 1200 MM, JUNTA RÍGIDA, INSTALADO EM LOCAL COM BAIXO NÍVEL DE INTERFERÊNCIAS (NÃO INCLUI FORNECIMENTO). AF_12/2015 | C175: M | D175: 183.5
A176: 92818 | B176: TUBO DE CONCRETO PARA REDES COLETORAS DE ÁGUAS PLUVIAIS, DIÂMETRO DE 1500 MM, JUNTA RÍGIDA, INSTALADO EM LOCAL COM BAIXO NÍVEL DE INTERFERÊNCIAS - FORNECIMENTO E ASSENTAMENTO. AF_12/2015 | C176: M | D176: 1007.35
A177: 92819 | B177: ASSENTAMENTO DE TUBO DE CONCRETO PARA REDES COLETORAS DE ÁGUAS PLUVIAIS, DIÂMETRO DE 1500 MM, JUNTA RÍGIDA, INSTALADO EM LOCAL COM BAIXO NÍVEL DE INTERFERÊNCIAS (NÃO INCLUI FORNECIMENTO). AF_12/2015 | C177: M | D177: 246.98
A178: 92820 | B178: ASSENTAMENTO DE TUBO DE CONCRETO PARA REDES COLETORAS DE ÁGUAS PLUVIAIS, DIÂMETRO DE 300 MM, JUNTA RÍGIDA, INSTALADO EM LOCAL COM ALTO NÍVEL DE INTERFERÊNCIAS (NÃO INCLUI FORNECIMENTO). AF_12/2015 | C178: M | D178: 53.78
A179: 92821 | B179: ASSENTAMENTO DE TUBO DE CONCRETO PARA REDES COLETORAS DE ÁGUAS PLUVIAIS, DIÂMETRO DE 400 MM, JUNTA RÍGIDA, INSTALADO EM LOCAL COM ALTO NÍVEL DE INTERFERÊNCIAS (NÃO INCLUI FORNECIMENTO). AF_12/2015 | C179: M | D179: 68.93
A180: 92822 | B180: ASSENTAMENTO DE TUBO DE CONCRETO PARA REDES COLETORAS DE ÁGUAS PLUVIAIS, DIÂMETRO DE 500 MM, JUNTA RÍGIDA, INSTALADO EM LOCAL COM ALTO NÍVEL DE INTERFERÊNCIAS (NÃO INCLUI FORNECIMENTO). AF_12/2015 | C180: M | D180: 84.11
A181: 92824 | B181: ASSENTAMENTO DE TUBO DE CONCRETO PARA REDES COLETORAS DE ÁGUAS PLUVIAIS, DIÂMETRO DE 600 MM, JUNTA RÍGIDA, INSTALADO EM LOCAL COM ALTO NÍVEL DE INTERFERÊNCIAS (NÃO INCLUI FORNECIMENTO). AF_12/2015 | C181: M | D181: 99.86
A182: 92825 | B182: ASSENTAMENTO DE TUBO DE CONCRETO PARA REDES COLETORAS DE ÁGUAS PLUVIAIS, DIÂMETRO DE 700 MM, JUNTA RÍGIDA, INSTALADO EM LOCAL COM ALTO NÍVEL DE INTERFERÊNCIAS (NÃO INCLUI FORNECIMENTO). AF_12/2015 | C182: M | D182: 115.67
A183: 92826 | B183: ASSENTAMENTO DE TUBO DE CONCRETO PARA REDES COLETORAS DE ÁGUAS PLUVIAIS, DIÂMETRO DE 800 MM, JUNTA RÍGIDA, INSTALADO EM LOCAL COM ALTO NÍVEL DE INTERFERÊNCIAS (NÃO INCLUI FORNECIMENTO). AF_12/2015 | C183: M | D183: 133.26
A184: 92827 | B184: ASSENTAMENTO DE TUBO DE CONCRETO PARA REDES COLETORAS DE ÁGUAS PLUVIAIS, DIÂMETRO DE 900 MM, JUNTA RÍGIDA, INSTALADO EM LOCAL COM ALTO NÍVEL DE INTERFERÊNCIAS (NÃO INCLUI FORNECIMENTO). AF_12/2015 | C184: M | D184: 151.62
A185: 92828 | B185: ASSENTAMENTO DE TUBO DE CONCRETO PARA REDES COLETORAS DE ÁGUAS PLUVIAIS, DIÂMETRO DE 1000 MM, JUNTA RÍGIDA, INSTALADO EM LOCAL COM ALTO NÍVEL DE INTERFERÊNCIAS (NÃO INCLUI FORNECIMENTO). AF_12/2015 | C185: M | D185: 172.73
A186: 92829 | B186: TUBO DE CONCRETO PARA REDES COLETORAS DE ÁGUAS PLUVIAIS, DIÂMETRO DE 1200 MM, JUNTA RÍGIDA, INSTALADO EM LOCAL COM ALTO NÍVEL DE INTERFERÊNCIAS - FORNECIMENTO E ASSENTAMENTO. AF_12/2015 | C186: M | D186: 739.1
A187: 92830 | B187: ASSENTAMENTO DE TUBO DE CONCRETO PARA REDES COLETORAS DE ÁGUAS PLUVIAIS, DIÂMETRO DE 1200 MM, JUNTA RÍGIDA, INSTALADO EM LOCAL COM ALTO NÍVEL DE INTERFERÊNCIAS (NÃO INCLUI FORNECIMENTO). AF_12/2015 | C187: M | D187: 214.27
A188: 92831 | B188: TUBO DE CONCRETO PARA REDES COLETORAS DE ÁGUAS PLUVIAIS, DIÂMETRO DE 1500 MM, JUNTA RÍGIDA, INSTALADO EM LOCAL COM ALTO NÍVEL DE INTERFERÊNCIAS - FORNECIMENTO E ASSENTAMENTO. AF_12/2015 | C188: M | D188: 1045.22
A189: 92832 | B189: ASSENTAMENTO DE TUBO DE CONCRETO PARA REDES COLETORAS DE ÁGUAS PLUVIAIS, DIÂMETRO DE 1500 MM, JUNTA RÍGIDA, INSTALADO EM LOCAL COM ALTO NÍVEL DE INTERFERÊNCIAS (NÃO INCLUI FORNECIMENTO). AF_12/2015 | C189: M | D189: 284.85
A190: 95565 | B190: TUBO DE CONCRETO PARA REDES COLETORAS DE ÁGUAS PLUVIAIS, DIÂMETRO DE 300MM, JUNTA RÍGIDA, INSTALADO EM LOCAL COM BAIXO NÍVEL DE INTERFERÊNCIAS - FORNECIMENTO E ASSENTAMENTO. AF_12/2015 | C190: M | D190: 127.62
A191: 95566 | B191: TUBO DE CONCRETO PARA REDES COLETORAS DE ÁGUAS PLUVIAIS, DIÂMETRO DE 300MM, JUNTA RÍGIDA, INSTALADO EM LOCAL COM ALTO NÍVEL DE INTERFERÊNCIAS - FORNECIMENTO E ASSENTAMENTO. AF_12/2015 | C191: M | D191: 136.32
A192: 95567 | B192: TUBO DE CONCRETO (SIMPLES) PARA REDES COLETORAS DE ÁGUAS PLUVIAIS, DIÂMETRO DE 300 MM, JUNTA RÍGIDA, INSTALADO EM LOCAL COM BAIXO NÍVEL DE INTERFERÊNCIAS - FORNECIMENTO E ASSENTAMENTO. AF_12/2015 | C192: M | D192: 108.94
A193: 95568 | B193: TUBO DE CONCRETO (SIMPLES) PARA REDES COLETORAS DE ÁGUAS PLUVIAIS, DIÂMETRO DE 400 MM, JUNTA RÍGIDA, INSTALADO EM LOCAL COM BAIXO NÍVEL DE INTERFERÊNCIAS - FORNECIMENTO E ASSENTAMENTO. AF_12/2015 | C193: M | D193: 133.25
A194: 95569 | B194: TUBO DE CONCRETO (SIMPLES) PARA REDES COLETORAS DE ÁGUAS PLUVIAIS, DIÂMETRO DE 500 MM, JUNTA RÍGIDA, INSTALADO EM LOCAL COM BAIXO NÍVEL DE INTERFERÊNCIAS - FORNECIMENTO E ASSENTAMENTO. AF_12/2015 | C194: M | D194: 182.64
A195: 95570 | B195: TUBO DE CONCRETO (SIMPLES) PARA REDES COLETORAS DE ÁGUAS PLUVIAIS, DIÂMETRO DE 300 MM, JUNTA RÍGIDA, INSTALADO EM LOCAL COM ALTO NÍVEL DE INTERFERÊNCIAS - FORNECIMENTO E ASSENTAMENTO. AF_12/2015 | C195: M | D195: 117.64
A196: 95571 | B196: TUBO DE CONCRETO (SIMPLES) PARA REDES COLETORAS DE ÁGUAS PLUVIAIS, DIÂMETRO DE 400 MM, JUNTA RÍGIDA, INSTALADO EM LOCAL COM ALTO NÍVEL DE INTERFERÊNCIAS - FORNECIMENTO E ASSENTAMENTO. AF_12/2015 | C196: M | D196: 144.38
A197: 95572 | B197: TUBO DE CONCRETO (SIMPLES) PARA REDES COLETORAS DE ÁGUAS PLUVIAIS, DIÂMETRO DE 500 MM, JUNTA RÍGIDA, INSTALADO EM LOCAL COM ALTO NÍVEL DE INTERFERÊNCIAS - FORNECIMENTO E ASSENTAMENTO. AF_12/2015 | C197: M | D197: 196.42
A198: 97127 | B198: ASSENTAMENTO DE TUBO DE PVC DEFOFO OU PRFV OU RPVC PARA REDE DE ÁGUA, DN 150 MM, JUNTA ELÁSTICA INTEGRADA, INSTALADO EM LOCAL COM NÍVEL ALTO DE INTERFERÊNCIAS (NÃO INCLUI FORNECIMENTO). AF_11/2017 | C198: M | D198: 5.69
A199: 97128 | B199: ASSENTAMENTO DE TUBO DE PVC DEFOFO OU PRFV OU RPVC PARA REDE DE ÁGUA, DN 200 MM, JUNTA ELÁSTICA INTEGRADA, INSTALADO EM LOCAL COM NÍVEL ALTO DE INTERFERÊNCIAS (NÃO INCLUI FORNECIMENTO). AF_11/2017 | C199: M | D199: 11.81
A200: 97129 | B200: ASSENTAMENTO DE TUBO DE PVC DEFOFO OU PRFV OU RPVC PARA REDE DE ÁGUA, DN 250 MM, JUNTA ELÁSTICA INTEGRADA, INSTALADO EM LOCAL COM NÍVEL ALTO DE INTERFERÊNCIAS (NÃO INCLUI FORNECIMENTO). AF_11/2017 | C200: M | D200: 14.52
A201: 97130 | B201: ASSENTAMENTO DE TUBO DE PVC DEFOFO OU PRFV OU RPVC PARA REDE DE ÁGUA, DN 300 MM, JUNTA ELÁSTICA INTEGRADA, INSTALADO EM LOCAL COM NÍVEL ALTO DE INTERFERÊNCIAS (NÃO INCLUI FORNECIMENTO). AF_11/2017 | C201: M | D201: 17.22
... 7357 more rows

Sheet Orse_insumos
A1: Ref: | B1: 2023-09-01
A2: CÓDIGO | B2: DESCRIÇÃO | C2: UN | D2: CUSTO UNIT
A3: 8792 | B3: Equipamento de sondagem a percussão | C3: un | D3: 25349.44
A4: 4246 | B4: Aluguel de rolo Compactador DYNAPAC CA- 250P pé de carneiro autop. 11,25 t v ibrat | C4: h | D4: 108.44
A5: 6701 | B5: Aplicador de Material Termoplástico por extrusão, Elgimaq ou similar | C5: h | D5: 12.12
A6: 2450 | B6: Caminhão basc. 15,0t/10,0m3 ( m. benz lk 1418 -170,0kw ou equivalente) | C6: h | D6: 66.39
A7: 2451 | B7: Caminhao basc. 9 t/6,0 m3 (m. benz - 1315 -150,0 kw) | C7: h | D7: 47.16
A8: 4994 | B8: Caminhão Basculante : Mercedes Benz : ATEGO 1518/36 - 5 m3 - 8,8 t | C8: h | D8: 47.16
A9: 8488 | B9: Caminhão Carroceria - de madeira 15 t (170 kW)- fonte:DNIT | C9: h | D9: 139.65
A10: 10434 | B10: Caminhão Carroceria de madeira 9 t - fonte:DNIT | C10: h | D10: 96.04
A11: 2454 | B11: Caminhao guindauto 11,5 t (m.benz - l 1620/57 - 184,0 hp) | C11: h | D11: 143.72
A12: 2456 | B12: Caminhão guindauto 6,5 t ( m. benz - L1620/51 - 143,0 hp) | C12: h | D12: 113.16
A13: 2457 | B13: Caminhão guindauto 8,5 t (m.benz - l 1620/51- 1840 hp | C13: h | D13: 129.31
A14: 2452 | B14: Caminhao toco, PBT = 9700kg, com carroceria de madeira 2,50x7,00x0,50m, potên cia 160 cv | C14: h | D14: 48.65
A15: 4233 | B15: Compressor de ar 60 pcm | C15: h | D15: 10.03
A16: 4236 | B16: Distribuidor de agregado autopropelido ROMANELI - DAR 5000 | C16: h | D16: 133.46
A17: 4237 | B17: Distribuidor de agregado de pneus rebocável CMV | C17: h | D17: 17.64
A18: 2465 | B18: Escavadeira com drag-line 760l | C18: h | D18: 177.06
A19: 4680 | B19: Escavadeira hidraúlica sobre esteira, Caterpillar: 320DL - cap 600l p/ longo alcance | C19: h | D19: 110.65
A20: 11046 | B20: Escavadeira hidraúlica sobre esteira, Caterpillar: 320DL - cap 600l p/ longo alcance, com rompedor hidraúlico | C20: h | D20: 231.48
A21: 9725 | B21: Fornecimento e montagem do sistema de abastecimento de combustível - Terminal Pesqueiro de Aracaju | C21: h | D21: 30594.41
A22: 4239 | B22: Grupo gerador 110 kva (88 kW) | C22: h | D22: 20.25
A23: 4241 | B23: Grupo gerador 40 kva (32kW) | C23: h | D23: 11.08
A24: 2475 | B24: Motoniveladora 15000 kg com escarificador (cat - 140M - 185,0 hp ou equivalen te) | C24: h | D24: 150.88
A25: 4242 | B25: Motoniveladora com escarificador (cat - 120H - 0 hp ou equivalente) | C25: h | D25: 138.64
A26: 13523 | B26: Motoscraper 304kw - 407 hp | C26: h | D26: 180.81
A27: 2477 | B27: Pá - carregadeira de esteira 1,53m3 (cat - 953 - 130,0 hp) | C27: h | D27: 160.11
A28: 2478 | B28: Pa carreg. s/ pneus Caterpilar - 950 G H | C28: h | D28: 165.96
A29: 4244 | B29: Pa carregadeira sobre pneus Caterpillar - 924 G | C29: h | D29: 132.74
A30: 2479 | B30: Perfuratriz pneumática (atlas copco -rh 571 5l) | C30: h | D30: 3.1
A31: 4245 | B31: Perfuratriz sobre Esteiras : Atlas Copco : ROC 442PC -Crawier Drill | C31: h | D31: 60
A32: 2481 | B32: Pulvinix a. prop. 25 m3/h (t-terra - ss prm 7 - 188,0 hp ou equivalente) | C32: h | D32: 128.31
A33: 2482 | B33: Retroescavadeira pneus (Massey Ferguson MF - 86 HF ou equivalente) | C33: h | D33: 76.57
A34: 2485 | B34: Rolo liso vib. a. prop. 10,0 t (t-terra - spv 84 liso - 130,0 hp) | C34: h | D34: 95.56
A35: 2487 | B35: Rolo pe carneiro a. prop. (Dynapac: CA - 250p ou equivalente) | C35: h | D35: 96.62
A36: 4247 | B36: Rolo pneu a prop. 21 t (t-terra sp 8000 - 97 kW ou equivalente) | C36: h | D36: 96.62
A37: 2488 | B37: Rolo pneu a. prop. 25 t (caterpillar - ps -360 - 145,0 hp ou equivalente) | C37: h | D37: 118.11
A38: 2489 | B38: Rolo tandem a. prop. 10,0 t (muller - rt 82h - 58,5 hp) | C38: h | D38: 48.21
A39: 2486 | B39: Rolo tandem para asfalto/solos Dynapac cc900 ou similar | C39: h | D39: 75.15
A40: 4248 | B40: Rolo tandem vib. a. prop. 10,9 t (DYNAPAC CC-422C - 112 kW) | C40: h | D40: 158.16
A41: 11862 | B41: Rompedor hidraúlico (36 toneladas) - montado em escavadeira hidraúlica, inclu sive operador, combustível e alimentação do operador | C41: h | D41: 293.36
A42: 10031 | B42: Tanque cilíndrico aéreo, pleno, capacidade 15.000 litros em aço carbono, NBR 15461, inclusive escada metálico | C42: un | D42: 10142.26
A43: 9719 | B43: Tanque cilíndrico aéreo, pleno, capacidade 30.000 litros em aço carbono, des. 90000421 d.i.1.2.550 padrão NBR 15461, inclusive escada e berço metálico | C43: h | D43: 23625.8
A44: 4249 | B44: Tanque estacionário 20.000 l | C44: h | D44: 3.41
A45: 2499 | B45: Trator agrícola pneu (massey ferguson - mf 292/4 - 105,0 hp) | C45: h | D45: 84.86
A46: 2500 | B46: Trator esteira (cat - d4e - 75,0 hp ou equivalente) | C46: h | D46: 165.01
A47: 2501 | B47: Trator esteira (cat - d6m - xl - 163-6a nacional 140,0 hp ou equivalente) | C47: h | D47: 196.71
A48: 2502 | B48: Trator esteira d8r -ps - 183 + 85 - nacional | C48: h | D48: 196.71
A49: 2503 | B49: Trator ripper (cat - d8k - 300,0 hp ou equivalente) | C49: h | D49: 249.18
A50: 4234 | B50: Vibro-acabadora de asfalto sobre esteira 74kW | C50: h | D50: 139.38
A51: 9476 | B51: Aluguel de caminhao guindauto até 10,0 t | C51: diária | D51: 900
A52: 5935 | B52: Aluguel de lixadeira | C52: H | D52: 0.83
A53: 6798 | B53: Aluguel de martelete 5,9kg 220/ | C53: H | D53: 1.87
A54: 13175 | B54: Aluguel de martelete Rotativo e Rompedor Makita ou Similar 780/800W 3,9kg 110 V | C54: dia | D54: 30
A55: 6799 | B55: Aluguel de martelo 15kg 220V | C55: H | D55: 35
A56: 5893 | B56: Caminhao guindauto 15,0 t (m.benz - l 1313 - 152,0 hp / madal md 20504 ou equ ivalente) | C56: H | D56: 70
A57: 5894 | C57: H | D57: 70
B58: Caminhao guindauto 20,0 t (m.benz - l 1313 - 152,0 hp / madal md 40507 ou equ ivalente)
A59: 13195 | B59: Martelete Rotativo e Rompedor Bosch ou Similar 820W Gbh2-24d 110V/220 | C59: und | D59: 789
A60: 5895 | B60: Talha manual 0,5 t, elev.=5,0 m | C60: un | D60: 490.07
A61: 4415 | B61: Veículo leve - Volkswagen:GOL ou similar | C61: h | D61: 13.18
A62: 5896 | B62: Veículo tipo sedan ou pick-up capacidade 0,6 ton | C62: h | D62: 8.33
A63: 11720 | B63: Aluguel de adubadeira mecânica com capacidade de 50 litros | C63: mês | D63: 160.54
A64: 11717 | B64: Aluguel de amolador elétrico para lâminas das máquinas helicoidais | C64: mês | D64: 474.56
A65: 6441 | B65: Aluguel de bomba para teste hidróstático em adutoras | C65: h | D65: 3.59
A66: 9732 | B66: Aluguel de cadeirinha p/ fachada | C66: mês | D66: 272.5
A67: 2455 | B67: Aluguel de caminhão guindauto 3,0 t ( m. benz - 1215 c/48- 143,0 hp | C67: h | D67: 100.9
A68: 2460 | B68: Aluguel de compactador placa 156 kg (dynapac - cm 13 diesel - 4,0 hp) | C68: h | D68: 2.27
A69: 2461 | B69: Aluguel de compactador placa 415 kg (dynapac - cm 20 diesel - 6,0 hp) | C69: h | D69: 2.73
A70: 2462 | B70: Aluguel de compactador pneumático (dynapac - lc 71 gasolina - 2,5 hp) | C70: h | D70: 2.73
A71: 10764 | B71: Aluguel de furadeira industrial | C71: dia | D71: 0.16
A72: 10765 | B72: Aluguel de furadeira profissional | C72: dia | D72: 21.52
A73: 9731 | B73: Aluguel de Guincho Velox ( foguetinho ) | C73: mês | D73: 785.96
A74: 4182 | B74: Aluguel de lixadeira Industrial marca Bosch | C74: h | D74: 1.25
A75: 2717 | B75: Aluguel de Makita | C75: dia | D75: 7.05
A76: 9730 | B76: Aluguel de Makitão | C76: dia | D76: 50.45
A77: 9733 | B77: Aluguel de Makitão | C77: Quiz | D77: 504.66
A78: 9734 | B78: Aluguel de Makitão | C78: mês | D78: 807.44
A79: 2871 | B79: Aluguel de máquina acabadora de superfície de concreto (trifásica) com 1 jog o de pás e disco de acabamento | C79: h | D79: 7.56
A80: 11714 | B80: Aluguel de máquina de podar grama com helicoidal nas dimensões 0,80x1,00m, co m 09 lâminas e coletor de grama | C80: mês | D80: 1406.3
A81: 10575 | B81: Aluguel de máquina desbobinadeira de aço | C81: dia | D81: 0.26
A82: 4178 | B82: Aluguel de máquina Lavajato pressão mínima 1200lb com mangueira e bico direc ional | C82: h | D82: 1.85
A83: 11718 | B83: Aluguel de máquina para marcação de gramados (pintura das áreas de jogos) | C83: mês | D83: 313.01
A84: 2790 | B84: Aluguel de máquina para pintura de faixa a quente p/ material termoplástico | C84: h | D84: 40.38
A85: 8863 | B85: Aluguel de máquina solda - 250amp - 8kw | C85: h | D85: 0.08
A86: 2474 | B86: Aluguel de máquina solda - 300amp/220/380V trifásica : capacidade - Pequena | C86: h | D86: 1.89
A87: 8250 | B87: Aluguel de máquina solda - 475A trifásica : capacidade - grande | C87: h | D87: 3.79
A88: 11716 | B88: Aluguel de pulverizador motorizado com 03 bicos com capacidade de 120 litros | C88: mês | D88: 318.49
A89: 11719 | B89: Aluguel de rolo nivelador e compactador com capacidade de 500kg | C89: mês | D89: 269.48
A90: 10576 | B90: Aluguel de serra circular estacionária | C90: dia | D90: 0.57
A91: 10224 | B91: Aluguel de serra circular portátil | C91: dia | D91: 0.16
A92: 11721 | B92: Aluguel de trator trap 24HP com 03 lâminas de 0,80m | C92: mês | D92: 1106.45
A93: 11722 | B93: Aluguel de varredor mecânico para gramados e jardins, para limpeza de folhas e palhas | C93: mês | D93: 180.6
A94: 4812 | B94: BATE ESTACA-MARTELO ATE 3,0T DIESEL 160 HP TORRE 15 M MAGAN IM 1520 BS | C94: h | D94: 84.95
A95: 4176 | B95: Bicos e calafate | C95: un | D95: 9.98
A96: 12015 | B96: Bomba para incêndio a diesel 10 cv, vazão de 38,00 m³/h e hman= 50 m.c.a | C96: un | D96: 6211.91
A97: 13147 | B97: Bomba para incêndio à diesel 5 cv, auto escovante, vazão max. de 36,00 m³/h, hman = 8 m.c.a. | C97: un | D97: 2675.97
A98: 14007 | B98: Bomba para incêndio jockey 1 1/2" cv | C98: un | D98: 2816
A99: 12017 | B99: Bomba para incêndio jockey 2cv | C99: un | D99: 1579.56
A100: 2463 | B100: Compressor 250 pcm (atlas copco - xa-120dd - 94,0 hp ou equivalente) | C100: h | D100: 12.59
A101: 2464 | B101: Compressor 762 pcm (atlas copco - xa-360sd - 180,0 hp ou equivalente) | C101: h | D101: 26.68
A102: 7897 | B102: Compressor Chiaperini Ar Direto G3 com KIT Pintura, Limpeza, Encher e Calibra r Pneus | C102: h | D102: 0.34
A103: 11420 | B103: Compressor de ar p/ pintura c/ filtro (2 kW) | C103: h | D103: 6.45
A104: 6789 | B104: Disco de desbaste 7", para ferro | C104: un | D104: 8
A105: 10184 | B105: Elevador de Obra - Cremalheira | C105: mês | D105: 4037.16
A106: 7255 | B106: Equip. para Solda : Max Bantam : 2000 - transformador | C106: h | D106: 0.08
A107: 5897 | B107: Equipamento hidrojato | C107: h | D107: 16.26
A108: 9561 | B108: Equipamento para Hidrossemeadura - 5.500l (130 kW) | C108: h | D108: 125.04
A109: 6790 | B109: Esmerilhadeira 850rpm | C109: mês | D109: 131.19
A110: 14094 | B110: Estação total eletrônica com alcance máximo de 3.000 m - SICRO | C110: chp | D110: 4.6
A111: 11081 | B111: Fornecimento e instalação de grupo gerador com capacidade de 55kVA com quadro automático, banco de baterias, tanque de óleo diesel - completo | C111: un | D111: 45418.28
A112: 11248 | B112: Furadeira e Parafusadeira eletrica Bosch ou Similar profissional | C112: un | D112: 246
A113: 4983 | B113: Furadeira Industrial | C113: h | D113: 2.69
A114: 2470 | B114: Grupo gerador (stemac-automático 115/103 kva ou equivalente) - quadro comando automatico | C114: h | D114: 56.07
A115: 2468 | B115: Grupo Gerador 180kva (144 kW) | C115: h | D115: 24.22
A116: 6670 | B116: Grupo gerador 260 kva, trifásico, 220/127 v, potência de 362 cv, 60 Hz, com q uadro de comando e controle USCA MSXXI, motor diesel 6ctaa8.3-g, 6 cilindros, Cummins ou similar | C116: un | D116: 295619.5
A117: 2471 | B117: Grupo gerador 80 kva (aluguel mensal) | C117: ms | D117: 2675.93
A118: 9380 | B118: Grupo gerador stemac-automático 115/103 kva ou similar(pagar somente as horas efetivamente trabalhadas face a estamativa de 200 horas) | C118: h | D118: 56.07
A119: 10934 | B119: Grupo gerador, aberto, na potência emergencial (stand-by) de 112,5 KVa, e pot ência continua (prime) de 102,3kVA, fator de poência 0,8, trifásico, 220/127V , dotadp de quadro de comando automático, microprocessado, da Leon Heimer ou similar | C119: un | D119: 165346.5
A120: 9592 | B120: Grupo gerador, modelo ATED, marca Heimer ou similar, potencia stand-by de 75k va e potencia continua 68kva, tensão:220/127V, c/quadro comando automatico ti po microprocessado mod.DPC-560, motor diesel Fiat NEF45SM1A, potencia 90cv | C120: un | D120: 120252
A121: 7958 | B121: Grupo gerador, modelo GEHC-260, Heimer ou similar, potencia stand-by 260KVA e potencia continua 234KVA, tensão:220/127V, frequencia 60 Hz, c/quadro comando automatico, motor diesel 6CTAA8.3-G1, consumo:50 L/h | C121: un | D121: 295619.5
A122: 12670 | B122: Grupo gerador, potência stand-by 625/569 kva, trif. 220/127 v,quadro de coman do automático microprocessado/digital, marca Deep Sea/KVA, motor diesel potên cia máxima de 772cv, incl. kit atenuador de ruído, da Geraforte ou similar - forn.e instalação | C122: un | D122: 651365
A123: 11423 | B123: Guilhotina de bancada - (4kW) | C123: h | D123: 14.95
A124: 2472 | B124: Guindaste koehring bantan es-488 telekruiser 16 ton ou equivalente | C124: h | D124: 185.4
A125: 6573 | B125: Instrumental de topografia | C125: mês | D125: 1180.59
A126: 9810 | B126: Instrumental de Topografia - Fonte: Tabela de Preços de consultoria do DNIT - ref. 04/16 | C126: mês | D126: 1836.65
A127: 10186 | B127: Jahu Pesado | C127: m | D127: 403.73
A128: 6589 | B128: Laboratório de Concreto | C128: mês | D128: 2055.44
A129: 9388 | B129: Locação / aluguel de tarracha / rosquedeira manual retrocedente até Ø 3" | C129: h | D129: 0.12
A130: 13098 | B130: Locação de Elevador Cremalheira com 45,50m de altura, 03 cancelas, Cabine sim ples - 1.200kg ou 17 pessoas. | C130: mês | D130: 7135.57
A131: 8904 | B131: Máquina de solda elétrica | C131: h | D131: 3.87
A132: 11372 | B132: Máquina p/ cravação (método não destrutivo) | C132: h | D132: 215.97
A133: 11422 | B133: Máquina universal de corte de chapa, de bancada, 4kw - C-6A | C133: h | D133: 11.91
A134: 9612 | B134: Martelete rompedor 33Kg Atlas Copo TEX32PS | C134: h | D134: 82.71
A135: 6442 | B135: Nível ótico de precisão | C135: H | D135: 2.25
A136: 2480 | B136: Pick-up, capacidade 1,2 t | C136: h | D136: 10.91
A137: 7008 | B137: Politriz pneumática 7" 2500rpm Fúrio AT880B | C137: h | D137: 4.93
A138: 11421 | B138: Prensa excêntrica - (1kW) | C138: h | D138: 13.02
A139: 2490 | B139: Rompedor 56,0 pcm / 1150 ipm (atlas copco -tex 11 ou equivalente) | C139: h | D139: 6.12
A140: 11249 | B140: Serra circular eletrica portatil | C140: un | D140: 518
A141: 2491 | B141: Talha compacta nt cap. 500 kg c/ 5,00m de elevação | C141: h | D141: 7.56
A142: 12317 | B142: Talha manual 1,0 t, elev.= 5,0 m | C142: un | D142: 540.41
A143: 2492 | B143: Talha manual 1,0 t, elev.= 5,0 m ("koch" ou equivalente) | C143: h | D143: 20.68
A144: 2493 | B144: Talha manual 2,0 t, elev.= 5,0 m ("koch" ou equivalente) | C144: h | D144: 20.68
A145: 2494 | B145: Talha manual 3,0 t, elev.= 5,0 m ("koch" ou equivalente) | C145: h | D145: 20.68
A146: 2495 | B146: Talha manual 5,0 t, elev.= 5,0 m ("koch" ou equivalente) | C146: h | D146: 31.04
A147: 6443 | B147: TEODOLITO | C147: H | D147: 2.25
A148: 2497 | B148: Tirfor 1,6 t - 20m de cabo | C148: h | D148: 1.36
A149: 2498 | B149: Tirfor 3,2 t - 20m de cabo | C149: h | D149: 1.44
A150: 2789 | B150: Veículo leve - pick up (97kw) | C150: h | D150: 10.19
A151: 6791 | B151: Aluguel de alisadora de concreto á gasolina | C151: mês | D151: 650
A152: 2448 | B152: Aluguel de betoneira 400 l com motor 220/380V (com carregador) | C152: h | D152: 1.5
A153: 6792 | B153: Aluguel de betoneira 400 l com motor à díesel (com carregador) | C153: mês | D153: 450
A154: 6793 | B154: Aluguel de betoneira 400 l com motor à gasolina (com carregador) | C154: mês | D154: 350
A155: 9432 | B155: Aluguel de cilindro de gás | C155: mês | D155: 0.5
A156: 6800 | B156: Aluguel de serra circular de bancada | C156: h | D156: 30
A157: 4777 | B157: Bola de limpeza | C157: un | D157: 18.65
A158: 4778 | B158: Bomba injetora manual, incluindo tanque, para calda de cimento, com palheta m isturadora | C158: un | D158: 57600.76
A159: 4779 | B159: Conjunto acoplado para monômetro, para bomba injetora manual Putzmeister ou s imilar | C159: un | D159: 373.02
A160: 4780 | B160: Conjunto de monômetro O-100 bar, para bomba injetora manual de Putzmeister ou similar | C160: un | D160: 599.36
A161: 4776 | B161: Fixação - Gancho de mangueira, para bomba injetora manual Putzmeister ou simi lar | C161: un | D161: 171
A162: 4782 | B162: Mangueira para bomba injetora manual de 10m, diâmetro nominal de 50mm, Putzme ister ou similar | C162: un | D162: 1513.78
A163: 4783 | C163: un | D163: 1429.15
B164: Mangueira para bomba injetora manual de 10m, diâmetro nominal de 50mm, Putzme ister ou similar
A165: 4781 | B165: Mangueira para bomba injetora manual de 40m, diâmetro nominal de 1/2", Putzme ister ou similar | C165: un | D165: 1017
A166: 2473 | B166: Maq. projetar concreto - multijet - sheikan | C166: h | D166: 11.64
A167: 8625 | B167: Martelete rompedor elétrico, 220V, 16Kg | C167: dia | D167: 70
A168: 4784 | B168: Pistola de injeção para bomba injetora manual, Putzmeister ou similar | C168: un | D168: 936.71
A169: 4723 | B169: Vibrador de imersão (com mangote) | C169: h | D169: 1.25
A170: 11086 | B170: Aerador vertical de fluxo descendente AFDV- 3cv, da Despurifil ou similar | C170: un | D170: 8831.44
A171: 2449 | B171: Aluguel de bomba de drenagem - "darka" - diametro 4" - ,potência = 5 cv | C171: h | D171: 5.35
A172: 1077 | B172: Grupo gerador sincrono, automático 350 kva - 220/127v | C172: un | D172: 515568.79
A173: 4904 | B173: Grupo gerador180 kva / 215 kW - potência de 294 kW - 60 Hz com motor DC965-A, 5 cilindros turbo charged - Scania , mod. GEHS - 356,Leon Heimer ou similar | C173: un | D173: 306730.8
A174: 8634 | B174: Grupo motor gerador150 kva modelo: GEHM 150 com USCA (QTA.) | C174: un | D174: 148774.16
A175: 8521 | B175: Grupo motor gerador150 kva sem quadro | C175: un | D175: 131265.9
A176: 8554 | B176: Usina Diesel Geradora composta por 02 (Dois) Grupos Motor Diesel Geradores, m arca: "HEIMER OU SIMILAR", na capacidade de potência stand-by (prime) de 500 kVA/400kW com atenuador de ruido | C176: un | D176: 694557.52
A177: 12749 | B177: Aluguel de Máquina de corte em asfalto/concreto utilizando disco diamantado d iam. 350 mm (não inclui o disco) | C177: d | D177: 80
A178: 4821 | B178: Aquecedor de Fluido Térmico : Tenge : TH III | C178: h | D178: 55.43
A179: 2788 | B179: Caminhão carroc. madeira 4,0 t ( 94,0 kw ou equivalente) | C179: h | D179: 44.5
A180: 2453 | B180: Caminhao esparg. asf. 6000 l | C180: h | D180: 69.19
A181: 2458 | B181: Caminhao tanque (pipa)10000 l (m. benz - 2423 K - 184,0 hp ou equivalente) | C181: h | D181: 77.84
A182: 2459 | B182: Caminhao tanque 6000 l (m. benz - ATEGO 1418/42 - 136,0 hp ou equivalente) | C182: h | D182: 69.19
A183: 2466 | B183: Distribuidor de agregado de pneus autopropulsor -" ciber" , ss - 31, 400tph - spreader - 90 hp. | C183: h | D183: 168.85
A184: 2467 | B184: Espalh. agreg. reboc. 1,30 m3 (consmaq - ea ou equivalente) | C184: h | D184: 5.46
A185: 4277 | B185: Estabilizadora e Recicladora a frio | C185: h | D185: 837.64
A186: 2469 | B186: Grade disco GA 24 x 24 (marchesan ou equivalente) | C186: h | D186: 15.35
A187: 2483 | B187: Rolo liso autoprop. 10,0 t (dynapac - ca 25d - 118,0 hp) | C187: h | D187: 77.7
A188: 2484 | B188: Rolo liso vib. autoprop. 9,0t (dynapac - ck-50 - 84,0 hp) | C188: h | D188: 63.88
A189: 2496 | B189: Tanque estacionário 30.000 l (pre-aquecedor taa-serpentina ou equivalente) | C189: h | D189: 17.68
A190: 2504 | B190: Usina de asfalto à frio CIFALI cap. 60/100 ton/h, 43 kW | C190: h | D190: 28.86
A191: 4252 | B191: Usina de asfalto a quente 90/120 t/h, 188 kW | C191: h | D191: 788.79
A192: 4253 | B192: Usina de solos CIFALI 350/600 ton 99 kW ou equivalente | C192: h | D192: 83.11
A193: 2506 | B193: Usina de solos, dosadores triplos, calha vibratória, 200/500 ton, 75 kw, ou e quivalente | C193: h | D193: 121.2
A194: 2507 | B194: Vassoura mecânica CMV: VM 7 rebocável ou equivalente | C194: h | D194: 14.37
A195: 2447 | B195: Vibro-acabadora de asfalto pneu, 105,0 hp, 300 t/h ou equivalente | C195: h | D195: 164.96
A196: 4980 | B196: Aluguel de Hidrojateadora Cinojet 250/15 | C196: h | D196: 12.32
A197: 2702 | B197: Aluguel de Hidrojateadora Cinojet 350/18 | C197: h | D197: 12.43
A198: 10567 | B198: Aluguel de relógio de ponto | C198: mês | D198: 12.16
A199: 4899 | B199: Cadeira de pintor | C199: h | D199: 2.73
A200: 7327 | B200: Câmera Speed Dome - VSD 1000 26X - Intelbras similar | C200: un | D200: 13500
... 8920 more rows
